Workbook

Sheet Data
D12: # | E12: Debt name | F12: Amount | G12: Min Payment | H12: Annual Interest
D13: =IF(E13<>"", 1, "") -> 1 | E13: Debt 1 | F13: 1500 | G13: 30 | H13: 0.17 | I13: =IF(AND(E13<>"", OR(F13="", G13="", H13="")), "Don't forget to add "& IF(F13<>"","","Amount") & IF(G13<>"", "", IF(AND(F13="", H13=""), ", ", IF(F13="", " and ", "")) & "Minimum Payment") & IF(H13<>"", "", IF(OR(F13="", G13=""), " and ", " ") & "Annual Interest"), "") -> 
D14: =IFERROR(IF(E13<>"", D13+1, ""), "") -> 2 | E14: Debt 2 | F14: 2843 | G14: 75 | H14: 0.19 | I14: =IF(AND(E14<>"", OR(F14="", G14="", H14="")), "Don't forget to add "& IF(F14<>"","","Amount") & IF(G14<>"", "", IF(AND(F14="", H14=""), ", ", IF(F14="", " and ", "")) & "Minimum Payment") & IF(H14<>"", "", IF(OR(F14="", G14=""), " and ", " ") & "Annual Interest"), "") -> 
D15: =IFERROR(IF(E14<>"", D14+1, ""), "") -> 3 | E15: Debt 3 | F15: 6280 | G15: 125 | H15: 0.18
D16: 4 | E16: Debt 4 | F16: 7214 | G16: 100 | H16: 0.06
D17: 5 | E17: Debt 5 | F17: 8932 | G17: 120 | H17: 0.06
D18: 6 | E18: Debt 6 | F18: 10500 | G18: 140 | H18: 0.08
D19: 7 | E19: Debt 7 | F19: 12068 | G19: 160 | H19: 0.09
D20: 8 | E20: Debt 8 | F20: 13636 | G20: 180 | H20: 0.1
D22: Need space for more debts? Consider our 32-debt option on Etsy.

Sheet Dashboard
E2: Extra monthly payments: | F2: 0 | P2: LifeandMyFinances.com
E4: One-time immediate pmnt: | F4: 0

Sheet Debt Snowball Calculator
U3: Provided by: LifeAndMyFinances.com
C5: (For up to 8 debts)
I6: Extra Monthly Payment | J6: =Dashboard!F2 -> 0
C7: Copyright 2022 | I7: One-Time Start-up Payment | J7: =Dashboard!F4 -> 0
C10: Smallest Debts | Y10: Largest Debts
C12: =Data!E13 -> Debt 1 | F12: =Data!E14 -> Debt 2 | I12: =Data!E15 -> Debt 3 | L12: =Data!E16 -> Debt 4 | O12: =Data!E17 -> Debt 5 | R12: =Data!E18 -> Debt 6 | U12: =Data!E19 -> Debt 7 | X12: =Data!E20 -> Debt 8 | AA12: =Data!E21 -> 0 | AE12: Total Debt
C13: Balance | D13: =Data!F13 -> 1500 | F13: Balance | G13: =Data!F14 -> 2843 | I13: Balance | J13: =Data!$F$15 -> 6280 | L13: Balance | M13: =Data!$F$16 -> 7214 | O13: Balance | P13: =Data!$F$17 -> 8932 | R13: Balance | S13: =Data!$F$18 -> 10500 | U13: Balance | V13: =Data!$F$19 -> 12068 | X13: Balance | Y13: =Data!$F$20 -> 13636 | AA13: Balance | AB13: =Data!$F$21 -> 0 | AE13: =SUM(D13:AC13) -> 62973
C14: Minimum Payment | D14: =Data!G13 -> 30 | F14: Minimum Payment | G14: =Data!G14 -> 75 | I14: Minimum Payment | J14: =Data!$G$15 -> 125 | L14: Minimum Payment | M14: =Data!$G$16 -> 100 | O14: Minimum Payment | P14: =Data!$G$17 -> 120 | R14: Minimum Payment | S14: =Data!$G$18 -> 140 | U14: Minimum Payment | V14: =Data!$G$19 -> 160 | X14: Minimum Payment | Y14: =Data!$G$20 -> 180 | AA14: Minimum Payment | AB14: =Data!$G$21 -> 0 | AE14: =SUM(D14:AC14) -> 930
C15: Interest Rate | D15: =Data!H13 -> 0.17 | F15: Interest Rate | G15: =Data!H14 -> 0.19 | I15: Interest Rate | J15: =Data!$H$15 -> 0.18 | L15: Interest Rate | M15: =Data!$H$16 -> 0.06 | O15: Interest Rate | P15: =Data!$H$17 -> 0.06 | R15: Interest Rate | S15: =Data!$H$18 -> 0.08 | U15: Interest Rate | V15: =Data!$H$19 -> 0.09 | X15: Interest Rate | Y15: =Data!$H$20 -> 0.1 | AA15: Interest Rate | AB15: =Data!$H$21 -> 0
B18: Month | C18: Payment | D18: Balance | F18: Payment | G18: Balance | H18: Min Pmnt Available | I18: Payment | J18: Balance | K18: Min Pmnt Available | L18: Payment | M18: Balance | N18: Min Pmnt Available | O18: Payment | P18: Balance | Q18: Min Pmnt Available | R18: Payment | S18: Balance | T18: Min Pmnt Available | U18: Payment | V18: Balance | W18: Min Pmnt Available | X18: Payment | Y18: Balance | Z18: Min Pmnt Available | AA18: Payment | AB18: Balance | AC18: Min Pmnt Available | AE18: Total Payments | AG18: Debt 1 | AH18: Month Paid Off | AJ18: Debt 2 | AK18: Month Paid Off | AM18: Debt 3 | AN18: Month Paid Off | AP18: Debt 4 | AQ18: Month Paid Off | AS18: Debt 5 | AT18: Month Paid Off | AV18: Debt 6 | AW18: Month Paid Off | AY18: Debt 7 | AZ18: Month Paid Off | BB18: Debt 8 | BC18: Month Paid Off
B19: 1 | C19: =IF((J7+J6+D14)>=D13,D13,(J6+J7+D14)) -> 30 | D19: =IF(D13-C19<=0,0,(D13-C19)) -> 1470 | F19: =IF((J6+J7+D14+G14)>=(D13+G13),G13,IF(AND(C19=D13,C19<>0),(J6+J7+D14-D13+G14),G14)) -> 75 | G19: =IF(G13-F19<=0,0,(G13-F19)) -> 2768 | H19: 0 | I19: =IF((J6+J7+D14+G14+J14)>=(G13+J13+D13),J13,IF(AND(F19=G13, F19<>0),(J6+J7-G13-D13+D14+G14+J14),J14)) -> 125 | J19: =IF(J13-I19<=0,0,(J13-I19)) -> 6155 | K19: 0 | L19: =IF((J6+J7+D14+G14+J14+M14)>=(J13+M13+G13+D13),M13,IF(AND(I19=J13, I19<>0),(J6+J7-J13-G13-D13+D14+G14+J14+M14),M14)) -> 100 | M19: =IF(M13-L19<=0,0,(M13-L19)) -> 7114 | N19: 0 | O19: =IF((J6+J7+D14+G14+J14+M14+P14)>=(M13+P13+J13+G13+D13),P13,IF(AND(L19=M13,L19<>0),(J6+J7-M13-J13-G13-D13+D14+G14+J14+M14+P14),P14)) -> 120 | P19: =IF(P13-O19<=0,0,(P13-O19)) -> 8812 | Q19: 0 | R19: =IF((J6+J7+D14+G14+J14+M14+P14+S14)>=(P13+S13+M13+J13+G13+D13),S13,IF(AND(O19=P13,O19<>0),(J6+J7-P13-M13-J13-G13-D13+D14+G14+J14+M14+P14+S14),S14)) -> 140 | S19: =IF(S13-R19<=0,0,(S13-R19)) -> 10360 | T19: 0 | U19: =IF(($J$6+$J$7+D14+G14+J14+M14+P14+S14+V14)>=(S13+V13+P13+M13+J13+G13+D13),V13,IF(AND(R19=S$13,R19<>0),($J$6+$J$7-S13-P13-M13-J13-G13-D13+D14+G14+J14+M14+P14+S14+V14),V14)) -> 160 | V19: =IF(V13-U19<=0,0,(V13-U19)) -> 11908 | W19: 0 | X19: =IF(($J$6+$J$7+D14+G14+J14+M14+P14+S14+V14+Y14)>=(V13+Y13+S13+P13+M13+J13+G13+D13),Y13,IF(AND(U19=V$13,U19<>0),($J$6+$J$7-V13-S13-P13-M13-J13-G13-D13+SUM(D14,G14,J14,M14,P14,S14,V14+Y14)),Y14)) -> 180 | Y19: =IF(Y13-X19<=0,0,(Y13-X19)) -> 13456 | Z19: 0 | AA19: =IF(($J$6+$J$7+D14+G14+J14+M14+P14+S14+V14+Y14+AB14)>=(Y13+AB13+V13+S13+P13+M13+J13+G13+D13),AB13,IF(AND(X19=Y$13,X19<>0),($J$6+$J$7-Y13-V13-S13-P13-M13-J13-G13-D13+D14+G14+J14+M14+P14+S14+V14+Y14+AB14),AB14)) -> 0 | AB19: =IF(AB13-AA19<=0,0,(AB13-AA19)) -> 0 | AC19: 0 | AE19: =SUM(C19,F19,I19,L19,O19,R19,U19,X19,AA19) -> 930 | AG19: =D19 -> 1470 | AH19: 1 | AJ19: =G19 -> 2768 | AK19: 1 | AM19: =J19 -> 6155 | AN19: 1 | AP19: =M19 -> 7114 | AQ19: 1 | AS19: =P19 -> 8812 | AT19: 1 | AV19: =S19 -> 10360 | AW19: 1 | AY19: =V19 -> 11908 | AZ19: 1 | BB19: =Y19 -> 13456 | BC19: 1
B20: 2 | C20: =IF((D19-$J$6-$D$14-SUM(H20,K20,N20,Q20,T20,W20,Z20,AC20))<=0,($J$6+(D19-$J$6)),($J$6+$D$14+SUM(H20,K20,N20,Q20,T20,W20,Z20,AC20))) -> 30 | D20: =IF((D19-C20)<=0.0001,0,(D19-C20)*(1+(D$15/12))) -> 1460.4 | F20: =IF(AND(((G19-$J$6+C20-G$14-D$14-SUM(K20,N20,Q20,T20,W20,Z20,AC20))<=0),D20=0),G19,IF(D20=0,$J$6-C20+G$14+D$14+SUM(K20,N20,Q20,T20,W20,Z20,AC20),G$14)) -> 75 | G20: =IF((G19-F20)<=0.0001,0,(G19-F20)*(1+(G$15/12))) -> 2735.639167 | H20: =IF(G19=0,G$14,0) -> 0 | I20: =IF(AND(((J19-$J$6+F20+C20-J$14-G$14-D$14-SUM(N20,Q20,T20,W20,Z20,AC20))<=0),G20+D20=0),J19,IF(J$14>=J19,J19,IF(AND(G20=0,D20=0),$J$6-F20-C20+J$14+G$14+D$14+SUM(N20,Q20,T20,W20,Z20,AC20),J$14))) -> 125 | J20: =IF((J19-I20)<=0.0001,0,(J19-I20)*(1+(J$15/12))) -> 6120.45 | K20: =IF(J19=0,J$14,0) -> 0 | L20: =IF(AND(((M19-$J$6+I20+F20+C20-M$14-J$14-G$14-D$14-SUM(Q20,T20,W20,Z20,AC20))<=0),J20+G20+D20=0),M19,IF(M$14>=M19,M19, IF(AND(J20=0,G20=0,D20=0),$J$6-I20-F20-C20+M$14+J$14+G$14+D$14+SUM(Q20,T20,W20,Z20,AC20),M$14))) -> 100 | M20: =IF((M19-L20)<=0.0001,0,(M19-L20)*(1+(M$15/12))) -> 7049.07 | N20: =IF(M19=0,M$14,0) -> 0 | O20: =IF(AND(((P19-$J$6+L20+I20+F20+C20-P$14-M$14-J$14-G$14-D$14-SUM(T20,W20,Z20,AC20))<=0),M20+J20+G20+D20=0),P19,IF(P$14>=P19,P19,IF(AND(M20=0,J20=0,G20=0,D20=0),$J$6-L20-I20-F20-C20+P$14+M$14+J$14+G$14+D$14+SUM(T20,W20,Z20,AC20),P$14))) -> 120 | P20: =IF((P19-O20)<=0.0001,0,(P19-O20)*(1+(P$15/12))) -> 8735.46 | Q20: =IF(P19=0,P$14,0) -> 0 | R20: =IF(AND(((S19-$J$6+O20+L20+I20+F20+C20-S$14-P$14-M$14-J$14-G$14-D$14-SUM(W20,Z20,AC20))<=0),P20+M20+J20+G20+D20=0),S19,IF(S$14>=S19,S19,IF(AND(P20=0,M20=0,J20=0,G20=0),$J$6-O20-L20-I20-F20-C20+S$14+P$14+M$14+J$14+G$14+D$14+SUM(W20,Z20,AC20),S$14))) -> 140 | S20: =IF((S19-R20)<=0.0001,0,(S19-R20)*(1+(S$15/12))) -> 10288.13333 | T20: =IF(S19=0,S$14,0) -> 0 | U20: =IF(AND(((V19-$J$6+R20+O20+L20+I20+F20+C20-V$14-S$14-P$14-M$14-J$14-G$14-D$14-SUM(Z20,AC20))<=0),S20+P20+M20+J20+G20+D20=0),V19,IF(V$14>=V19,V19,IF(AND(S20=0,P20=0,M20=0,J20=0,G20=0,D20=0),$J$6-R20-O20-L20-I20-F20-C20+V$14+S$14+P$14+M$14+J$14+G$14+D$14+SUM(Z20,AC20),V$14))) -> 160 | V20: =IF((V19-U20)<=0.0001,0,(V19-U20)*(1+(V$15/12))) -> 11836.11 | W20: =IF(V19=0,V$14,0) -> 0 | X20: =IF(AND(((Y19-$J$6+U20+R20+O20+L20+I20+F20+C20-Y$14-V$14-S$14-P$14-M$14-J$14-G$14-D$14-SUM(AC20))<=0),V20+S20+P20+M20+J20+G20+D20=0),Y19,IF(Y$14>=Y19,Y19,IF(AND(V20=0,S20=0,P20=0,M20=0,J20=0,G20=0,D20=0),$J$6-U20-R20-O20-L20-I20-F20-C20+Y$14+V$14+S$14+P$14+M$14+J$14+G$14+D$14+SUM(AC20),Y$14))) -> 180 | Y20: =IF((Y19-X20)<=0.0001,0,(Y19-X20)*(1+(Y$15/12))) -> 13386.63333 | Z20: =IF(Y19=0,Y$14,0) -> 0 | AA20: =IF(AND(((AB19-$J$6+X20+U20+R20+O20+L20+I20+F20+C20-AB$14-Y$14-V$14-S$14-P$14-M$14-J$14-G$14-D$14)<=0),Y20+V20+S20+P20+M20+J20+G20+D20=0),AB19,IF(AB$14>=AB19,AB19,IF(AND(Y20=0,V20=0,S20=0,P20=0,M20=0,J20=0,G20=0,D20=0),$J$6-X20-U20-R20-O20-L20-I20-F20-C20+AB$14+Y$14+V$14+S$14+P$14+M$14+J$14+G$14+D$14,AB$14))) -> 0 | AB20: =IF((AB19-AA20)<=0.0001,0,(AB19-AA20)*(1+(AB$15/12))) -> 0 | AC20: =IF(AB19=0,AB$14,0) -> 0 | AE20: 930 | AG20: 1460.4 | AH20: 2 | AJ20: 2735.639167 | AK20: 2 | AM20: 6120.45 | AN20: 2 | AP20: 7049.07 | AQ20: 2 | AS20: 8735.46 | AT20: 2 | AV20: 10288.13333 | AW20: 2 | AY20: 11836.11 | AZ20: 2 | BB20: 13386.63333 | BC20: 2
B21: 3 | C21: 30 | D21: =IF((D20-C21)<=0.0001,0,(D20-C21)*(1+(D$15/12))) -> 1450.664 | F21: 75 | G21: 2702.765953 | H21: =IF(G20=0,G$14,0) -> 0 | I21: 125 | J21: =IF((J20-I21)<=0.0001,0,(J20-I21)*(1+(J$15/12))) -> 6085.38175 | K21: =IF(J20=0,J$14,0) -> 0 | L21: 100 | M21: =IF((M20-L21)<=0.0001,0,(M20-L21)*(1+(M$15/12))) -> 6983.81535 | N21: =IF(M20=0,M$14,0) -> 0 | O21: 120 | P21: =IF((P20-O21)<=0.0001,0,(P20-O21)*(1+(P$15/12))) -> 8658.5373 | Q21: =IF(P20=0,P$14,0) -> 0 | R21: 140 | S21: =IF((S20-R21)<=0.0001,0,(S20-R21)*(1+(S$15/12))) -> 10215.78756 | T21: 0 | U21: 160 | V21: =IF((V20-U21)<=0.0001,0,(V20-U21)*(1+(V$15/12))) -> 11763.68083 | W21: 0 | X21: 180 | Y21: =IF((Y20-X21)<=0.0001,0,(Y20-X21)*(1+(Y$15/12))) -> 13316.68861 | Z21: 0 | AA21: 0 | AB21: =IF((AB20-AA21)<=0.0001,0,(AB20-AA21)*(1+(AB$15/12))) -> 0 | AC21: 0 | AE21: 930 | AG21: 1450.664 | AH21: 3 | AJ21: 2702.765953 | AK21: 3 | AM21: 6085.38175 | AN21: 3 | AP21: 6983.81535 | AQ21: 3 | AS21: 8658.5373 | AT21: 3 | AV21: 10215.78756 | AW21: 3 | AY21: 11763.68083 | AZ21: 3 | BB21: 13316.68861 | BC21: 3
B22: 4 | C22: 30 | D22: =IF((D21-C22)<=0.0001,0,(D21-C22)*(1+(D$15/12))) -> 1440.790073 | F22: 75 | G22: 2669.372248 | H22: =IF(G21=0,G$14,0) -> 0 | I22: 125 | J22: 6049.787476 | K22: =IF(J21=0,J$14,0) -> 0 | L22: 100 | M22: 6918.234427 | N22: =IF(M21=0,M$14,0) -> 0 | O22: 120 | P22: 8581.229986 | Q22: =IF(P21=0,P$14,0) -> 0 | R22: 140 | S22: =IF((S21-R22)<=0.0001,0,(S21-R22)*(1+(S$15/12))) -> 10142.95947 | T22: 0 | U22: 160 | V22: 11690.70843 | W22: 0 | X22: 180 | Y22: 13246.16102 | Z22: 0 | AA22: 0 | AB22: 0 | AC22: 0 | AE22: 930 | AG22: 1440.790073 | AH22: 4 | AJ22: 2669.372248 | AK22: 4 | AM22: 6049.787476 | AN22: 4 | AP22: 6918.234427 | AQ22: 4 | AS22: 8581.229986 | AT22: 4 | AV22: 10142.95947 | AW22: 4 | AY22: 11690.70843 | AZ22: 4 | BB22: 13246.16102 | BC22: 4
B23: 5 | C23: 30 | D23: =IF((D22-C23)<=0.0001,0,(D22-C23)*(1+(D$15/12))) -> 1430.776266 | F23: 75 | G23: 2635.449808 | H23: 0 | I23: 125 | J23: 6013.659288 | K23: 0 | L23: 100 | M23: 6852.325599 | N23: 0 | O23: 120 | P23: 8503.536136 | Q23: 0 | R23: 140 | S23: 10069.64587 | T23: 0 | U23: 160 | V23: 11617.18874 | W23: 0 | X23: 180 | Y23: 13175.04569 | Z23: 0 | AA23: 0 | AB23: 0 | AC23: 0 | AE23: 930 | AG23: 1430.776266 | AH23: 5 | AJ23: 2635.449808 | AK23: 5 | AM23: 6013.659288 | AN23: 5 | AP23: 6852.325599 | AQ23: 5 | AS23: 8503.536136 | AT23: 5 | AV23: 10069.64587 | AW23: 5 | AY23: 11617.18874 | AZ23: 5 | BB23: 13175.04569 | BC23: 5
B24: 6 | C24: 30 | D24: 1420.620596 | F24: 75 | G24: 2600.990264 | H24: 0 | I24: 125 | J24: 5976.989178 | K24: 0 | L24: 100 | M24: 6786.087227 | N24: 0 | O24: 120 | P24: 8425.453817 | Q24: 0 | R24: 140 | S24: 9995.843508 | T24: 0 | U24: 160 | V24: 11543.11766 | W24: 0 | X24: 180 | Y24: 13103.33774 | Z24: 0 | AA24: 0 | AB24: 0 | AC24: 0 | AE24: 930 | AG24: 1420.620596 | AH24: 6 | AJ24: 2600.990264 | AK24: 6 | AM24: 5976.989178 | AN24: 6 | AP24: 6786.087227 | AQ24: 6 | AS24: 8425.453817 | AT24: 6 | AV24: 9995.843508 | AW24: 6 | AY24: 11543.11766 | AZ24: 6 | BB24: 13103.33774 | BC24: 6
B25: 7 | C25: 30 | D25: 1410.321055 | F25: 75 | G25: 2565.985109 | H25: 0 | I25: 125 | J25: 5939.769015 | K25: 0 | L25: 100 | M25: 6719.517663 | N25: 0 | O25: 120 | P25: 8346.981086 | Q25: 0 | R25: 140 | S25: 9921.549132 | T25: 0 | U25: 160 | V25: 11468.49104 | W25: 0 | X25: 180 | Y25: 13031.03222 | Z25: 0 | AA25: 0 | AB25: 0 | AC25: 0 | AE25: 930 | AG25: 1410.321055 | AH25: 7 | AJ25: 2565.985109 | AK25: 7 | AM25: 5939.769015 | AN25: 7 | AP25: 6719.517663 | AQ25: 7 | AS25: 8346.981086 | AT25: 7 | AV25: 9921.549132 | AW25: 7 | AY25: 11468.49104 | AZ25: 7 | BB25: 13031.03222 | BC25: 7
B26: 8 | C26: 30 | D26: 1399.875603 | F26: 75 | G26: 2530.425707 | H26: 0 | I26: 125 | J26: 5901.990551 | K26: 0 | L26: 100 | M26: 6652.615251 | N26: 0 | O26: 120 | P26: 8268.115992 | Q26: 0 | R26: 140 | S26: 9846.759459 | T26: 0 | U26: 160 | V26: 11393.30473 | W26: 0 | X26: 180 | Y26: 12958.12416 | Z26: 0 | AA26: 0 | AB26: 0 | AC26: 0 | AE26: 930 | AG26: 1399.875603 | AH26: 8 | AJ26: 2530.425707 | AK26: 8 | AM26: 5901.990551 | AN26: 8 | AP26: 6652.615251 | AQ26: 8 | AS26: 8268.115992 | AT26: 8 | AV26: 9846.759459 | AW26: 8 | AY26: 11393.30473 | AZ26: 8 | BB26: 12958.12416 | BC26: 8
B27: 9 | C27: 30 | D27: 1389.282174 | F27: 75 | G27: 2494.303281 | H27: 0 | I27: 125 | J27: 5863.645409 | K27: 0 | L27: 100 | M27: 6585.378328 | N27: 0 | O27: 120 | P27: 8188.856572 | Q27: 0 | R27: 140 | S27: 9771.471189 | T27: 0 | U27: 160 | V27: 11317.55451 | W27: 0 | X27: 180 | Y27: 12884.60852 | Z27: 0 | AA27: 0 | AB27: 0 | AC27: 0 | AE27: 930 | AG27: 1389.282174 | AH27: 9 | AJ27: 2494.303281 | AK27: 9 | AM27: 5863.645409 | AN27: 9 | AP27: 6585.378328 | AQ27: 9 | AS27: 8188.856572 | AT27: 9 | AV27: 9771.471189 | AW27: 9 | AY27: 11317.55451 | AZ27: 9 | BB27: 12884.60852 | BC27: 9
B28: 10 | C28: 30 | D28: 1378.538672 | F28: 75 | G28: 2457.608916 | H28: 0 | I28: 125 | J28: 5824.72509 | K28: 0 | L28: 100 | M28: 6517.805219 | N28: 0 | O28: 120 | P28: 8109.200854 | Q28: 0 | R28: 140 | S28: 9695.680997 | T28: 0 | U28: 160 | V28: 11241.23617 | W28: 0 | X28: 180 | Y28: 12810.48026 | Z28: 0 | AA28: 0 | AB28: 0 | AC28: 0 | AE28: 930 | AG28: 1378.538672 | AH28: 10 | AJ28: 2457.608916 | AK28: 10 | AM28: 5824.72509 | AN28: 10 | AP28: 6517.805219 | AQ28: 10 | AS28: 8109.200854 | AT28: 10 | AV28: 9695.680997 | AW28: 10 | AY28: 11241.23617 | AZ28: 10 | BB28: 12810.48026 | BC28: 10
B29: 11 | C29: 30 | D29: 1367.64297 | F29: 75 | G29: 2420.333557 | H29: 0 | I29: 125 | J29: 5785.220966 | K29: 0 | L29: 100 | M29: 6449.894245 | N29: 0 | O29: 120 | P29: 8029.146859 | Q29: 0 | R29: 140 | S29: 9619.385537 | T29: 0 | U29: 160 | V29: 11164.34544 | W29: 0 | X29: 180 | Y29: 12735.73426 | Z29: 0 | AA29: 0 | AB29: 0 | AC29: 0 | AE29: 930 | AG29: 1367.64297 | AH29: 11 | AJ29: 2420.333557 | AK29: 11 | AM29: 5785.220966 | AN29: 11 | AP29: 6449.894245 | AQ29: 11 | AS29: 8029.146859 | AT29: 11 | AV29: 9619.385537 | AW29: 11 | AY29: 11164.34544 | AZ29: 11 | BB29: 12735.73426 | BC29: 11
B30: 12 | C30: 30 | D30: 1356.592912 | F30: 75 | G30: =IF((G29-F30)<=0.0001,0,(G29-F30)*(1+(G$15/12))) -> 2382.468005 | H30: 0 | I30: 125 | J30: 5745.124281 | K30: 0 | L30: 100 | M30: 6381.643717 | N30: 0 | O30: 120 | P30: 7948.692593 | Q30: 0 | R30: 140 | S30: 9542.58144 | T30: 0 | U30: 160 | V30: 11086.87803 | W30: 0 | X30: 180 | Y30: 12660.36538 | Z30: 0 | AA30: 0 | AB30: 0 | AC30: 0 | AE30: 930 | AG30: 1356.592912 | AH30: 12 | AJ30: 2382.468005 | AK30: 12 | AM30: 5745.124281 | AN30: 12 | AP30: 6381.643717 | AQ30: 12 | AS30: 7948.692593 | AT30: 12 | AV30: 9542.58144 | AW30: 12 | AY30: 11086.87803 | AZ30: 12 | BB30: 12660.36538 | BC30: 12
B31: 13 | C31: 30 | D31: 1345.386311 | F31: 75 | G31: 2344.002915 | H31: 0 | I31: 125 | J31: 5704.426145 | K31: 0 | L31: 100 | M31: 6313.051935 | N31: 0 | O31: 120 | P31: 7867.836056 | Q31: 0 | R31: 140 | S31: 9465.265317 | T31: 0 | U31: 160 | V31: 11008.82962 | W31: 0 | X31: 180 | Y31: 12584.36843 | Z31: 0 | AA31: 0 | AB31: 0 | AC31: 0 | AE31: 930 | AG31: 1345.386311 | AH31: 13 | AJ31: 2344.002915 | AK31: 13 | AM31: 5704.426145 | AN31: 13 | AP31: 6313.051935 | AQ31: 13 | AS31: 7867.836056 | AT31: 13 | AV31: 9465.265317 | AW31: 13 | AY31: 11008.82962 | AZ31: 13 | BB31: 12584.36843 | BC31: 13
B32: 14 | C32: 30 | D32: 1334.020951 | F32: 75 | G32: 2304.928795 | H32: 0 | I32: 125 | J32: 5663.117537 | K32: 0 | L32: 100 | M32: 6244.117195 | N32: 0 | O32: 120 | P32: 7786.575236 | Q32: 0 | R32: 140 | S32: 9387.433752 | T32: 0 | U32: 160 | V32: 10930.19584 | W32: 0 | X32: 180 | Y32: 12507.73816 | Z32: 0 | AA32: 0 | AB32: 0 | AC32: 0 | AE32: 930 | AG32: 1334.020951 | AH32: 14 | AJ32: 2304.928795 | AK32: 14 | AM32: 5663.117537 | AN32: 14 | AP32: 6244.117195 | AQ32: 14 | AS32: 7786.575236 | AT32: 14 | AV32: 9387.433752 | AW32: 14 | AY32: 10930.19584 | AZ32: 14 | BB32: 12507.73816 | BC32: 14
B33: 15 | C33: 30 | D33: 1322.494581 | F33: 75 | G33: 2265.236001 | H33: 0 | I33: 125 | J33: 5621.1893 | K33: 0 | L33: 100 | M33: 6174.837781 | N33: 0 | O33: 120 | P33: 7704.908112 | Q33: 0 | R33: 140 | S33: 9309.08331 | T33: 0 | U33: 160 | V33: 10850.97231 | W33: 0 | X33: 180 | Y33: 12430.46931 | Z33: 0 | AA33: 0 | AB33: 0 | AC33: 0 | AE33: 930 | AG33: 1322.494581 | AH33: 15 | AJ33: 2265.236001 | AK33: 15 | AM33: 5621.1893 | AN33: 15 | AP33: 6174.837781 | AQ33: 15 | AS33: 7704.908112 | AT33: 15 | AV33: 9309.08331 | AW33: 15 | AY33: 10850.97231 | AZ33: 15 | BB33: 12430.46931 | BC33: 15
B34: 16 | C34: 30 | D34: 1310.804921 | F34: 75 | G34: 2224.914737 | H34: 0 | I34: 125 | J34: 5578.63214 | K34: 0 | L34: 100 | M34: 6105.21197 | N34: 0 | O34: 120 | P34: 7622.832653 | Q34: 0 | R34: 140 | S34: 9230.210532 | T34: 0 | U34: 160 | V34: 10771.1546 | W34: 0 | X34: 180 | Y34: 12352.55656 | Z34: 0 | AA34: 0 | AB34: 0 | AC34: 0 | AE34: 930 | AG34: 1310.804921 | AH34: 16 | AJ34: 2224.914737 | AK34: 16 | AM34: 5578.63214 | AN34: 16 | AP34: 6105.21197 | AQ34: 16 | AS34: 7622.832653 | AT34: 16 | AV34: 9230.210532 | AW34: 16 | AY34: 10771.1546 | AZ34: 16 | BB34: 12352.55656 | BC34: 16
B35: 17 | C35: 30 | D35: 1298.949657 | F35: 75 | G35: 2183.955054 | H35: 0 | I35: 125 | J35: 5535.436622 | K35: 0 | L35: 100 | M35: 6035.23803 | N35: 0 | O35: 120 | P35: 7540.346816 | Q35: 0 | R35: 140 | S35: 9150.811936 | T35: 0 | U35: 160 | V35: 10690.73826 | W35: 0 | X35: 180 | Y35: 12273.99453 | Z35: 0 | AA35: 0 | AB35: 0 | AC35: 0 | AE35: 930 | AG35: 1298.949657 | AH35: 17 | AJ35: 2183.955054 | AK35: 17 | AM35: 5535.436622 | AN35: 17 | AP35: 6035.23803 | AQ35: 17 | AS35: 7540.346816 | AT35: 17 | AV35: 9150.811936 | AW35: 17 | AY35: 10690.73826 | AZ35: 17 | BB35: 12273.99453 | BC35: 17
B36: 18 | C36: 30 | D36: 1286.926444 | F36: 75 | G36: 2142.346842 | H36: 0 | I36: 125 | J36: 5491.593171 | K36: 0 | L36: 100 | M36: 5964.91422 | N36: 0 | O36: 120 | P36: 7457.44855 | Q36: 0 | R36: 140 | S36: 9070.884016 | T36: 0 | U36: 160 | V36: 10609.7188 | W36: 0 | X36: 180 | Y36: 12194.77782 | Z36: 0 | AA36: 0 | AB36: 0 | AC36: 0 | AE36: 930 | AG36: 1286.926444 | AH36: 18 | AJ36: 2142.346842 | AK36: 18 | AM36: 5491.593171 | AN36: 18 | AP36: 5964.91422 | AQ36: 18 | AS36: 7457.44855 | AT36: 18 | AV36: 9070.884016 | AW36: 18 | AY36: 10609.7188 | AZ36: 18 | BB36: 12194.77782 | BC36: 18
B37: 19 | C37: 30 | D37: 1274.732902 | F37: 75 | G37: 2100.079834 | H37: 0 | I37: 125 | J37: 5447.092069 | K37: 0 | L37: 100 | M37: 5894.238791 | N37: 0 | O37: 120 | P37: 7374.135793 | Q37: 0 | R37: 140 | S37: 8990.423242 | T37: 0 | U37: 160 | V37: 10528.09169 | W37: 0 | X37: 180 | Y37: 12114.90097 | Z37: 0 | AA37: 0 | AB37: 0 | AC37: 0 | AE37: 930 | AG37: 1274.732902 | AH37: 19 | AJ37: 2100.079834 | AK37: 19 | AM37: 5447.092069 | AN37: 19 | AP37: 5894.238791 | AQ37: 19 | AS37: 7374.135793 | AT37: 19 | AV37: 8990.423242 | AW37: 19 | AY37: 10528.09169 | AZ37: 19 | BB37: 12114.90097 | BC37: 19
B38: 20 | C38: 30 | D38: 1262.366618 | F38: 75 | G38: 2057.143598 | H38: 0 | I38: 125 | J38: 5401.92345 | K38: 0 | L38: 100 | M38: 5823.209985 | N38: 0 | O38: 120 | P38: 7290.406472 | Q38: 0 | R38: 140 | S38: 8909.426064 | T38: 0 | U38: 160 | V38: 10445.85238 | W38: 0 | X38: 180 | Y38: 12034.35847 | Z38: 0 | AA38: 0 | AB38: 0 | AC38: 0 | AE38: 930 | AG38: 1262.366618 | AH38: 20 | AJ38: 2057.143598 | AK38: 20 | AM38: 5401.92345 | AN38: 20 | AP38: 5823.209985 | AQ38: 20 | AS38: 7290.406472 | AT38: 20 | AV38: 8909.426064 | AW38: 20 | AY38: 10445.85238 | AZ38: 20 | BB38: 12034.35847 | BC38: 20
B39: 21 | C39: 30 | D39: 1249.825145 | F39: 75 | G39: 2013.527538 | H39: 0 | I39: 125 | J39: 5356.077302 | K39: 0 | L39: 100 | M39: 5751.826035 | N39: 0 | O39: 120 | P39: 7206.258504 | Q39: 0 | R39: 140 | S39: 8827.888904 | T39: 0 | U39: 160 | V39: 10362.99627 | W39: 0 | X39: 180 | Y39: 11953.1448 | Z39: 0 | AA39: 0 | AB39: 0 | AC39: 0 | AE39: 930 | AG39: 1249.825145 | AH39: 21 | AJ39: 2013.527538 | AK39: 21 | AM39: 5356.077302 | AN39: 21 | AP39: 5751.826035 | AQ39: 21 | AS39: 7206.258504 | AT39: 21 | AV39: 8827.888904 | AW39: 21 | AY39: 10362.99627 | AZ39: 21 | BB39: 11953.1448 | BC39: 21
B40: 22 | C40: 30 | D40: 1237.106001 | F40: 75 | G40: 1969.220891 | H40: 0 | I40: 125 | J40: 5309.543461 | K40: 0 | L40: 100 | M40: 5680.085165 | N40: 0 | O40: 120 | P40: 7121.689797 | Q40: 0 | R40: 140 | S40: 8745.808164 | T40: 0 | U40: 160 | V40: 10279.51874 | W40: 0 | X40: 180 | Y40: 11871.25434 | Z40: 0 | AA40: 0 | AB40: 0 | AC40: 0 | AE40: 930 | AG40: 1237.106001 | AH40: 22 | AJ40: 1969.220891 | AK40: 22 | AM40: 5309.543461 | AN40: 22 | AP40: 5680.085165 | AQ40: 22 | AS40: 7121.689797 | AT40: 22 | AV40: 8745.808164 | AW40: 22 | AY40: 10279.51874 | AZ40: 22 | BB40: 11871.25434 | BC40: 22
B41: 23 | C41: 30 | D41: 1224.20667 | F41: 75 | G41: 1924.212722 | H41: 0 | I41: 125 | J41: 5262.311613 | K41: 0 | L41: 100 | M41: 5607.985591 | N41: 0 | O41: 120 | P41: 7036.698246 | Q41: 0 | R41: 140 | S41: 8663.180218 | T41: 0 | U41: 160 | V41: 10195.41513 | W41: 0 | X41: 180 | Y41: 11788.68145 | Z41: 0 | AA41: 0 | AB41: 0 | AC41: 0 | AE41: 930 | AG41: 1224.20667 | AH41: 23 | AJ41: 1924.212722 | AK41: 23 | AM41: 5262.311613 | AN41: 23 | AP41: 5607.985591 | AQ41: 23 | AS41: 7036.698246 | AT41: 23 | AV41: 8663.180218 | AW41: 23 | AY41: 10195.41513 | AZ41: 23 | BB41: 11788.68145 | BC41: 23
B42: 24 | C42: 30 | D42: 1211.124597 | F42: 75 | G42: 1878.491923 | H42: 0 | I42: 125 | J42: 5214.371287 | K42: 0 | L42: 100 | M42: 5535.525519 | N42: 0 | O42: 120 | P42: 6951.281737 | Q42: 0 | R42: 140 | S42: 8580.00142 | T42: 0 | U42: 160 | V42: 10110.68074 | W42: 0 | X42: 180 | Y42: 11705.42047 | Z42: 0 | AA42: 0 | AB42: 0 | AC42: 0 | AE42: 930 | AG42: 1211.124597 | AH42: 24 | AJ42: 1878.491923 | AK42: 24 | AM42: 5214.371287 | AN42: 24 | AP42: 5535.525519 | AQ42: 24 | AS42: 6951.281737 | AT42: 24 | AV42: 8580.00142 | AW42: 24 | AY42: 10110.68074 | AZ42: 24 | BB42: 11705.42047 | BC42: 24
B43: 25 | C43: 30 | D43: 1197.857196 | F43: 75 | G43: 1832.047212 | H43: 0 | I43: 125 | J43: 5165.711857 | K43: 0 | L43: 100 | M43: 5462.703146 | N43: 0 | O43: 120 | P43: 6865.438146 | Q43: 0 | R43: 140 | S43: 8496.268096 | T43: 0 | U43: 160 | V43: 10025.31085 | W43: 0 | X43: 180 | Y43: 11621.46564 | Z43: 0 | AA43: 0 | AB43: 0 | AC43: 0 | AE43: 930 | AG43: 1197.857196 | AH43: 25 | AJ43: 1832.047212 | AK43: 25 | AM43: 5165.711857 | AN43: 25 | AP43: 5462.703146 | AQ43: 25 | AS43: 6865.438146 | AT43: 25 | AV43: 8496.268096 | AW43: 25 | AY43: 10025.31085 | AZ43: 25 | BB43: 11621.46564 | BC43: 25
B44: 26 | C44: 30 | D44: 1184.401839 | F44: 75 | G44: 1784.867126 | H44: 0 | I44: 125 | J44: 5116.322534 | K44: 0 | L44: 100 | M44: 5389.516662 | N44: 0 | O44: 120 | P44: 6779.165337 | Q44: 0 | R44: 140 | S44: 8411.97655 | T44: 0 | U44: 160 | V44: 9939.300681 | W44: 0 | X44: 180 | Y44: 11536.81118 | Z44: 0 | AA44: 0 | AB44: 0 | AC44: 0 | AE44: 930 | AG44: 1184.401839 | AH44: 26 | AJ44: 1784.867126 | AK44: 26 | AM44: 5116.322534 | AN44: 26 | AP44: 5389.516662 | AQ44: 26 | AS44: 6779.165337 | AT44: 26 | AV44: 8411.97655 | AW44: 26 | AY44: 9939.300681 | AZ44: 26 | BB44: 11536.81118 | BC44: 26
B45: 27 | C45: 30 | D45: 1170.755866 | F45: 75 | G45: 1736.940022 | H45: 0 | I45: 125 | J45: 5066.192372 | K45: 0 | L45: 100 | M45: 5315.964245 | N45: 0 | O45: 120 | P45: 6692.461163 | Q45: 0 | R45: 140 | S45: 8327.12306 | T45: 0 | U45: 160 | V45: 9852.645436 | W45: 0 | X45: 180 | Y45: 11451.45128 | Z45: 0 | AA45: 0 | AB45: 0 | AC45: 0 | AE45: 930 | AG45: 1170.755866 | AH45: 27 | AJ45: 1736.940022 | AK45: 27 | AM45: 5066.192372 | AN45: 27 | AP45: 5315.964245 | AQ45: 27 | AS45: 6692.461163 | AT45: 27 | AV45: 8327.12306 | AW45: 27 | AY45: 9852.645436 | AZ45: 27 | BB45: 11451.45128 | BC45: 27
B46: 28 | C46: 30 | D46: 1156.916574 | F46: 75 | G46: 1688.254073 | H46: 0 | I46: 125 | J46: 5015.310258 | K46: 0 | L46: 100 | M46: 5242.044066 | N46: 0 | O46: 120 | P46: 6605.323469 | Q46: 0 | R46: 140 | S46: 8241.70388 | T46: 0 | U46: 160 | V46: 9765.340277 | W46: 0 | X46: 180 | Y46: 11365.38004 | Z46: 0 | AA46: 0 | AB46: 0 | AC46: 0 | AE46: 930 | AG46: 1156.916574 | AH46: 28 | AJ46: 1688.254073 | AK46: 28 | AM46: 5015.310258 | AN46: 28 | AP46: 5242.044066 | AQ46: 28 | AS46: 6605.323469 | AT46: 28 | AV46: 8241.70388 | AW46: 28 | AY46: 9765.340277 | AZ46: 28 | BB46: 11365.38004 | BC46: 28
B47: 29 | C47: 30 | D47: 1142.881225 | F47: 75 | G47: 1638.797262 | H47: 0 | I47: 125 | J47: 4963.664912 | K47: 0 | L47: 100 | M47: 5167.754287 | N47: 0 | O47: 120 | P47: 6517.750086 | Q47: 0 | R47: 140 | S47: 8155.71524 | T47: 0 | U47: 160 | V47: 9677.380329 | W47: 0 | X47: 180 | Y47: 11278.59154 | Z47: 0 | AA47: 0 | AB47: 0 | AC47: 0 | AE47: 930 | AG47: 1142.881225 | AH47: 29 | AJ47: 1638.797262 | AK47: 29 | AM47: 4963.664912 | AN47: 29 | AP47: 5167.754287 | AQ47: 29 | AS47: 6517.750086 | AT47: 29 | AV47: 8155.71524 | AW47: 29 | AY47: 9677.380329 | AZ47: 29 | BB47: 11278.59154 | BC47: 29
B48: 30 | C48: 30 | D48: 1128.647042 | F48: 75 | G48: 1588.557386 | H48: 0 | I48: 125 | J48: 4911.244886 | K48: 0 | L48: 100 | M48: 5093.093058 | N48: 0 | O48: 120 | P48: 6429.738837 | Q48: 0 | R48: 140 | S48: 8069.153341 | T48: 0 | U48: 160 | V48: 9588.760681 | W48: 0 | X48: 180 | Y48: 11191.0798 | Z48: 0 | AA48: 0 | AB48: 0 | AC48: 0 | AE48: 930 | AG48: 1128.647042 | AH48: 30 | AJ48: 1588.557386 | AK48: 30 | AM48: 4911.244886 | AN48: 30 | AP48: 5093.093058 | AQ48: 30 | AS48: 6429.738837 | AT48: 30 | AV48: 8069.153341 | AW48: 30 | AY48: 9588.760681 | AZ48: 30 | BB48: 11191.0798 | BC48: 30
B49: 31 | C49: 30 | D49: 1114.211209 | F49: 75 | G49: 1537.522044 | H49: 0 | I49: 125 | J49: 4858.038559 | K49: 0 | L49: 100 | M49: 5018.058524 | N49: 0 | O49: 120 | P49: 6341.287531 | Q49: 0 | R49: 140 | S49: 7982.014364 | T49: 0 | U49: 160 | V49: 9499.476386 | W49: 0 | X49: 180 | Y49: 11102.8388 | Z49: 0 | AA49: 0 | AB49: 0 | AC49: 0 | AE49: 930 | AG49: 1114.211209 | AH49: 31 | AJ49: 1537.522044 | AK49: 31 | AM49: 4858.038559 | AN49: 31 | AP49: 5018.058524 | AQ49: 31 | AS49: 6341.287531 | AT49: 31 | AV49: 7982.014364 | AW49: 31 | AY49: 9499.476386 | AZ49: 31 | BB49: 11102.8388 | BC49: 31
B50: 32 | C50: 30 | D50: 1099.570868 | F50: 75 | G50: 1485.678643 | H50: 0 | I50: 125 | J50: 4804.034137 | K50: 0 | L50: 100 | M50: 4942.648816 | N50: 0 | O50: 120 | P50: 6252.393969 | Q50: 0 | R50: 140 | S50: 7894.294459 | T50: 0 | U50: 160 | V50: 9409.522459 | W50: 0 | X50: 180 | Y50: 11013.86246 | Z50: 0 | AA50: 0 | AB50: 0 | AC50: 0 | AE50: 930 | AG50: 1099.570868 | AH50: 32 | AJ50: 1485.678643 | AK50: 32 | AM50: 4804.034137 | AN50: 32 | AP50: 4942.648816 | AQ50: 32 | AS50: 6252.393969 | AT50: 32 | AV50: 7894.294459 | AW50: 32 | AY50: 9409.522459 | AZ50: 32 | BB50: 11013.86246 | BC50: 32
B51: 33 | C51: 30 | D51: 1084.723122 | F51: 75 | G51: 1433.014388 | H51: 0 | I51: 125 | J51: 4749.219649 | K51: 0 | L51: 100 | M51: 4866.86206 | N51: 0 | O51: 120 | P51: 6163.055939 | Q51: 0 | R51: 140 | S51: 7805.989756 | T51: 0 | U51: 160 | V51: 9318.893878 | W51: 0 | X51: 180 | Y51: 10924.14464 | Z51: 0 | AA51: 0 | AB51: 0 | AC51: 0 | AE51: =SUM(C51,F51,I51,L51,O51,R51,U51,X51,AA51) -> 930 | AG51: =D51 -> 1084.723122 | AH51: 33 | AJ51: =G51 -> 1433.014388 | AK51: 33 | AM51: =J51 -> 4749.219649 | AN51: 33 | AP51: =M51 -> 4866.86206 | AQ51: 33 | AS51: =P51 -> 6163.055939 | AT51: 33 | AV51: =S51 -> 7805.989756 | AW51: 33 | AY51: =V51 -> 9318.893878 | AZ51: 33 | BB51: =Y51 -> 10924.14464 | BC51: 33
B52: 34 | C52: =IF((D51-$J$6-$D$14-SUM(H52,K52,N52,Q52,T52,W52,Z52,AC52))<=0,($J$6+(D51-$J$6)),($J$6+$D$14+SUM(H52,K52,N52,Q52,T52,W52,Z52,AC52))) -> 30 | D52: 1069.665032 | F52: =IF(AND(((G51-$J$6+C52-G$14-D$14-SUM(K52,N52,Q52,T52,W52,Z52,AC52))<=0),D52=0),G51,IF(D52=0,$J$6-C52+G$14+D$14+SUM(K52,N52,Q52,T52,W52,Z52,AC52),G$14)) -> 75 | G52: 1379.516283 | H52: 0 | I52: =IF(AND(((J51-$J$6+F52+C52-J$14-G$14-D$14-SUM(N52,Q52,T52,W52,Z52,AC52))<=0),G52+D52=0),J51,IF(J$14>=J51,J51,IF(AND(G52=0,D52=0),$J$6-F52-C52+J$14+G$14+D$14+SUM(N52,Q52,T52,W52,Z52,AC52),J$14))) -> 125 | J52: 4693.582944 | K52: 0 | L52: =IF(AND(((M51-$J$6+I52+F52+C52-M$14-J$14-G$14-D$14-SUM(Q52,T52,W52,Z52,AC52))<=0),J52+G52+D52=0),M51,IF(M$14>=M51,M51, IF(AND(J52=0,G52=0,D52=0),$J$6-I52-F52-C52+M$14+J$14+G$14+D$14+SUM(Q52,T52,W52,Z52,AC52),M$14))) -> 100 | M52: 4790.696371 | N52: 0 | O52: =IF(AND(((P51-$J$6+L52+I52+F52+C52-P$14-M$14-J$14-G$14-D$14-SUM(T52,W52,Z52,AC52))<=0),M52+J52+G52+D52=0),P51,IF(P$14>=P51,P51,IF(AND(M52=0,J52=0,G52=0,D52=0),$J$6-L52-I52-F52-C52+P$14+M$14+J$14+G$14+D$14+SUM(T52,W52,Z52,AC52),P$14))) -> 120 | P52: 6073.271218 | Q52: 0 | R52: =IF(AND(((S51-$J$6+O52+L52+I52+F52+C52-S$14-P$14-M$14-J$14-G$14-D$14-SUM(W52,Z52,AC52))<=0),P52+M52+J52+G52+D52=0),S51,IF(S$14>=S51,S51,IF(AND(P52=0,M52=0,J52=0,G52=0),$J$6-O52-L52-I52-F52-C52+S$14+P$14+M$14+J$14+G$14+D$14+SUM(W52,Z52,AC52),S$14))) -> 140 | S52: 7717.096354 | T52: =IF(S51=0,S$14,0) -> 0 | U52: =IF(AND(((V51-$J$6+R52+O52+L52+I52+F52+C52-V$14-S$14-P$14-M$14-J$14-G$14-D$14-SUM(Z52,AC52))<=0),S52+P52+M52+J52+G52+D52=0),V51,IF(V$14>=V51,V51,IF(AND(S52=0,P52=0,M52=0,J52=0,G52=0,D52=0),$J$6-R52-O52-L52-I52-F52-C52+V$14+S$14+P$14+M$14+J$14+G$14+D$14+SUM(Z52,AC52),V$14))) -> 160 | V52: 9227.585582 | W52: =IF(V51=0,V$14,0) -> 0 | X52: =IF(AND(((Y51-$J$6+U52+R52+O52+L52+I52+F52+C52-Y$14-V$14-S$14-P$14-M$14-J$14-G$14-D$14-SUM(AC52))<=0),V52+S52+P52+M52+J52+G52+D52=0),Y51,IF(Y$14>=Y51,Y51,IF(AND(V52=0,S52=0,P52=0,M52=0,J52=0,G52=0,D52=0),$J$6-U52-R52-O52-L52-I52-F52-C52+Y$14+V$14+S$14+P$14+M$14+J$14+G$14+D$14+SUM(AC52),Y$14))) -> 180 | Y52: 10833.67918 | Z52: =IF(Y51=0,Y$14,0) -> 0 | AA52: =IF(AND(((AB51-$J$6+X52+U52+R52+O52+L52+I52+F52+C52-AB$14-Y$14-V$14-S$14-P$14-M$14-J$14-G$14-D$14)<=0),Y52+V52+S52+P52+M52+J52+G52+D52=0),AB51,IF(AB$14>=AB51,AB51,IF(AND(Y52=0,V52=0,S52=0,P52=0,M52=0,J52=0,G52=0,D52=0),$J$6-X52-U52-R52-O52-L52-I52-F52-C52+AB$14+Y$14+V$14+S$14+P$14+M$14+J$14+G$14+D$14,AB$14))) -> 0 | AB52: 0 | AC52: =IF(AB51=0,AB$14,0) -> 0 | AE52: 930 | AG52: 1069.665032 | AH52: 34 | AJ52: 1379.516283 | AK52: 34 | AM52: 4693.582944 | AN52: 34 | AP52: 4790.696371 | AQ52: 34 | AS52: 6073.271218 | AT52: 34 | AV52: 7717.096354 | AW52: 34 | AY52: 9227.585582 | AZ52: 34 | BB52: 10833.67918 | BC52: 34
B53: 35 | C53: 30 | D53: 1054.39362 | F53: 75 | G53: 1325.171124 | H53: 0 | I53: 125 | J53: 4637.111688 | K53: 0 | L53: 100 | M53: 4714.149852 | N53: 0 | O53: 120 | P53: 5983.037574 | Q53: 0 | R53: 140 | S53: 7627.61033 | T53: 0 | U53: 160 | V53: 9135.592474 | W53: 0 | X53: 180 | Y53: 10742.45984 | Z53: 0 | AA53: 0 | AB53: 0 | AC53: 0 | AE53: 930 | AG53: 1054.39362 | AH53: 35 | AJ53: 1325.171124 | AK53: 35 | AM53: 4637.111688 | AN53: 35 | AP53: 4714.149852 | AQ53: 35 | AS53: 5983.037574 | AT53: 35 | AV53: 7627.61033 | AW53: 35 | AY53: 9135.592474 | AZ53: 35 | BB53: 10742.45984 | BC53: 35
B54: 36 | C54: 30 | D54: 1038.905863 | F54: 75 | G54: 1269.9655 | H54: 0 | I54: 125 | J54: 4579.793363 | K54: 0 | L54: 100 | M54: 4637.220602 | N54: 0 | O54: 120 | P54: 5892.352762 | Q54: 0 | R54: 140 | S54: 7537.527732 | T54: 0 | U54: 160 | V54: 9042.909417 | W54: 0 | X54: 180 | Y54: 10650.48034 | Z54: 0 | AA54: 0 | AB54: 0 | AC54: 0 | AE54: 930 | AG54: 1038.905863 | AH54: 36 | AJ54: 1269.9655 | AK54: 36 | AM54: 4579.793363 | AN54: 36 | AP54: 4637.220602 | AQ54: 36 | AS54: 5892.352762 | AT54: 36 | AV54: 7537.527732 | AW54: 36 | AY54: 9042.909417 | AZ54: 36 | BB54: 10650.48034 | BC54: 36
B55: 37 | C55: 30 | D55: 1023.198696 | F55: 75 | G55: 1213.885787 | H55: 0 | I55: 125 | J55: 4521.615264 | K55: 0 | L55: 100 | M55: 4559.906705 | N55: 0 | O55: 120 | P55: 5801.214526 | Q55: 0 | R55: 140 | S55: 7446.844584 | T55: 0 | U55: 160 | V55: 8949.531238 | W55: 0 | X55: 180 | Y55: 10557.73434 | Z55: 0 | AA55: 0 | AB55: 0 | AC55: 0 | AE55: 930 | AG55: 1023.198696 | AH55: 37 | AJ55: 1213.885787 | AK55: 37 | AM55: 4521.615264 | AN55: 37 | AP55: 4559.906705 | AQ55: 37 | AS55: 5801.214526 | AT55: 37 | AV55: 7446.844584 | AW55: 37 | AY55: 8949.531238 | AZ55: 37 | BB55: 10557.73434 | BC55: 37
B56: 38 | C56: 30 | D56: 1007.269011 | F56: 75 | G56: 1156.918146 | H56: 0 | I56: 125 | J56: 4462.564493 | K56: 0 | L56: 100 | M56: 4482.206238 | N56: 0 | O56: 120 | P56: 5709.620599 | Q56: 0 | R56: 140 | S56: 7355.556881 | T56: 0 | U56: 160 | V56: 8855.452722 | W56: 0 | X56: 180 | Y56: 10464.21546 | Z56: 0 | AA56: 0 | AB56: 0 | AC56: 0 | AE56: 930 | AG56: 1007.269011 | AH56: 38 | AJ56: 1156.918146 | AK56: 38 | AM56: 4462.564493 | AN56: 38 | AP56: 4482.206238 | AQ56: 38 | AS56: 5709.620599 | AT56: 38 | AV56: 7355.556881 | AW56: 38 | AY56: 8855.452722 | AZ56: 38 | BB56: 10464.21546 | BC56: 38
B57: 39 | C57: 30 | D57: 991.1136557 | F57: 75 | G57: 1099.048516 | H57: 0 | I57: 125 | J57: 4402.62796 | K57: 0 | L57: 100 | M57: 4404.117269 | N57: 0 | O57: 120 | P57: 5617.568702 | Q57: 0 | R57: 140 | S57: 7263.660593 | T57: 0 | U57: 160 | V57: 8760.668618 | W57: 0 | X57: 180 | Y57: 10369.91726 | Z57: 0 | AA57: 0 | AB57: 0 | AC57: 0 | AE57: 930 | AG57: 991.1136557 | AH57: 39 | AJ57: 1099.048516 | AK57: 39 | AM57: 4402.62796 | AN57: 39 | AP57: 4404.117269 | AQ57: 39 | AS57: 5617.568702 | AT57: 39 | AV57: 7263.660593 | AW57: 39 | AY57: 8760.668618 | AZ57: 39 | BB57: 10369.91726 | BC57: 39
B58: 40 | C58: 30 | D58: 974.7294325 | F58: 75 | G58: 1040.262618 | H58: 0 | I58: 125 | J58: 4341.79238 | K58: 0 | L58: 100 | M58: 4325.637856 | N58: 0 | O58: 120 | P58: 5525.056545 | Q58: 0 | R58: 140 | S58: 7171.151664 | T58: 0 | U58: 160 | V58: 8665.173632 | W58: 0 | X58: 180 | Y58: 10274.83324 | Z58: 0 | AA58: 0 | AB58: 0 | AC58: 0 | AE58: 930 | AG58: 974.7294325 | AH58: 40 | AJ58: 1040.262618 | AK58: 40 | AM58: 4341.79238 | AN58: 40 | AP58: 4325.637856 | AQ58: 40 | AS58: 5525.056545 | AT58: 40 | AV58: 7171.151664 | AW58: 40 | AY58: 8665.173632 | AZ58: 40 | BB58: 10274.83324 | BC58: 40
B59: 41 | C59: 30 | D59: 958.1130994 | F59: 75 | G59: 980.5459425 | H59: 0 | I59: 125 | J59: 4280.044265 | K59: 0 | L59: 100 | M59: 4246.766045 | N59: 0 | O59: 120 | P59: 5432.081828 | Q59: 0 | R59: 140 | S59: 7078.026008 | T59: 0 | U59: 160 | V59: 8568.962435 | W59: 0 | X59: 180 | Y59: 10178.95685 | Z59: 0 | AA59: 0 | AB59: 0 | AC59: 0 | AE59: 930 | AG59: 958.1130994 | AH59: 41 | AJ59: 980.5459425 | AK59: 41 | AM59: 4280.044265 | AN59: 41 | AP59: 4246.766045 | AQ59: 41 | AS59: 5432.081828 | AT59: 41 | AV59: 7078.026008 | AW59: 41 | AY59: 8568.962435 | AZ59: 41 | BB59: 10178.95685 | BC59: 41
B60: 42 | C60: 30 | D60: 941.2613683 | F60: 75 | G60: 919.8837532 | H60: 0 | I60: 125 | J60: 4217.369929 | K60: 0 | L60: 100 | M60: 4167.499875 | N60: 0 | O60: 120 | P60: 5338.642237 | Q60: 0 | R60: 140 | S60: 6984.279515 | T60: 0 | U60: 160 | V60: 8472.029653 | W60: 0 | X60: 180 | Y60: 10082.28149 | Z60: 0 | AA60: 0 | AB60: 0 | AC60: 0 | AE60: 930 | AG60: 941.2613683 | AH60: 42 | AJ60: 919.8837532 | AK60: 42 | AM60: 4217.369929 | AN60: 42 | AP60: 4167.499875 | AQ60: 42 | AS60: 5338.642237 | AT60: 42 | AV60: 6984.279515 | AW60: 42 | AY60: 8472.029653 | AZ60: 42 | BB60: 10082.28149 | BC60: 42
B61: 43 | C61: 30 | D61: 924.1709044 | F61: 75 | G61: 858.2610793 | H61: 0 | I61: 125 | J61: 4153.755478 | K61: 0 | L61: 100 | M61: 4087.837375 | N61: 0 | O61: 120 | P61: 5244.735448 | Q61: 0 | R61: 140 | S61: 6889.908045 | T61: 0 | U61: 160 | V61: 8374.369875 | W61: 0 | X61: 180 | Y61: 9984.800499 | Z61: 0 | AA61: 0 | AB61: 0 | AC61: 0 | AE61: 930 | AG61: 924.1709044 | AH61: 43 | AJ61: 858.2610793 | AK61: 43 | AM61: 4153.755478 | AN61: 43 | AP61: 4087.837375 | AQ61: 43 | AS61: 5244.735448 | AT61: 43 | AV61: 6889.908045 | AW61: 43 | AY61: 8374.369875 | AZ61: 43 | BB61: 9984.800499 | BC61: 43
B62: 44 | C62: 30 | D62: 906.8383255 | F62: 75 | G62: 795.6627131 | H62: 0 | I62: 125 | J62: 4089.18681 | K62: 0 | L62: 100 | M62: 4007.776561 | N62: 0 | O62: 120 | P62: 5150.359125 | Q62: 0 | R62: 140 | S62: 6794.907432 | T62: 0 | U62: 160 | V62: 8275.977649 | W62: 0 | X62: 180 | Y62: 9886.50717 | Z62: 0 | AA62: 0 | AB62: 0 | AC62: 0 | AE62: 930 | AG62: 906.8383255 | AH62: 44 | AJ62: 795.6627131 | AK62: 44 | AM62: 4089.18681 | AN62: 44 | AP62: 4007.776561 | AQ62: 44 | AS62: 5150.359125 | AT62: 44 | AV62: 6794.907432 | AW62: 44 | AY62: 8275.977649 | AZ62: 44 | BB62: 9886.50717 | BC62: 44
B63: 45 | C63: 30 | D63: 889.2602018 | F63: 75 | G63: 732.073206 | H63: 0 | I63: 125 | J63: 4023.649613 | K63: 0 | L63: 100 | M63: 3927.315444 | N63: 0 | O63: 120 | P63: 5055.510921 | Q63: 0 | R63: 140 | S63: 6699.273482 | T63: 0 | U63: 160 | V63: 8176.847482 | W63: 0 | X63: 180 | Y63: 9787.39473 | Z63: 0 | AA63: 0 | AB63: 0 | AC63: 0 | AE63: 930 | AG63: 889.2602018 | AH63: 45 | AJ63: 732.073206 | AK63: 45 | AM63: 4023.649613 | AN63: 45 | AP63: 3927.315444 | AQ63: 45 | AS63: 5055.510921 | AT63: 45 | AV63: 6699.273482 | AW63: 45 | AY63: 8176.847482 | AZ63: 45 | BB63: 9787.39473 | BC63: 45
B64: 46 | C64: 30 | D64: 871.4330547 | F64: 75 | G64: 667.4768651 | H64: 0 | I64: 125 | J64: 3957.129357 | K64: 0 | L64: 100 | M64: 3846.452021 | N64: 0 | O64: 120 | P64: 4960.188476 | Q64: 0 | R64: 140 | S64: 6603.001972 | T64: 0 | U64: 160 | V64: 8076.973838 | W64: 0 | X64: 180 | Y64: 9687.456352 | Z64: 0 | AA64: 0 | AB64: 0 | AC64: 0 | AE64: 930 | AG64: 871.4330547 | AH64: 46 | AJ64: 667.4768651 | AK64: 46 | AM64: 3957.129357 | AN64: 46 | AP64: 3846.452021 | AQ64: 46 | AS64: 4960.188476 | AT64: 46 | AV64: 6603.001972 | AW64: 46 | AY64: 8076.973838 | AZ64: 46 | BB64: 9687.456352 | BC64: 46
B65: 47 | C65: 30 | D65: 853.3533563 | F65: 75 | G65: 601.8577488 | H65: 0 | I65: 125 | J65: 3889.611297 | K65: 0 | L65: 100 | M65: 3765.184282 | N65: 0 | O65: 120 | P65: 4864.389418 | Q65: 0 | R65: 140 | S65: 6506.088651 | T65: 0 | U65: 160 | V65: 7976.351142 | W65: 0 | X65: 180 | Y65: 9586.685155 | Z65: 0 | AA65: 0 | AB65: 0 | AC65: 0 | AE65: 930 | AG65: 853.3533563 | AH65: 47 | AJ65: 601.8577488 | AK65: 47 | AM65: 3889.611297 | AN65: 47 | AP65: 3765.184282 | AQ65: 47 | AS65: 4864.389418 | AT65: 47 | AV65: 6506.088651 | AW65: 47 | AY65: 7976.351142 | AZ65: 47 | BB65: 9586.685155 | BC65: 47
B66: 48 | C66: 30 | D66: 835.0175288 | F66: 75 | G66: 535.1996632 | H66: 0 | I66: 125 | J66: 3821.080467 | K66: 0 | L66: 100 | M66: 3683.510203 | N66: 0 | O66: 120 | P66: 4768.111365 | Q66: 0 | R66: 140 | S66: 6408.529242 | T66: 0 | U66: 160 | V66: 7874.973775 | W66: 0 | X66: 180 | Y66: 9485.074198 | Z66: 0 | AA66: 0 | AB66: 0 | AC66: 0 | AE66: 930 | AG66: 835.0175288 | AH66: 48 | AJ66: 535.1996632 | AK66: 48 | AM66: 3821.080467 | AN66: 48 | AP66: 3683.510203 | AQ66: 48 | AS66: 4768.111365 | AT66: 48 | AV66: 6408.529242 | AW66: 48 | AY66: 7874.973775 | AZ66: 48 | BB66: 9485.074198 | BC66: 48
B67: 49 | C67: 30 | D67: 816.4219438 | F67: 75 | G67: 467.4861578 | H67: 0 | I67: 125 | J67: 3751.521674 | K67: 0 | L67: 100 | M67: 3601.427754 | N67: 0 | O67: 120 | P67: 4671.351922 | Q67: 0 | R67: 140 | S67: 6310.319437 | T67: 0 | U67: 160 | V67: 7772.836078 | W67: 0 | X67: 180 | Y67: 9382.616483 | Z67: 0 | AA67: 0 | AB67: 0 | AC67: 0 | AE67: 930 | AG67: 816.4219438 | AH67: 49 | AJ67: 467.4861578 | AK67: 49 | AM67: 3751.521674 | AN67: 49 | AP67: 3601.427754 | AQ67: 49 | AS67: 4671.351922 | AT67: 49 | AV67: 6310.319437 | AW67: 49 | AY67: 7772.836078 | AZ67: 49 | BB67: 9382.616483 | BC67: 49
B68: 50 | C68: 30 | D68: 797.5629213 | F68: 75 | G68: 398.700522 | H68: 0 | I68: 125 | J68: 3680.919499 | K68: 0 | L68: 100 | M68: 3518.934893 | N68: 0 | O68: 120 | P68: 4574.108682 | Q68: 0 | R68: 140 | S68: 6211.4549 | T68: 0 | U68: 160 | V68: 7669.932349 | W68: 0 | X68: 180 | Y68: 9279.304954 | Z68: 0 | AA68: 0 | AB68: 0 | AC68: 0 | AE68: 930 | AG68: 797.5629213 | AH68: 50 | AJ68: 398.700522 | AK68: 50 | AM68: 3680.919499 | AN68: 50 | AP68: 3518.934893 | AQ68: 50 | AS68: 4574.108682 | AT68: 50 | AV68: 6211.4549 | AW68: 50 | AY68: 7669.932349 | AZ68: 50 | BB68: 9279.304954 | BC68: 50
B69: 51 | C69: 30 | D69: 778.4367294 | F69: 75 | G69: 328.8257803 | H69: 0 | I69: 125 | J69: 3609.258291 | K69: 0 | L69: 100 | M69: 3436.029567 | N69: 0 | O69: 120 | P69: 4476.379225 | Q69: 0 | R69: 140 | S69: 6111.931266 | T69: 0 | U69: 160 | V69: 7566.256842 | W69: 0 | X69: 180 | Y69: 9175.132495 | Z69: 0 | AA69: 0 | AB69: 0 | AC69: 0 | AE69: 930 | AG69: 778.4367294 | AH69: 51 | AJ69: 328.8257803 | AK69: 51 | AM69: 3609.258291 | AN69: 51 | AP69: 3436.029567 | AQ69: 51 | AS69: 4476.379225 | AT69: 51 | AV69: 6111.931266 | AW69: 51 | AY69: 7566.256842 | AZ69: 51 | BB69: 9175.132495 | BC69: 51
B70: 52 | C70: 30 | D70: 759.0395831 | F70: 75 | G70: 257.8446884 | H70: 0 | I70: 125 | J70: 3536.522166 | K70: 0 | L70: 100 | M70: 3352.709715 | N70: 0 | O70: 120 | P70: 4378.161121 | Q70: 0 | R70: 140 | S70: 6011.744141 | T70: 0 | U70: 160 | V70: 7461.803768 | W70: 0 | X70: 180 | Y70: 9070.091933 | Z70: 0 | AA70: 0 | AB70: 0 | AC70: 0 | AE70: 930 | AG70: 759.0395831 | AH70: 52 | AJ70: 257.8446884 | AK70: 52 | AM70: 3536.522166 | AN70: 52 | AP70: 3352.709715 | AQ70: 52 | AS70: 4378.161121 | AT70: 52 | AV70: 6011.744141 | AW70: 52 | AY70: 7461.803768 | AZ70: 52 | BB70: 9070.091933 | BC70: 52
B71: 53 | C71: 30 | D71: 739.3676438 | F71: 75 | G71: 185.7397293 | H71: 0 | I71: 125 | J71: 3462.694998 | K71: 0 | L71: 100 | M71: 3268.973264 | N71: 0 | O71: 120 | P71: 4279.451927 | Q71: 0 | R71: 140 | S71: 5910.889102 | T71: 0 | U71: 160 | V71: 7356.567296 | W71: 0 | X71: 180 | Y71: 8964.176032 | Z71: 0 | AA71: 0 | AB71: 0 | AC71: 0 | AE71: 930 | AG71: 739.3676438 | AH71: 53 | AJ71: 185.7397293 | AK71: 53 | AM71: 3462.694998 | AN71: 53 | AP71: 3268.973264 | AQ71: 53 | AS71: 4279.451927 | AT71: 53 | AV71: 5910.889102 | AW71: 53 | AY71: 7356.567296 | AZ71: 53 | BB71: 8964.176032 | BC71: 53
B72: 54 | C72: 30 | D72: 719.4170188 | F72: 75 | G72: 112.4931084 | H72: 0 | I72: 125 | J72: 3387.760423 | K72: 0 | L72: 100 | M72: 3184.81813 | N72: 0 | O72: 120 | P72: 4180.249186 | Q72: 0 | R72: 140 | S72: 5809.361696 | T72: 0 | U72: 160 | V72: 7250.541551 | W72: 0 | X72: 180 | Y72: 8857.377499 | Z72: 0 | AA72: 0 | AB72: 0 | AC72: 0 | AE72: 930 | AG72: 719.4170188 | AH72: 54 | AJ72: 112.4931084 | AK72: 54 | AM72: 3387.760423 | AN72: 54 | AP72: 3184.81813 | AQ72: 54 | AS72: 4180.249186 | AT72: 54 | AV72: 5809.361696 | AW72: 54 | AY72: 7250.541551 | AZ72: 54 | BB72: 8857.377499 | BC72: 54
B73: 55 | C73: 30 | D73: 699.1837599 | F73: 75 | G73: 38.08674928 | H73: 0 | I73: 125 | J73: 3311.701829 | K73: 0 | L73: 100 | M73: 3100.242221 | N73: 0 | O73: 120 | P73: 4080.550432 | Q73: 0 | R73: 140 | S73: 5707.157441 | T73: 0 | U73: 160 | V73: 7143.720613 | W73: 0 | X73: 180 | Y73: 8749.688978 | Z73: 0 | AA73: 0 | AB73: 0 | AC73: 0 | AE73: 930 | AG73: 699.1837599 | AH73: 55 | AJ73: 38.08674928 | AK73: 55 | AM73: 3311.701829 | AN73: 55 | AP73: 3100.242221 | AQ73: 55 | AS73: 4080.550432 | AT73: 55 | AV73: 5707.157441 | AW73: 55 | AY73: 7143.720613 | AZ73: 55 | BB73: 8749.688978 | BC73: 55
B74: 56 | C74: 30 | D74: 678.6638631 | F74: 75 | G74: 0 | H74: 0 | I74: 125 | J74: 3234.502357 | K74: 0 | L74: 100 | M74: 3015.243432 | N74: 0 | O74: 120 | P74: 3980.353184 | Q74: 0 | R74: 140 | S74: 5604.271824 | T74: 0 | U74: 160 | V74: 7036.098517 | W74: 0 | X74: 180 | Y74: 8641.103053 | Z74: 0 | AA74: 0 | AB74: 0 | AC74: 0 | AE74: 930 | AG74: 678.6638631 | AH74: 56 | AJ74: 0 | AK74: 56 | AM74: 3234.502357 | AN74: 56 | AP74: 3015.243432 | AQ74: 56 | AS74: 3980.353184 | AT74: 56 | AV74: 5604.271824 | AW74: 56 | AY74: 7036.098517 | AZ74: 56 | BB74: 8641.103053 | BC74: 56
B75: 57 | C75: 105 | D75: 581.7907679 | F75: 75 | G75: 0 | H75: 75 | I75: 125 | J75: 3156.144892 | K75: 0 | L75: 100 | M75: 2929.819649 | N75: 0 | O75: 120 | P75: 3879.65495 | Q75: 0 | R75: 140 | S75: 5500.700303 | T75: 0 | U75: 160 | V75: 6927.669256 | W75: 0 | X75: 180 | Y75: 8531.612245 | Z75: 0 | AA75: 0 | AB75: 0 | AC75: 0 | AE75: 1005 | AG75: 581.7907679 | AH75: 57 | AJ75: 0 | AK75: 57 | AM75: 3156.144892 | AN75: 57 | AP75: 2929.819649 | AQ75: 57 | AS75: 3879.65495 | AT75: 57 | AV75: 5500.700303 | AW75: 57 | AY75: 6927.669256 | AZ75: 57 | BB75: 8531.612245 | BC75: 57
B76: 58 | C76: 105 | D76: 483.5453037 | F76: 75 | G76: 0 | H76: 75 | I76: 125 | J76: 3076.612066 | K76: 0 | L76: 100 | M76: 2843.968747 | N76: 0 | O76: 120 | P76: 3778.453225 | Q76: 0 | R76: 140 | S76: 5396.438305 | T76: 0 | U76: 160 | V76: 6818.426775 | W76: 0 | X76: 180 | Y76: 8421.209014 | Z76: 0 | AA76: 0 | AB76: 0 | AC76: 0 | AE76: 1005 | AG76: 483.5453037 | AH76: 58 | AJ76: 0 | AK76: 58 | AM76: 3076.612066 | AN76: 58 | AP76: 2843.968747 | AQ76: 58 | AS76: 3778.453225 | AT76: 58 | AV76: 5396.438305 | AW76: 58 | AY76: 6818.426775 | AZ76: 58 | BB76: 8421.209014 | BC76: 58
B77: 59 | C77: 105 | D77: 383.9080289 | F77: 75 | G77: 0 | H77: 75 | I77: 125 | J77: 2995.886247 | K77: 0 | L77: 100 | M77: 2757.688591 | N77: 0 | O77: 120 | P77: 3676.745491 | Q77: 0 | R77: 140 | S77: 5291.481227 | T77: 0 | U77: 160 | V77: 6708.364976 | W77: 0 | X77: 180 | Y77: 8309.885756 | Z77: 0 | AA77: 0 | AB77: 0 | AC77: 0 | AE77: 1005 | AG77: 383.9080289 | AH77: 59 | AJ77: 0 | AK77: 59 | AM77: 2995.886247 | AN77: 59 | AP77: 2757.688591 | AQ77: 59 | AS77: 3676.745491 | AT77: 59 | AV77: 5291.481227 | AW77: 59 | AY77: 6708.364976 | AZ77: 59 | BB77: 8309.885756 | BC77: 59
B78: 60 | C78: 105 | D78: 282.859226 | F78: 75 | G78: 0 | H78: 75 | I78: 125 | J78: 2913.94954 | K78: 0 | L78: 100 | M78: 2670.977034 | N78: 0 | O78: 120 | P78: 3574.529219 | Q78: 0 | R78: 140 | S78: 5185.824435 | T78: 0 | U78: 160 | V78: 6597.477714 | W78: 0 | X78: 180 | Y78: 8197.634804 | Z78: 0 | AA78: 0 | AB78: 0 | AC78: 0 | AE78: 1005 | AG78: 282.859226 | AH78: 60 | AJ78: 0 | AK78: 60 | AM78: 2913.94954 | AN78: 60 | AP78: 2670.977034 | AQ78: 60 | AS78: 3574.529219 | AT78: 60 | AV78: 5185.824435 | AW78: 60 | AY78: 6597.477714 | AZ78: 60 | BB78: 8197.634804 | BC78: 60
B79: 61 | C79: 105 | D79: 180.3788983 | F79: 75 | G79: 0 | H79: 75 | I79: 125 | J79: 2830.783783 | K79: 0 | L79: 100 | M79: 2583.831919 | N79: 0 | O79: 120 | P79: 3471.801865 | Q79: 0 | R79: 140 | S79: 5079.463265 | T79: 0 | U79: 160 | V79: 6485.758796 | W79: 0 | X79: 180 | Y79: 8084.448427 | Z79: 0 | AA79: 0 | AB79: 0 | AC79: 0 | AE79: 1005 | AG79: 180.3788983 | AH79: 61 | AJ79: 0 | AK79: 61 | AM79: 2830.783783 | AN79: 61 | AP79: 2583.831919 | AQ79: 61 | AS79: 3471.801865 | AT79: 61 | AV79: 5079.463265 | AW79: 61 | AY79: 6485.758796 | AZ79: 61 | BB79: 8084.448427 | BC79: 61
B80: 62 | C80: 105 | D80: 76.44676605 | F80: 75 | G80: 0 | H80: 75 | I80: 125 | J80: 2746.37054 | K80: 0 | L80: 100 | M80: 2496.251079 | N80: 0 | O80: 120 | P80: 3368.560874 | Q80: 0 | R80: 140 | S80: 4972.39302 | T80: 0 | U80: 160 | V80: 6373.201987 | W80: 0 | X80: 180 | Y80: 7970.31883 | Z80: 0 | AA80: 0 | AB80: 0 | AC80: 0 | AE80: 1005 | AG80: 76.44676605 | AH80: 62 | AJ80: 0 | AK80: 62 | AM80: 2746.37054 | AN80: 62 | AP80: 2496.251079 | AQ80: 62 | AS80: 3368.560874 | AT80: 62 | AV80: 4972.39302 | AW80: 62 | AY80: 6373.201987 | AZ80: 62 | BB80: 7970.31883 | BC80: 62
B81: 63 | C81: 76.44676605 | D81: 0 | F81: 0 | G81: 0 | H81: 75 | I81: 153.553234 | J81: 2631.709566 | K81: 0 | L81: 100 | M81: 2408.232334 | N81: 0 | O81: 120 | P81: 3264.803678 | Q81: 0 | R81: 140 | S81: 4864.608973 | T81: 0 | U81: 160 | V81: 6259.801002 | W81: 0 | X81: 180 | Y81: 7855.238154 | Z81: 0 | AA81: 0 | AB81: 0 | AC81: 0 | AE81: 930 | AG81: 0 | AH81: 63 | AJ81: 0 | AK81: 63 | AM81: 2631.709566 | AN81: 63 | AP81: 2408.232334 | AQ81: 63 | AS81: 3264.803678 | AT81: 63 | AV81: 4864.608973 | AW81: 63 | AY81: 6259.801002 | AZ81: 63 | BB81: 7855.238154 | BC81: 63
B82: 64 | C82: 0 | D82: 0 | F82: 0 | G82: 0 | H82: 75 | I82: 230 | J82: 2437.735209 | K82: 0 | L82: 100 | M82: 2319.773496 | N82: 0 | O82: 120 | P82: 3160.527697 | Q82: 0 | R82: 140 | S82: 4756.106366 | T82: 0 | U82: 160 | V82: 6145.54951 | W82: 0 | X82: 180 | Y82: 7739.198472 | Z82: 0 | AA82: 0 | AB82: 0 | AC82: 0 | AE82: 930 | AG82: 0 | AH82: 64 | AJ82: 0 | AK82: 64 | AM82: 2437.735209 | AN82: 64 | AP82: 2319.773496 | AQ82: 64 | AS82: 3160.527697 | AT82: 64 | AV82: 4756.106366 | AW82: 64 | AY82: 6145.54951 | AZ82: 64 | BB82: 7739.198472 | BC82: 64
B83: 65 | C83: 0 | D83: 0 | F83: 0 | G83: 0 | H83: 75 | I83: 230 | J83: 2240.851237 | K83: 0 | L83: 100 | M83: 2230.872363 | N83: 0 | O83: 120 | P83: 3055.730335 | Q83: =IF(P82=0,P$14,0) -> 0 | R83: 140 | S83: 4646.880409 | T83: 0 | U83: 160 | V83: 6030.441131 | W83: 0 | X83: 180 | Y83: 7622.191793 | Z83: 0 | AA83: 0 | AB83: 0 | AC83: 0 | AE83: =SUM(C83,F83,I83,L83,O83,R83,U83,X83,AA83) -> 930 | AG83: =D83 -> 0 | AH83: 65 | AJ83: =G83 -> 0 | AK83: 65 | AM83: =J83 -> 2240.851237 | AN83: 65 | AP83: =M83 -> 2230.872363 | AQ83: 65 | AS83: =P83 -> 3055.730335 | AT83: 65 | AV83: =S83 -> 4646.880409 | AW83: 65 | AY83: =V83 -> 6030.441131 | AZ83: 65 | BB83: =Y83 -> 7622.191793 | BC83: 65
B84: 66 | C84: =IF((D83-$J$6-$D$14-SUM(H84,K84,N84,Q84,T84,W84,Z84,AC84))<=0,($J$6+(D83-$J$6)),($J$6+$D$14+SUM(H84,K84,N84,Q84,T84,W84,Z84,AC84))) -> 0 | D84: 0 | F84: =IF(AND(((G83-$J$6+C84-G$14-D$14-SUM(K84,N84,Q84,T84,W84,Z84,AC84))<=0),D84=0),G83,IF(D84=0,$J$6-C84+G$14+D$14+SUM(K84,N84,Q84,T84,W84,Z84,AC84),G$14)) -> 0 | G84: =IF((G83-F84)<=0.0001,0,(G83-F84)*(1+(G$15/12))) -> 0 | H84: 75 | I84: =IF(AND(((J83-$J$6+F84+C84-J$14-G$14-D$14-SUM(N84,Q84,T84,W84,Z84,AC84))<=0),G84+D84=0),J83,IF(J$14>=J83,J83,IF(AND(G84=0,D84=0),$J$6-F84-C84+J$14+G$14+D$14+SUM(N84,Q84,T84,W84,Z84,AC84),J$14))) -> 230 | J84: 2041.014006 | K84: 0 | L84: =IF(AND(((M83-$J$6+I84+F84+C84-M$14-J$14-G$14-D$14-SUM(Q84,T84,W84,Z84,AC84))<=0),J84+G84+D84=0),M83,IF(M$14>=M83,M83, IF(AND(J84=0,G84=0,D84=0),$J$6-I84-F84-C84+M$14+J$14+G$14+D$14+SUM(Q84,T84,W84,Z84,AC84),M$14))) -> 100 | M84: 2141.526725 | N84: 0 | O84: =IF(AND(((P83-$J$6+L84+I84+F84+C84-P$14-M$14-J$14-G$14-D$14-SUM(T84,W84,Z84,AC84))<=0),M84+J84+G84+D84=0),P83,IF(P$14>=P83,P83,IF(AND(M84=0,J84=0,G84=0,D84=0),$J$6-L84-I84-F84-C84+P$14+M$14+J$14+G$14+D$14+SUM(T84,W84,Z84,AC84),P$14))) -> 120 | P84: 2950.408987 | Q84: 0 | R84: =IF(AND(((S83-$J$6+O84+L84+I84+F84+C84-S$14-P$14-M$14-J$14-G$14-D$14-SUM(W84,Z84,AC84))<=0),P84+M84+J84+G84+D84=0),S83,IF(S$14>=S83,S83,IF(AND(P84=0,M84=0,J84=0,G84=0),$J$6-O84-L84-I84-F84-C84+S$14+P$14+M$14+J$14+G$14+D$14+SUM(W84,Z84,AC84),S$14))) -> 140 | S84: 4536.926278 | T84: =IF(S83=0,S$14,0) -> 0 | U84: =IF(AND(((V83-$J$6+R84+O84+L84+I84+F84+C84-V$14-S$14-P$14-M$14-J$14-G$14-D$14-SUM(Z84,AC84))<=0),S84+P84+M84+J84+G84+D84=0),V83,IF(V$14>=V83,V83,IF(AND(S84=0,P84=0,M84=0,J84=0,G84=0,D84=0),$J$6-R84-O84-L84-I84-F84-C84+V$14+S$14+P$14+M$14+J$14+G$14+D$14+SUM(Z84,AC84),V$14))) -> 160 | V84: 5914.46944 | W84: =IF(V83=0,V$14,0) -> 0 | X84: =IF(AND(((Y83-$J$6+U84+R84+O84+L84+I84+F84+C84-Y$14-V$14-S$14-P$14-M$14-J$14-G$14-D$14-SUM(AC84))<=0),V84+S84+P84+M84+J84+G84+D84=0),Y83,IF(Y$14>=Y83,Y83,IF(AND(V84=0,S84=0,P84=0,M84=0,J84=0,G84=0,D84=0),$J$6-U84-R84-O84-L84-I84-F84-C84+Y$14+V$14+S$14+P$14+M$14+J$14+G$14+D$14+SUM(AC84),Y$14))) -> 180 | Y84: 7504.210058 | Z84: =IF(Y83=0,Y$14,0) -> 0 | AA84: =IF(AND(((AB83-$J$6+X84+U84+R84+O84+L84+I84+F84+C84-AB$14-Y$14-V$14-S$14-P$14-M$14-J$14-G$14-D$14)<=0),Y84+V84+S84+P84+M84+J84+G84+D84=0),AB83,IF(AB$14>=AB83,AB83,IF(AND(Y84=0,V84=0,S84=0,P84=0,M84=0,J84=0,G84=0,D84=0),$J$6-X84-U84-R84-O84-L84-I84-F84-C84+AB$14+Y$14+V$14+S$14+P$14+M$14+J$14+G$14+D$14,AB$14))) -> 0 | AB84: 0 | AC84: =IF(AB83=0,AB$14,0) -> 0 | AE84: 930 | AG84: 0 | AH84: 66 | AJ84: 0 | AK84: 66 | AM84: 2041.014006 | AN84: 66 | AP84: 2141.526725 | AQ84: 66 | AS84: 2950.408987 | AT84: 66 | AV84: 4536.926278 | AW84: 66 | AY84: 5914.46944 | AZ84: 66 | BB84: 7504.210058 | BC84: 66
B85: 67 | C85: 0 | D85: 0 | F85: 0 | G85: 0 | H85: 75 | I85: 230 | J85: =IF((J84-I85)<=0.0001,0,(J84-I85)*(1+(J$15/12))) -> 1838.179216 | K85: 0 | L85: 100 | M85: =IF((M84-L85)<=0.0001,0,(M84-L85)*(1+(M$15/12))) -> 2051.734359 | N85: 0 | O85: 120 | P85: =IF((P84-O85)<=0.0001,0,(P84-O85)*(1+(P$15/12))) -> 2844.561032 | Q85: 0 | R85: 140 | S85: 4426.23912 | T85: 0 | U85: 160 | V85: =IF((V84-U85)<=0.0001,0,(V84-U85)*(1+(V$15/12))) -> 5797.62796 | W85: 0 | X85: 180 | Y85: =IF((Y84-X85)<=0.0001,0,(Y84-X85)*(1+(Y$15/12))) -> 7385.245141 | Z85: 0 | AA85: 0 | AB85: =IF((AB84-AA85)<=0.0001,0,(AB84-AA85)*(1+(AB$15/12))) -> 0 | AC85: 0 | AE85: 930 | AG85: 0 | AH85: 67 | AJ85: 0 | AK85: 67 | AM85: 1838.179216 | AN85: 67 | AP85: 2051.734359 | AQ85: 67 | AS85: 2844.561032 | AT85: 67 | AV85: 4426.23912 | AW85: 67 | AY85: 5797.62796 | AZ85: 67 | BB85: 7385.245141 | BC85: 67
B86: 68 | C86: 0 | D86: 0 | F86: 0 | G86: 0 | H86: =IF(G85=0,G$14,0) -> 75 | I86: 230 | J86: 1632.301904 | K86: =IF(J85=0,J$14,0) -> 0 | L86: 100 | M86: 1961.49303 | N86: =IF(M85=0,M$14,0) -> 0 | O86: 120 | P86: 2738.183837 | Q86: 0 | R86: 140 | S86: =IF((S85-R86)<=0.0001,0,(S85-R86)*(1+(S$15/12))) -> 4314.814047 | T86: 0 | U86: 160 | V86: 5679.91017 | W86: 0 | X86: 180 | Y86: 7265.288851 | Z86: 0 | AA86: 0 | AB86: 0 | AC86: 0 | AE86: 930 | AG86: 0 | AH86: 68 | AJ86: 0 | AK86: 68 | AM86: 1632.301904 | AN86: 68 | AP86: 1961.49303 | AQ86: 68 | AS86: 2738.183837 | AT86: 68 | AV86: 4314.814047 | AW86: 68 | AY86: 5679.91017 | AZ86: 68 | BB86: 7265.288851 | BC86: 68
B87: 69 | C87: 0 | D87: =IF((D86-C87)<=0.0001,0,(D86-C87)*(1+(D$15/12))) -> 0 | F87: 0 | G87: 0 | H87: 75 | I87: 230 | J87: 1423.336433 | K87: 0 | L87: 100 | M87: 1870.800496 | N87: 0 | O87: 120 | P87: 2631.274756 | Q87: 0 | R87: 140 | S87: 4202.646141 | T87: 0 | U87: 160 | V87: 5561.309496 | W87: 0 | X87: 180 | Y87: 7144.332925 | Z87: 0 | AA87: 0 | AB87: 0 | AC87: 0 | AE87: 930 | AG87: 0 | AH87: 69 | AJ87: 0 | AK87: 69 | AM87: 1423.336433 | AN87: 69 | AP87: 1870.800496 | AQ87: 69 | AS87: 2631.274756 | AT87: 69 | AV87: 4202.646141 | AW87: 69 | AY87: 5561.309496 | AZ87: 69 | BB87: 7144.332925 | BC87: 69
B88: 70 | C88: 0 | D88: 0 | F88: 0 | G88: 0 | H88: 75 | I88: 230 | J88: 1211.236479 | K88: 0 | L88: 100 | M88: 1779.654498 | N88: 0 | O88: 120 | P88: 2523.83113 | Q88: 0 | R88: 140 | S88: 4089.730449 | T88: 0 | U88: 160 | V88: 5441.819318 | W88: 0 | X88: 180 | Y88: 7022.369032 | Z88: 0 | AA88: 0 | AB88: 0 | AC88: 0 | AE88: 930 | AG88: 0 | AH88: 70 | AJ88: 0 | AK88: 70 | AM88: 1211.236479 | AN88: 70 | AP88: 1779.654498 | AQ88: 70 | AS88: 2523.83113 | AT88: 70 | AV88: 4089.730449 | AW88: 70 | AY88: 5441.819318 | AZ88: 70 | BB88: 7022.369032 | BC88: 70
B89: 71 | C89: 0 | D89: 0 | F89: 0 | G89: 0 | H89: 75 | I89: 230 | J89: 995.9550265 | K89: 0 | L89: 100 | M89: 1688.05277 | N89: 0 | O89: 120 | P89: 2415.850286 | Q89: 0 | R89: 140 | S89: 3976.061985 | T89: 0 | U89: 160 | V89: 5321.432963 | W89: 0 | X89: 180 | Y89: 6899.388774 | Z89: 0 | AA89: 0 | AB89: 0 | AC89: 0 | AE89: 930 | AG89: 0 | AH89: 71 | AJ89: 0 | AK89: 71 | AM89: 995.9550265 | AN89: 71 | AP89: 1688.05277 | AQ89: 71 | AS89: 2415.850286 | AT89: 71 | AV89: 3976.061985 | AW89: 71 | AY89: 5321.432963 | AZ89: 71 | BB89: 6899.388774 | BC89: 71
B90: 72 | C90: 0 | D90: 0 | F90: 0 | G90: 0 | H90: 75 | I90: 230 | J90: 777.4443519 | K90: 0 | L90: 100 | M90: 1595.993034 | N90: 0 | O90: 120 | P90: 2307.329537 | Q90: 0 | R90: 140 | S90: 3861.635732 | T90: 0 | U90: 160 | V90: 5200.14371 | W90: 0 | X90: 180 | Y90: 6775.383681 | Z90: 0 | AA90: 0 | AB90: 0 | AC90: 0 | AE90: 930 | AG90: 0 | AH90: 72 | AJ90: 0 | AK90: 72 | AM90: 777.4443519 | AN90: 72 | AP90: 1595.993034 | AQ90: 72 | AS90: 2307.329537 | AT90: 72 | AV90: 3861.635732 | AW90: 72 | AY90: 5200.14371 | AZ90: 72 | BB90: 6775.383681 | BC90: 72
B91: 73 | C91: 0 | D91: 0 | F91: 0 | G91: 0 | H91: 75 | I91: 230 | J91: 555.6560171 | K91: 0 | L91: 100 | M91: 1503.473 | N91: 0 | O91: 120 | P91: 2198.266185 | Q91: 0 | R91: 140 | S91: 3746.446636 | T91: 0 | U91: 160 | V91: 5077.944788 | W91: 0 | X91: 180 | Y91: 6650.345211 | Z91: 0 | AA91: 0 | AB91: 0 | AC91: 0 | AE91: 930 | AG91: 0 | AH91: 73 | AJ91: 0 | AK91: 73 | AM91: 555.6560171 | AN91: 73 | AP91: 1503.473 | AQ91: 73 | AS91: 2198.266185 | AT91: 73 | AV91: 3746.446636 | AW91: 73 | AY91: 5077.944788 | AZ91: 73 | BB91: 6650.345211 | BC91: 73
B92: 74 | C92: 0 | D92: 0 | F92: 0 | G92: 0 | H92: 75 | I92: 230 | J92: 330.5408574 | K92: 0 | L92: 100 | M92: 1410.490365 | N92: 0 | O92: 120 | P92: 2088.657516 | Q92: 0 | R92: 140 | S92: 3630.489614 | T92: 0 | U92: 160 | V92: 4954.829373 | W92: 0 | X92: 180 | Y92: 6524.264755 | Z92: 0 | AA92: 0 | AB92: 0 | AC92: 0 | AE92: 930 | AG92: 0 | AH92: 74 | AJ92: 0 | AK92: 74 | AM92: 330.5408574 | AN92: 74 | AP92: 1410.490365 | AQ92: 74 | AS92: 2088.657516 | AT92: 74 | AV92: 3630.489614 | AW92: 74 | AY92: 4954.829373 | AZ92: 74 | BB92: 6524.264755 | BC92: 74
B93: 75 | C93: 0 | D93: 0 | F93: 0 | G93: 0 | H93: 75 | I93: 230 | J93: 102.0489703 | K93: 0 | L93: 100 | M93: 1317.042816 | N93: 0 | O93: 120 | P93: 1978.500803 | Q93: 0 | R93: 140 | S93: 3513.759545 | T93: 0 | U93: 160 | V93: 4830.790594 | W93: 0 | X93: 180 | Y93: 6397.133628 | Z93: 0 | AA93: 0 | AB93: 0 | AC93: 0 | AE93: 930 | AG93: 0 | AH93: 75 | AJ93: 0 | AK93: 75 | AM93: 102.0489703 | AN93: 75 | AP93: 1317.042816 | AQ93: 75 | AS93: 1978.500803 | AT93: 75 | AV93: 3513.759545 | AW93: 75 | AY93: 4830.790594 | AZ93: 75 | BB93: 6397.133628 | BC93: 75
B94: 76 | C94: 0 | D94: 0 | F94: 0 | G94: 0 | H94: 75 | I94: 102.0489703 | J94: 0 | K94: 0 | L94: 227.9510297 | M94: 1094.537246 | N94: 0 | O94: 120 | P94: 1867.793307 | Q94: 0 | R94: 140 | S94: 3396.251275 | T94: 0 | U94: 160 | V94: 4705.821523 | W94: 0 | X94: 180 | Y94: 6268.943075 | Z94: 0 | AA94: 0 | AB94: 0 | AC94: 0 | AE94: 930 | AG94: 0 | AH94: 76 | AJ94: 0 | AK94: 76 | AM94: 0 | AN94: 76 | AP94: 1094.537246 | AQ94: 76 | AS94: 1867.793307 | AT94: 76 | AV94: 3396.251275 | AW94: 76 | AY94: 4705.821523 | AZ94: 76 | BB94: 6268.943075 | BC94: 76
B95: 77 | C95: 0 | D95: 0 | F95: 0 | G95: 0 | H95: 75 | I95: 0 | J95: 0 | K95: 125 | L95: 330 | M95: 768.3599318 | N95: 0 | O95: 120 | P95: 1756.532274 | Q95: 0 | R95: 140 | S95: 3277.959617 | T95: 0 | U95: 160 | V95: 4579.915185 | W95: 0 | X95: 180 | Y95: 6139.684267 | Z95: 0 | AA95: 0 | AB95: 0 | AC95: 0 | AE95: 930 | AG95: 0 | AH95: 77 | AJ95: 0 | AK95: 77 | AM95: 0 | AN95: 77 | AP95: 768.3599318 | AQ95: 77 | AS95: 1756.532274 | AT95: 77 | AV95: 3277.959617 | AW95: 77 | AY95: 4579.915185 | AZ95: 77 | BB95: 6139.684267 | BC95: 77
B96: 78 | C96: 0 | D96: 0 | F96: 0 | G96: 0 | H96: 75 | I96: 0 | J96: 0 | K96: 125 | L96: 330 | M96: 440.5517314 | N96: 0 | O96: 120 | P96: 1644.714935 | Q96: 0 | R96: 140 | S96: 3158.879348 | T96: 0 | U96: 160 | V96: 4453.064549 | W96: 0 | X96: 180 | Y96: 6009.348303 | Z96: 0 | AA96: 0 | AB96: 0 | AC96: 0 | AE96: 930 | AG96: 0 | AH96: 78 | AJ96: 0 | AK96: 78 | AM96: 0 | AN96: 78 | AP96: 440.5517314 | AQ96: 78 | AS96: 1644.714935 | AT96: 78 | AV96: 3158.879348 | AW96: 78 | AY96: 4453.064549 | AZ96: 78 | BB96: 6009.348303 | BC96: 78
B97: 79 | C97: 0 | D97: 0 | F97: 0 | G97: 0 | H97: 75 | I97: 0 | J97: 0 | K97: 125 | L97: 330 | M97: 111.1044901 | N97: 0 | O97: 120 | P97: 1532.33851 | Q97: 0 | R97: 140 | S97: 3039.00521 | T97: 0 | U97: 160 | V97: 4325.262533 | W97: 0 | X97: 180 | Y97: 5877.926205 | Z97: 0 | AA97: 0 | AB97: 0 | AC97: 0 | AE97: 930 | AG97: 0 | AH97: 79 | AJ97: 0 | AK97: 79 | AM97: 0 | AN97: 79 | AP97: 111.1044901 | AQ97: 79 | AS97: 1532.33851 | AT97: 79 | AV97: 3039.00521 | AW97: 79 | AY97: 4325.262533 | AZ97: 79 | BB97: 5877.926205 | BC97: 79
B98: 80 | C98: 0 | D98: 0 | F98: 0 | G98: 0 | H98: 75 | I98: 0 | J98: 0 | K98: 125 | L98: 111.1044901 | M98: 0 | N98: 0 | O98: 338.8955099 | P98: 1199.410215 | Q98: 0 | R98: 140 | S98: 2918.331911 | T98: 0 | U98: 160 | V98: 4196.502002 | W98: 0 | X98: 180 | Y98: 5745.408923 | Z98: 0 | AA98: 0 | AB98: 0 | AC98: 0 | AE98: 930 | AG98: 0 | AH98: 80 | AJ98: 0 | AK98: 80 | AM98: 0 | AN98: 80 | AP98: 0 | AQ98: 80 | AS98: 1199.410215 | AT98: 80 | AV98: 2918.331911 | AW98: 80 | AY98: 4196.502002 | AZ98: 80 | BB98: 5745.408923 | BC98: 80
B99: 81 | C99: 0 | D99: 0 | F99: 0 | G99: 0 | H99: 75 | I99: 0 | J99: 0 | K99: 125 | L99: 0 | M99: 0 | N99: 100 | O99: 450 | P99: 753.1572661 | Q99: 0 | R99: 140 | S99: 2796.854124 | T99: 0 | U99: 160 | V99: 4066.775767 | W99: 0 | X99: 180 | Y99: 5611.787331 | Z99: 0 | AA99: 0 | AB99: 0 | AC99: 0 | AE99: 930 | AG99: 0 | AH99: 81 | AJ99: 0 | AK99: 81 | AM99: 0 | AN99: 81 | AP99: 0 | AQ99: 81 | AS99: 753.1572661 | AT99: 81 | AV99: 2796.854124 | AW99: 81 | AY99: 4066.775767 | AZ99: 81 | BB99: 5611.787331 | BC99: 81
B100: 82 | C100: 0 | D100: 0 | F100: 0 | G100: 0 | H100: 75 | I100: 0 | J100: 0 | K100: 125 | L100: 0 | M100: 0 | N100: 100 | O100: 450 | P100: 304.6730524 | Q100: 0 | R100: 140 | S100: 2674.566485 | T100: 0 | U100: 160 | V100: 3936.076585 | W100: 0 | X100: 180 | Y100: 5477.052226 | Z100: 0 | AA100: 0 | AB100: 0 | AC100: 0 | AE100: 930 | AG100: 0 | AH100: 82 | AJ100: 0 | AK100: 82 | AM100: 0 | AN100: 82 | AP100: 0 | AQ100: 82 | AS100: 304.6730524 | AT100: 82 | AV100: 2674.566485 | AW100: 82 | AY100: 3936.076585 | AZ100: 82 | BB100: 5477.052226 | BC100: 82
B101: 83 | C101: 0 | D101: 0 | F101: 0 | G101: 0 | H101: 75 | I101: 0 | J101: 0 | K101: 125 | L101: 0 | M101: 0 | N101: 100 | O101: 304.6730524 | P101: 0 | Q101: 0 | R101: 285.3269476 | S101: 2405.167801 | T101: 0 | U101: 160 | V101: 3804.397159 | W101: 0 | X101: 180 | Y101: 5341.194327 | Z101: 0 | AA101: 0 | AB101: 0 | AC101: 0 | AE101: 930 | AG101: 0 | AH101: 83 | AJ101: 0 | AK101: 83 | AM101: 0 | AN101: 83 | AP101: 0 | AQ101: 83 | AS101: 0 | AT101: 83 | AV101: 2405.167801 | AW101: 83 | AY101: 3804.397159 | AZ101: 83 | BB101: 5341.194327 | BC101: 83
B102: 84 | C102: 0 | D102: 0 | F102: 0 | G102: 0 | H102: 75 | I102: 0 | J102: 0 | K102: 125 | L102: 0 | M102: 0 | N102: 100 | O102: 0 | P102: 0 | Q102: 120 | R102: 590 | S102: 1827.26892 | T102: 0 | U102: 160 | V102: 3671.730138 | W102: 0 | X102: 180 | Y102: 5204.20428 | Z102: 0 | AA102: 0 | AB102: 0 | AC102: 0 | AE102: 930 | AG102: 0 | AH102: 84 | AJ102: 0 | AK102: 84 | AM102: 0 | AN102: 84 | AP102: 0 | AQ102: 84 | AS102: 0 | AT102: 84 | AV102: 1827.26892 | AW102: 84 | AY102: 3671.730138 | AZ102: 84 | BB102: 5204.20428 | BC102: 84
B103: 85 | C103: 0 | D103: 0 | F103: 0 | G103: 0 | H103: 75 | I103: 0 | J103: 0 | K103: 125 | L103: 0 | M103: 0 | N103: 100 | O103: 0 | P103: 0 | Q103: 120 | R103: 590 | S103: 1245.517379 | T103: 0 | U103: 160 | V103: 3538.068114 | W103: 0 | X103: 180 | Y103: 5066.072649 | Z103: 0 | AA103: 0 | AB103: 0 | AC103: 0 | AE103: 930 | AG103: 0 | AH103: 85 | AJ103: 0 | AK103: 85 | AM103: 0 | AN103: 85 | AP103: 0 | AQ103: 85 | AS103: 0 | AT103: 85 | AV103: 1245.517379 | AW103: 85 | AY103: 3538.068114 | AZ103: 85 | BB103: 5066.072649 | BC103: 85
B104: 86 | C104: 0 | D104: 0 | F104: 0 | G104: 0 | H104: 75 | I104: 0 | J104: 0 | K104: 125 | L104: 0 | M104: 0 | N104: 100 | O104: 0 | P104: 0 | Q104: 120 | R104: 590 | S104: 659.8874949 | T104: 0 | U104: 160 | V104: 3403.403625 | W104: 0 | X104: 180 | Y104: 4926.789921 | Z104: 0 | AA104: 0 | AB104: 0 | AC104: 0 | AE104: 930 | AG104: 0 | AH104: 86 | AJ104: 0 | AK104: 86 | AM104: 0 | AN104: 86 | AP104: 0 | AQ104: 86 | AS104: 0 | AT104: 86 | AV104: 659.8874949 | AW104: 86 | AY104: 3403.403625 | AZ104: 86 | BB104: 4926.789921 | BC104: 86
B105: 87 | C105: 0 | D105: 0 | F105: 0 | G105: 0 | H105: 75 | I105: 0 | J105: 0 | K105: 125 | L105: 0 | M105: 0 | N105: 100 | O105: 0 | P105: 0 | Q105: 120 | R105: 590 | S105: 70.35341157 | T105: 0 | U105: 160 | V105: 3267.729152 | W105: 0 | X105: 180 | Y105: 4786.346504 | Z105: 0 | AA105: 0 | AB105: 0 | AC105: 0 | AE105: 930 | AG105: 0 | AH105: 87 | AJ105: 0 | AK105: 87 | AM105: 0 | AN105: 87 | AP105: 0 | AQ105: 87 | AS105: 0 | AT105: 87 | AV105: 70.35341157 | AW105: 87 | AY105: 3267.729152 | AZ105: 87 | BB105: 4786.346504 | BC105: 87
B106: 88 | C106: 0 | D106: 0 | F106: 0 | G106: 0 | H106: 75 | I106: 0 | J106: 0 | K106: 125 | L106: 0 | M106: 0 | N106: 100 | O106: 0 | P106: 0 | Q106: 120 | R106: 70.35341157 | S106: 0 | T106: 0 | U106: 679.6465884 | V106: 2607.493183 | W106: 0 | X106: 180 | Y106: 4644.732725 | Z106: 0 | AA106: 0 | AB106: 0 | AC106: 0 | AE106: 930 | AG106: 0 | AH106: 88 | AJ106: 0 | AK106: 88 | AM106: 0 | AN106: 88 | AP106: 0 | AQ106: 88 | AS106: 0 | AT106: 88 | AV106: 0 | AW106: 88 | AY106: 2607.493183 | AZ106: 88 | BB106: 4644.732725 | BC106: 88
B107: 89 | C107: 0 | D107: 0 | F107: 0 | G107: 0 | H107: 75 | I107: 0 | J107: 0 | K107: 125 | L107: 0 | M107: 0 | N107: 100 | O107: 0 | P107: 0 | Q107: 120 | R107: 0 | S107: 0 | T107: 140 | U107: 750 | V107: 1871.424382 | W107: 0 | X107: 180 | Y107: 4501.938831 | Z107: 0 | AA107: 0 | AB107: 0 | AC107: 0 | AE107: 930 | AG107: 0 | AH107: 89 | AJ107: 0 | AK107: 89 | AM107: 0 | AN107: 89 | AP107: 0 | AQ107: 89 | AS107: 0 | AT107: 89 | AV107: 0 | AW107: 89 | AY107: 1871.424382 | AZ107: 89 | BB107: 4501.938831 | BC107: 89
B108: 90 | C108: 0 | D108: 0 | F108: 0 | G108: 0 | H108: 75 | I108: 0 | J108: 0 | K108: 125 | L108: 0 | M108: 0 | N108: 100 | O108: 0 | P108: 0 | Q108: 120 | R108: 0 | S108: 0 | T108: 140 | U108: 750 | V108: 1129.835065 | W108: 0 | X108: 180 | Y108: 4357.954988 | Z108: 0 | AA108: 0 | AB108: 0 | AC108: 0 | AE108: 930 | AG108: 0 | AH108: 90 | AJ108: 0 | AK108: 90 | AM108: 0 | AN108: 90 | AP108: 0 | AQ108: 90 | AS108: 0 | AT108: 90 | AV108: 0 | AW108: 90 | AY108: 1129.835065 | AZ108: 90 | BB108: 4357.954988 | BC108: 90
B109: 91 | C109: 0 | D109: 0 | F109: 0 | G109: 0 | H109: 75 | I109: 0 | J109: 0 | K109: 125 | L109: 0 | M109: 0 | N109: 100 | O109: 0 | P109: 0 | Q109: 120 | R109: 0 | S109: 0 | T109: 140 | U109: 750 | V109: 382.6838276 | W109: 0 | X109: 180 | Y109: 4212.771279 | Z109: 0 | AA109: 0 | AB109: 0 | AC109: 0 | AE109: 930 | AG109: 0 | AH109: 91 | AJ109: 0 | AK109: 91 | AM109: 0 | AN109: 91 | AP109: 0 | AQ109: 91 | AS109: 0 | AT109: 91 | AV109: 0 | AW109: 91 | AY109: 382.6838276 | AZ109: 91 | BB109: 4212.771279 | BC109: 91
B110: 92 | C110: 0 | D110: 0 | F110: 0 | G110: 0 | H110: 75 | I110: 0 | J110: 0 | K110: 125 | L110: 0 | M110: 0 | N110: 100 | O110: 0 | P110: 0 | Q110: 120 | R110: 0 | S110: 0 | T110: 140 | U110: 382.6838276 | V110: 0 | W110: 0 | X110: 547.3161724 | Y110: 3696.000566 | Z110: 0 | AA110: 0 | AB110: 0 | AC110: 0 | AE110: 930 | AG110: 0 | AH110: 92 | AJ110: 0 | AK110: 92 | AM110: 0 | AN110: 92 | AP110: 0 | AQ110: 92 | AS110: 0 | AT110: 92 | AV110: 0 | AW110: 92 | AY110: 0 | AZ110: 92 | BB110: 3696.000566 | BC110: 92
B111: 93 | C111: 0 | D111: 0 | F111: 0 | G111: 0 | H111: 75 | I111: 0 | J111: 0 | K111: 125 | L111: 0 | M111: 0 | N111: 100 | O111: 0 | P111: 0 | Q111: 120 | R111: 0 | S111: 0 | T111: 140 | U111: 0 | V111: 0 | W111: 160 | X111: 930 | Y111: 2789.050571 | Z111: 0 | AA111: 0 | AB111: 0 | AC111: 0 | AE111: 930 | AG111: 0 | AH111: 93 | AJ111: 0 | AK111: 93 | AM111: 0 | AN111: 93 | AP111: 0 | AQ111: 93 | AS111: 0 | AT111: 93 | AV111: 0 | AW111: 93 | AY111: 0 | AZ111: 93 | BB111: 2789.050571 | BC111: 93
B112: 94 | C112: 0 | D112: 0 | F112: 0 | G112: 0 | H112: 75 | I112: 0 | J112: 0 | K112: 125 | L112: 0 | M112: 0 | N112: 100 | O112: 0 | P112: 0 | Q112: 120 | R112: 0 | S112: 0 | T112: 140 | U112: 0 | V112: 0 | W112: 160 | X112: 930 | Y112: 1874.542659 | Z112: 0 | AA112: 0 | AB112: 0 | AC112: 0 | AE112: 930 | AG112: 0 | AH112: 94 | AJ112: 0 | AK112: 94 | AM112: 0 | AN112: 94 | AP112: 0 | AQ112: 94 | AS112: 0 | AT112: 94 | AV112: 0 | AW112: 94 | AY112: 0 | AZ112: 94 | BB112: 1874.542659 | BC112: 94
B113: 95 | C113: 0 | D113: 0 | F113: 0 | G113: 0 | H113: 75 | I113: 0 | J113: 0 | K113: 125 | L113: 0 | M113: 0 | N113: 100 | O113: 0 | P113: 0 | Q113: 120 | R113: 0 | S113: 0 | T113: 140 | U113: 0 | V113: 0 | W113: 160 | X113: 930 | Y113: 952.4138477 | Z113: 0 | AA113: 0 | AB113: 0 | AC113: 0 | AE113: 930 | AG113: 0 | AH113: 95 | AJ113: 0 | AK113: 95 | AM113: 0 | AN113: 95 | AP113: 0 | AQ113: 95 | AS113: 0 | AT113: 95 | AV113: 0 | AW113: 95 | AY113: 0 | AZ113: 95 | BB113: 952.4138477 | BC113: 95
B114: 96 | C114: 0 | D114: 0 | F114: 0 | G114: 0 | H114: 75 | I114: 0 | J114: 0 | K114: 125 | L114: 0 | M114: 0 | N114: 100 | O114: 0 | P114: 0 | Q114: 120 | R114: 0 | S114: 0 | T114: 140 | U114: 0 | V114: 0 | W114: 160 | X114: 930 | Y114: 22.60062977 | Z114: 0 | AA114: 0 | AB114: 0 | AC114: 0 | AE114: 930 | AG114: 0 | AH114: 96 | AJ114: 0 | AK114: 96 | AM114: 0 | AN114: 96 | AP114: 0 | AQ114: 96 | AS114: 0 | AT114: 96 | AV114: 0 | AW114: 96 | AY114: 0 | AZ114: 96 | BB114: 22.60062977 | BC114: 96
B115: 97 | C115: 0 | D115: 0 | F115: 0 | G115: 0 | H115: 75 | I115: 0 | J115: 0 | K115: 125 | L115: 0 | M115: 0 | N115: 100 | O115: 0 | P115: 0 | Q115: 120 | R115: 0 | S115: 0 | T115: 140 | U115: 0 | V115: 0 | W115: 160 | X115: 22.60062977 | Y115: 0 | Z115: 0 | AA115: 0 | AB115: 0 | AC115: 0 | AE115: =SUM(C115,F115,I115,L115,O115,R115,U115,X115,AA115) -> 22.60062977 | AG115: =D115 -> 0 | AH115: 97 | AJ115: =G115 -> 0 | AK115: 97 | AM115: =J115 -> 0 | AN115: 97 | AP115: =M115 -> 0 | AQ115: 97 | AS115: =P115 -> 0 | AT115: 97 | AV115: =S115 -> 0 | AW115: 97 | AY115: =V115 -> 0 | AZ115: 97 | BB115: =Y115 -> 0 | BC115: 97
B116: 98 | C116: =IF((D115-$J$6-$D$14-SUM(H116,K116,N116,Q116,T116,W116,Z116,AC116))<=0,($J$6+(D115-$J$6)),($J$6+$D$14+SUM(H116,K116,N116,Q116,T116,W116,Z116,AC116))) -> 0 | D116: 0 | F116: =IF(AND(((G115-$J$6+C116-G$14-D$14-SUM(K116,N116,Q116,T116,W116,Z116,AC116))<=0),D116=0),G115,IF(D116=0,$J$6-C116+G$14+D$14+SUM(K116,N116,Q116,T116,W116,Z116,AC116),G$14)) -> 0 | G116: 0 | H116: 75 | I116: =IF(AND(((J115-$J$6+F116+C116-J$14-G$14-D$14-SUM(N116,Q116,T116,W116,Z116,AC116))<=0),G116+D116=0),J115,IF(J$14>=J115,J115,IF(AND(G116=0,D116=0),$J$6-F116-C116+J$14+G$14+D$14+SUM(N116,Q116,T116,W116,Z116,AC116),J$14))) -> 0 | J116: 0 | K116: 125 | L116: =IF(AND(((M115-$J$6+I116+F116+C116-M$14-J$14-G$14-D$14-SUM(Q116,T116,W116,Z116,AC116))<=0),J116+G116+D116=0),M115,IF(M$14>=M115,M115, IF(AND(J116=0,G116=0,D116=0),$J$6-I116-F116-C116+M$14+J$14+G$14+D$14+SUM(Q116,T116,W116,Z116,AC116),M$14))) -> 0 | M116: 0 | N116: 100 | O116: =IF(AND(((P115-$J$6+L116+I116+F116+C116-P$14-M$14-J$14-G$14-D$14-SUM(T116,W116,Z116,AC116))<=0),M116+J116+G116+D116=0),P115,IF(P$14>=P115,P115,IF(AND(M116=0,J116=0,G116=0,D116=0),$J$6-L116-I116-F116-C116+P$14+M$14+J$14+G$14+D$14+SUM(T116,W116,Z116,AC116),P$14))) -> 0 | P116: 0 | Q116: 120 | R116: =IF(AND(((S115-$J$6+O116+L116+I116+F116+C116-S$14-P$14-M$14-J$14-G$14-D$14-SUM(W116,Z116,AC116))<=0),P116+M116+J116+G116+D116=0),S115,IF(S$14>=S115,S115,IF(AND(P116=0,M116=0,J116=0,G116=0),$J$6-O116-L116-I116-F116-C116+S$14+P$14+M$14+J$14+G$14+D$14+SUM(W116,Z116,AC116),S$14))) -> 0 | S116: 0 | T116: =IF(S115=0,S$14,0) -> 140 | U116: =IF(AND(((V115-$J$6+R116+O116+L116+I116+F116+C116-V$14-S$14-P$14-M$14-J$14-G$14-D$14-SUM(Z116,AC116))<=0),S116+P116+M116+J116+G116+D116=0),V115,IF(V$14>=V115,V115,IF(AND(S116=0,P116=0,M116=0,J116=0,G116=0,D116=0),$J$6-R116-O116-L116-I116-F116-C116+V$14+S$14+P$14+M$14+J$14+G$14+D$14+SUM(Z116,AC116),V$14))) -> 0 | V116: 0 | W116: =IF(V115=0,V$14,0) -> 160 | X116: =IF(AND(((Y115-$J$6+U116+R116+O116+L116+I116+F116+C116-Y$14-V$14-S$14-P$14-M$14-J$14-G$14-D$14-SUM(AC116))<=0),V116+S116+P116+M116+J116+G116+D116=0),Y115,IF(Y$14>=Y115,Y115,IF(AND(V116=0,S116=0,P116=0,M116=0,J116=0,G116=0,D116=0),$J$6-U116-R116-O116-L116-I116-F116-C116+Y$14+V$14+S$14+P$14+M$14+J$14+G$14+D$14+SUM(AC116),Y$14))) -> 0 | Y116: 0 | Z116: =IF(Y115=0,Y$14,0) -> 180 | AA116: =IF(AND(((AB115-$J$6+X116+U116+R116+O116+L116+I116+F116+C116-AB$14-Y$14-V$14-S$14-P$14-M$14-J$14-G$14-D$14)<=0),Y116+V116+S116+P116+M116+J116+G116+D116=0),AB115,IF(AB$14>=AB115,AB115,IF(AND(Y116=0,V116=0,S116=0,P116=0,M116=0,J116=0,G116=0,D116=0),$J$6-X116-U116-R116-O116-L116-I116-F116-C116+AB$14+Y$14+V$14+S$14+P$14+M$14+J$14+G$14+D$14,AB$14))) -> 0 | AB116: 0 | AC116: =IF(AB115=0,AB$14,0) -> 0 | AE116: 0 | AG116: 0 | AH116: 98 | AJ116: 0 | AK116: 98 | AM116: 0 | AN116: 98 | AP116: 0 | AQ116: 98 | AS116: 0 | AT116: 98 | AV116: 0 | AW116: 98 | AY116: 0 | AZ116: 98 | BB116: 0 | BC116: 98
B117: 99 | C117: 0 | D117: 0 | F117: 0 | G117: 0 | H117: 75 | I117: 0 | J117: 0 | K117: 125 | L117: 0 | M117: 0 | N117: 100 | O117: 0 | P117: 0 | Q117: 120 | R117: 0 | S117: 0 | T117: 140 | U117: 0 | V117: 0 | W117: 160 | X117: 0 | Y117: 0 | Z117: 180 | AA117: 0 | AB117: 0 | AC117: 0 | AE117: 0 | AG117: 0 | AH117: 99 | AJ117: 0 | AK117: 99 | AM117: 0 | AN117: 99 | AP117: 0 | AQ117: 99 | AS117: 0 | AT117: 99 | AV117: 0 | AW117: 99 | AY117: 0 | AZ117: 99 | BB117: 0 | BC117: 99
B118: 100 | C118: 0 | D118: 0 | F118: 0 | G118: 0 | H118: 75 | I118: 0 | J118: 0 | K118: 125 | L118: 0 | M118: 0 | N118: 100 | O118: 0 | P118: 0 | Q118: 120 | R118: 0 | S118: 0 | T118: 140 | U118: 0 | V118: 0 | W118: 160 | X118: 0 | Y118: 0 | Z118: 180 | AA118: 0 | AB118: 0 | AC118: 0 | AE118: 0 | AG118: 0 | AH118: 100 | AJ118: 0 | AK118: 100 | AM118: 0 | AN118: 100 | AP118: 0 | AQ118: 100 | AS118: 0 | AT118: 100 | AV118: 0 | AW118: 100 | AY118: 0 | AZ118: 100 | BB118: 0 | BC118: 100
B119: 101 | C119: 0 | D119: 0 | F119: 0 | G119: 0 | H119: 75 | I119: 0 | J119: 0 | K119: 125 | L119: 0 | M119: 0 | N119: 100 | O119: 0 | P119: 0 | Q119: 120 | R119: 0 | S119: 0 | T119: 140 | U119: 0 | V119: 0 | W119: 160 | X119: 0 | Y119: 0 | Z119: 180 | AA119: 0 | AB119: 0 | AC119: 0 | AE119: 0 | AG119: 0 | AH119: 101 | AJ119: 0 | AK119: 101 | AM119: 0 | AN119: 101 | AP119: 0 | AQ119: 101 | AS119: 0 | AT119: 101 | AV119: 0 | AW119: 101 | AY119: 0 | AZ119: 101 | BB119: 0 | BC119: 101
B120: 102 | C120: 0 | D120: 0 | F120: 0 | G120: 0 | H120: 75 | I120: 0 | J120: 0 | K120: 125 | L120: 0 | M120: 0 | N120: 100 | O120: 0 | P120: 0 | Q120: 120 | R120: 0 | S120: 0 | T120: 140 | U120: 0 | V120: 0 | W120: 160 | X120: 0 | Y120: 0 | Z120: 180 | AA120: 0 | AB120: 0 | AC120: 0 | AE120: 0 | AG120: 0 | AH120: 102 | AJ120: 0 | AK120: 102 | AM120: 0 | AN120: 102 | AP120: 0 | AQ120: 102 | AS120: 0 | AT120: 102 | AV120: 0 | AW120: 102 | AY120: 0 | AZ120: 102 | BB120: 0 | BC120: 102
B121: 103 | C121: 0 | D121: 0 | F121: 0 | G121: 0 | H121: 75 | I121: 0 | J121: 0 | K121: 125 | L121: 0 | M121: 0 | N121: 100 | O121: 0 | P121: 0 | Q121: 120 | R121: 0 | S121: 0 | T121: 140 | U121: 0 | V121: 0 | W121: 160 | X121: 0 | Y121: 0 | Z121: 180 | AA121: 0 | AB121: 0 | AC121: 0 | AE121: 0 | AG121: 0 | AH121: 103 | AJ121: 0 | AK121: 103 | AM121: 0 | AN121: 103 | AP121: 0 | AQ121: 103 | AS121: 0 | AT121: 103 | AV121: 0 | AW121: 103 | AY121: 0 | AZ121: 103 | BB121: 0 | BC121: 103
B122: 104 | C122: 0 | D122: 0 | F122: 0 | G122: 0 | H122: 75 | I122: 0 | J122: 0 | K122: 125 | L122: 0 | M122: 0 | N122: 100 | O122: 0 | P122: 0 | Q122: 120 | R122: 0 | S122: 0 | T122: 140 | U122: 0 | V122: 0 | W122: 160 | X122: 0 | Y122: 0 | Z122: 180 | AA122: 0 | AB122: 0 | AC122: 0 | AE122: 0 | AG122: 0 | AH122: 104 | AJ122: 0 | AK122: 104 | AM122: 0 | AN122: 104 | AP122: 0 | AQ122: 104 | AS122: 0 | AT122: 104 | AV122: 0 | AW122: 104 | AY122: 0 | AZ122: 104 | BB122: 0 | BC122: 104
B123: 105 | C123: 0 | D123: 0 | F123: 0 | G123: 0 | H123: 75 | I123: 0 | J123: 0 | K123: 125 | L123: 0 | M123: 0 | N123: 100 | O123: 0 | P123: 0 | Q123: 120 | R123: 0 | S123: 0 | T123: 140 | U123: 0 | V123: 0 | W123: 160 | X123: 0 | Y123: 0 | Z123: 180 | AA123: 0 | AB123: 0 | AC123: 0 | AE123: 0 | AG123: 0 | AH123: 105 | AJ123: 0 | AK123: 105 | AM123: 0 | AN123: 105 | AP123: 0 | AQ123: 105 | AS123: 0 | AT123: 105 | AV123: 0 | AW123: 105 | AY123: 0 | AZ123: 105 | BB123: 0 | BC123: 105
B124: 106 | C124: 0 | D124: 0 | F124: 0 | G124: 0 | H124: 75 | I124: 0 | J124: 0 | K124: 125 | L124: 0 | M124: 0 | N124: 100 | O124: 0 | P124: 0 | Q124: 120 | R124: 0 | S124: 0 | T124: 140 | U124: 0 | V124: 0 | W124: 160 | X124: 0 | Y124: 0 | Z124: 180 | AA124: 0 | AB124: 0 | AC124: 0 | AE124: 0 | AG124: 0 | AH124: 106 | AJ124: 0 | AK124: 106 | AM124: 0 | AN124: 106 | AP124: 0 | AQ124: 106 | AS124: 0 | AT124: 106 | AV124: 0 | AW124: 106 | AY124: 0 | AZ124: 106 | BB124: 0 | BC124: 106
B125: 107 | C125: 0 | D125: 0 | F125: 0 | G125: 0 | H125: 75 | I125: 0 | J125: 0 | K125: 125 | L125: 0 | M125: 0 | N125: 100 | O125: 0 | P125: 0 | Q125: 120 | R125: 0 | S125: 0 | T125: 140 | U125: 0 | V125: 0 | W125: 160 | X125: 0 | Y125: 0 | Z125: 180 | AA125: 0 | AB125: 0 | AC125: 0 | AE125: 0 | AG125: 0 | AH125: 107 | AJ125: 0 | AK125: 107 | AM125: 0 | AN125: 107 | AP125: 0 | AQ125: 107 | AS125: 0 | AT125: 107 | AV125: 0 | AW125: 107 | AY125: 0 | AZ125: 107 | BB125: 0 | BC125: 107
B126: 108 | C126: 0 | D126: 0 | F126: 0 | G126: 0 | H126: 75 | I126: 0 | J126: 0 | K126: 125 | L126: 0 | M126: 0 | N126: 100 | O126: 0 | P126: 0 | Q126: 120 | R126: 0 | S126: 0 | T126: 140 | U126: 0 | V126: 0 | W126: 160 | X126: 0 | Y126: 0 | Z126: 180 | AA126: 0 | AB126: 0 | AC126: 0 | AE126: 0 | AG126: 0 | AH126: 108 | AJ126: 0 | AK126: 108 | AM126: 0 | AN126: 108 | AP126: 0 | AQ126: 108 | AS126: 0 | AT126: 108 | AV126: 0 | AW126: 108 | AY126: 0 | AZ126: 108 | BB126: 0 | BC126: 108
B127: 109 | C127: 0 | D127: 0 | F127: 0 | G127: 0 | H127: 75 | I127: 0 | J127: 0 | K127: 125 | L127: 0 | M127: 0 | N127: 100 | O127: 0 | P127: 0 | Q127: 120 | R127: 0 | S127: 0 | T127: 140 | U127: 0 | V127: 0 | W127: 160 | X127: 0 | Y127: 0 | Z127: 180 | AA127: 0 | AB127: 0 | AC127: 0 | AE127: 0 | AG127: 0 | AH127: 109 | AJ127: 0 | AK127: 109 | AM127: 0 | AN127: 109 | AP127: 0 | AQ127: 109 | AS127: 0 | AT127: 109 | AV127: 0 | AW127: 109 | AY127: 0 | AZ127: 109 | BB127: 0 | BC127: 109
B128: 110 | C128: 0 | D128: 0 | F128: 0 | G128: 0 | H128: 75 | I128: 0 | J128: 0 | K128: 125 | L128: 0 | M128: 0 | N128: 100 | O128: 0 | P128: 0 | Q128: 120 | R128: 0 | S128: 0 | T128: 140 | U128: 0 | V128: 0 | W128: 160 | X128: 0 | Y128: 0 | Z128: 180 | AA128: 0 | AB128: 0 | AC128: 0 | AE128: 0 | AG128: 0 | AH128: 110 | AJ128: 0 | AK128: 110 | AM128: 0 | AN128: 110 | AP128: 0 | AQ128: 110 | AS128: 0 | AT128: 110 | AV128: 0 | AW128: 110 | AY128: 0 | AZ128: 110 | BB128: 0 | BC128: 110
B129: 111 | C129: 0 | D129: 0 | F129: 0 | G129: 0 | H129: 75 | I129: 0 | J129: 0 | K129: 125 | L129: 0 | M129: 0 | N129: 100 | O129: 0 | P129: 0 | Q129: 120 | R129: 0 | S129: 0 | T129: 140 | U129: 0 | V129: 0 | W129: 160 | X129: 0 | Y129: 0 | Z129: 180 | AA129: 0 | AB129: 0 | AC129: 0 | AE129: 0 | AG129: 0 | AH129: 111 | AJ129: 0 | AK129: 111 | AM129: 0 | AN129: 111 | AP129: 0 | AQ129: 111 | AS129: 0 | AT129: 111 | AV129: 0 | AW129: 111 | AY129: 0 | AZ129: 111 | BB129: 0 | BC129: 111
B130: 112 | C130: 0 | D130: 0 | F130: 0 | G130: 0 | H130: 75 | I130: 0 | J130: 0 | K130: 125 | L130: 0 | M130: 0 | N130: 100 | O130: 0 | P130: 0 | Q130: 120 | R130: 0 | S130: 0 | T130: 140 | U130: 0 | V130: 0 | W130: 160 | X130: 0 | Y130: 0 | Z130: 180 | AA130: 0 | AB130: 0 | AC130: 0 | AE130: 0 | AG130: 0 | AH130: 112 | AJ130: 0 | AK130: 112 | AM130: 0 | AN130: 112 | AP130: 0 | AQ130: 112 | AS130: 0 | AT130: 112 | AV130: 0 | AW130: 112 | AY130: 0 | AZ130: 112 | BB130: 0 | BC130: 112
B131: 113 | C131: 0 | D131: 0 | F131: 0 | G131: 0 | H131: 75 | I131: 0 | J131: 0 | K131: 125 | L131: 0 | M131: 0 | N131: 100 | O131: 0 | P131: 0 | Q131: 120 | R131: 0 | S131: 0 | T131: 140 | U131: 0 | V131: 0 | W131: 160 | X131: 0 | Y131: 0 | Z131: 180 | AA131: 0 | AB131: 0 | AC131: 0 | AE131: 0 | AG131: 0 | AH131: 113 | AJ131: 0 | AK131: 113 | AM131: 0 | AN131: 113 | AP131: 0 | AQ131: 113 | AS131: 0 | AT131: 113 | AV131: 0 | AW131: 113 | AY131: 0 | AZ131: 113 | BB131: 0 | BC131: 113
B132: 114 | C132: 0 | D132: 0 | F132: 0 | G132: 0 | H132: 75 | I132: 0 | J132: 0 | K132: 125 | L132: 0 | M132: 0 | N132: 100 | O132: 0 | P132: 0 | Q132: 120 | R132: 0 | S132: 0 | T132: 140 | U132: 0 | V132: 0 | W132: 160 | X132: 0 | Y132: 0 | Z132: 180 | AA132: 0 | AB132: 0 | AC132: 0 | AE132: 0 | AG132: 0 | AH132: 114 | AJ132: 0 | AK132: 114 | AM132: 0 | AN132: 114 | AP132: 0 | AQ132: 114 | AS132: 0 | AT132: 114 | AV132: 0 | AW132: 114 | AY132: 0 | AZ132: 114 | BB132: 0 | BC132: 114
B133: 115 | C133: 0 | D133: 0 | F133: 0 | G133: 0 | H133: 75 | I133: 0 | J133: 0 | K133: 125 | L133: 0 | M133: 0 | N133: 100 | O133: 0 | P133: 0 | Q133: 120 | R133: 0 | S133: 0 | T133: 140 | U133: 0 | V133: 0 | W133: 160 | X133: 0 | Y133: 0 | Z133: 180 | AA133: 0 | AB133: 0 | AC133: 0 | AE133: 0 | AG133: 0 | AH133: 115 | AJ133: 0 | AK133: 115 | AM133: 0 | AN133: 115 | AP133: 0 | AQ133: 115 | AS133: 0 | AT133: 115 | AV133: 0 | AW133: 115 | AY133: 0 | AZ133: 115 | BB133: 0 | BC133: 115
B134: 116 | C134: 0 | D134: 0 | F134: 0 | G134: 0 | H134: 75 | I134: 0 | J134: 0 | K134: 125 | L134: 0 | M134: 0 | N134: 100 | O134: 0 | P134: 0 | Q134: 120 | R134: 0 | S134: 0 | T134: 140 | U134: 0 | V134: 0 | W134: 160 | X134: 0 | Y134: 0 | Z134: 180 | AA134: 0 | AB134: 0 | AC134: 0 | AE134: 0 | AG134: 0 | AH134: 116 | AJ134: 0 | AK134: 116 | AM134: 0 | AN134: 116 | AP134: 0 | AQ134: 116 | AS134: 0 | AT134: 116 | AV134: 0 | AW134: 116 | AY134: 0 | AZ134: 116 | BB134: 0 | BC134: 116
B135: 117 | C135: 0 | D135: 0 | F135: 0 | G135: 0 | H135: 75 | I135: 0 | J135: 0 | K135: 125 | L135: 0 | M135: 0 | N135: 100 | O135: 0 | P135: 0 | Q135: 120 | R135: 0 | S135: 0 | T135: 140 | U135: 0 | V135: 0 | W135: 160 | X135: 0 | Y135: 0 | Z135: 180 | AA135: 0 | AB135: 0 | AC135: 0 | AE135: 0 | AG135: 0 | AH135: 117 | AJ135: 0 | AK135: 117 | AM135: 0 | AN135: 117 | AP135: 0 | AQ135: 117 | AS135: 0 | AT135: 117 | AV135: 0 | AW135: 117 | AY135: 0 | AZ135: 117 | BB135: 0 | BC135: 117
B136: 118 | C136: 0 | D136: 0 | F136: 0 | G136: 0 | H136: 75 | I136: 0 | J136: 0 | K136: 125 | L136: 0 | M136: 0 | N136: 100 | O136: 0 | P136: 0 | Q136: 120 | R136: 0 | S136: 0 | T136: 140 | U136: 0 | V136: 0 | W136: 160 | X136: 0 | Y136: 0 | Z136: 180 | AA136: 0 | AB136: 0 | AC136: 0 | AE136: 0 | AG136: 0 | AH136: 118 | AJ136: 0 | AK136: 118 | AM136: 0 | AN136: 118 | AP136: 0 | AQ136: 118 | AS136: 0 | AT136: 118 | AV136: 0 | AW136: 118 | AY136: 0 | AZ136: 118 | BB136: 0 | BC136: 118
B137: 119 | C137: 0 | D137: 0 | F137: 0 | G137: 0 | H137: 75 | I137: 0 | J137: 0 | K137: 125 | L137: 0 | M137: 0 | N137: 100 | O137: 0 | P137: 0 | Q137: 120 | R137: 0 | S137: 0 | T137: 140 | U137: 0 | V137: 0 | W137: 160 | X137: 0 | Y137: 0 | Z137: 180 | AA137: 0 | AB137: 0 | AC137: 0 | AE137: 0 | AG137: 0 | AH137: 119 | AJ137: 0 | AK137: 119 | AM137: 0 | AN137: 119 | AP137: 0 | AQ137: 119 | AS137: 0 | AT137: 119 | AV137: 0 | AW137: 119 | AY137: 0 | AZ137: 119 | BB137: 0 | BC137: 119
B138: 120 | C138: 0 | D138: 0 | F138: 0 | G138: 0 | H138: 75 | I138: 0 | J138: 0 | K138: 125 | L138: 0 | M138: 0 | N138: 100 | O138: 0 | P138: 0 | Q138: 120 | R138: 0 | S138: 0 | T138: 140 | U138: 0 | V138: 0 | W138: 160 | X138: 0 | Y138: 0 | Z138: 180 | AA138: 0 | AB138: 0 | AC138: 0 | AE138: 0 | AG138: 0 | AH138: 120 | AJ138: 0 | AK138: 120 | AM138: 0 | AN138: 120 | AP138: 0 | AQ138: 120 | AS138: 0 | AT138: 120 | AV138: 0 | AW138: 120 | AY138: 0 | AZ138: 120 | BB138: 0 | BC138: 120

Sheet Debt Payoff Chart
S3: Provided by: LifeAndMyFinances.com
T4: Copyright 2023
H5: Enter all your numbers in the Debt Snowball Calculator tab and then click "Refresh Chart" to the right.
H6: Then, print this sheet, put it on your fridge, and mark how well you're doing vs. your goal!
H7: Color in the squares as you go and pay off that debt faster than you planned! Good luck!

Sheet Charts (hidden)
A1: Data Table | H1: Debt Payoff Chart | R1: Principal Vs Interest | X1: Labels | AB1: Labels | AI1: Remaining Months bar Chart | AQ1: Remaining Months bar Chart
AC5: Name | AD5: Amount
B6: Month | C6: Debt Amount | D6: # | F6: Debt Payoff Month | I6: Table Axes Settings | M6: Month | N6: Debt Amount | S6: Total Payments | T6: Initial Debt | U6: Interest | Y6: Dashboard | AC6: =Data!E13:F13:INDEX(Data!E13:E44, COUNTA(Data!E13:E44)) -> Debt 1 | AD6: 1500 | AJ6: Debt | AK6: Months | AM6: Debt | AN6: Months | AS6: Path: | AT6: =LEFT(CELL("filename"),FIND("?",SUBSTITUTE(CELL("filename"),"\","?",LEN(CELL("filename"))-LEN(SUBSTITUTE(CELL("filename"),"\",""))))) -> 
B7: 0 | C7: =SUM('Debt Snowball Calculator'!D13:AC13) -> 62973 | D7: 0 | F7: =IFERROR(VLOOKUP(B7,$C$7:$D$127,2,FALSE), 120) -> 97 | J7: X | K7: Y | M7: =B7:INDEX(B7:B127, COUNTIF(C7:C127, ">0")) -> 0 | N7: =C7:INDEX(C7:C127, COUNTIF(C7:C127, ">0")) -> 62973 | S7: =SUM('Debt Snowball Calculator'!AE19:AE138) -> 89752.60063 | T7: =C7 -> 62973 | U7: =S7-T7 -> 26779.60063 | Y7: ="Beginning Total Debt: " &TEXT(T7, "$#,#") -> Beginning Total Debt: $62,973 | AC7: Debt 2 | AD7: 2843 | AJ7: =Data!E13:INDEX(Data!E13:E44, COUNTA(Data!E13:E44)) -> Debt 1 | AK7: =IF(AJ7<>"", COUNTIF(INDEX('Debt Snowball Calculator'!$C$19:$AC$138,, MATCH(AJ7, 'Debt Snowball Calculator'!$C$12:$AC$12, 0)), ">0"), "") -> 63 | AM7: =AJ7:INDEX(_xlfn.ANCHORARRAY(AJ7), COUNTA(_xlfn.ANCHORARRAY(AJ7))) -> Debt 1 | AN7: =AK7:INDEX(AK7:AK38, COUNTA(_xlfn.ANCHORARRAY(AJ7))) -> 63
B8: 1 | C8: =SUM('Debt Snowball Calculator'!D19,'Debt Snowball Calculator'!G19,'Debt Snowball Calculator'!J19,'Debt Snowball Calculator'!M19,'Debt Snowball Calculator'!P19,'Debt Snowball Calculator'!S19,'Debt Snowball Calculator'!V19,'Debt Snowball Calculator'!Y19,'Debt Snowball Calculator'!AB19) -> 62043 | D8: 1 | I8: Max | J8: =MIN(120, $F$7) -> 97 | K8: =K10*11 -> 66000 | M8: 1 | N8: 62043 | Y8: =IF(Dashboard!F2>0, "With extra payments of: $" & Dashboard!F2, "With no extra payments") -> With no extra payments | AC8: Debt 3 | AD8: 6280 | AJ8: Debt 2 | AK8: =IF(AJ8<>"", COUNTIF(INDEX('Debt Snowball Calculator'!$C$19:$AC$138,, MATCH(AJ8, 'Debt Snowball Calculator'!$C$12:$AC$12, 0)), ">0"), "") -> 62 | AM8: Debt 2 | AN8: 62
B9: 2 | C9: =SUM('Debt Snowball Calculator'!D20,'Debt Snowball Calculator'!G20,'Debt Snowball Calculator'!J20,'Debt Snowball Calculator'!M20,'Debt Snowball Calculator'!P20,'Debt Snowball Calculator'!S20,'Debt Snowball Calculator'!V20,'Debt Snowball Calculator'!Y20,'Debt Snowball Calculator'!AB20) -> 61611.89583 | D9: 2 | I9: Min | J9: 0 | K9: 0 | M9: 2 | N9: 61611.89583 | Y9: =IF(Dashboard!F4>0, "And an initial payment of: $" & Dashboard!F4, "With no initial payment") -> With no initial payment | AC9: Debt 4 | AD9: 7214 | AJ9: Debt 3 | AK9: =IF(AJ9<>"", COUNTIF(INDEX('Debt Snowball Calculator'!$C$19:$AC$138,, MATCH(AJ9, 'Debt Snowball Calculator'!$C$12:$AC$12, 0)), ">0"), "") -> 76 | AM9: Debt 3 | AN9: 76
B10: 3 | C10: =SUM('Debt Snowball Calculator'!D21,'Debt Snowball Calculator'!G21,'Debt Snowball Calculator'!J21,'Debt Snowball Calculator'!M21,'Debt Snowball Calculator'!P21,'Debt Snowball Calculator'!S21,'Debt Snowball Calculator'!V21,'Debt Snowball Calculator'!Y21,'Debt Snowball Calculator'!AB21) -> 61177.32135 | D10: 3 | I10: Increment | J10: =MAX(1,ROUNDUP(F7/60, 0)) -> 2 | K10: =MAX(1,ROUNDUP($C$7/11,-3)) -> 6000 | M10: 3 | N10: 61177.32135 | Y10: ="You could be debt free in " & TEXT(F7/12, "0.0") & " years" & IF(ISNA(VLOOKUP(B7,$C$7:$D$127,2,FALSE)), ", or more", "") -> You could be debt free in 8.1 years | AC10: Debt 5 | AD10: 8932 | AJ10: Debt 4 | AK10: =IF(AJ10<>"", COUNTIF(INDEX('Debt Snowball Calculator'!$C$19:$AC$138,, MATCH(AJ10, 'Debt Snowball Calculator'!$C$12:$AC$12, 0)), ">0"), "") -> 80 | AM10: Debt 4 | AN10: 80
B11: 4 | C11: =SUM('Debt Snowball Calculator'!D22,'Debt Snowball Calculator'!G22,'Debt Snowball Calculator'!J22,'Debt Snowball Calculator'!M22,'Debt Snowball Calculator'!P22,'Debt Snowball Calculator'!S22,'Debt Snowball Calculator'!V22,'Debt Snowball Calculator'!Y22,'Debt Snowball Calculator'!AB22) -> 60739.24313 | D11: 4 | M11: 4 | N11: 60739.24313 | Y11: =IF(COUNTA(Data!E13:E44)>0, "...debt free in " & TEXT(F7/12, "0.0") & " years" & IF(ISNA(VLOOKUP(B7,$C$7:$D$127,2,FALSE)), ", or more", ""), "") -> ...debt free in 8.1 years | AC11: Debt 6 | AD11: 10500 | AJ11: Debt 5 | AK11: =IF(AJ11<>"", COUNTIF(INDEX('Debt Snowball Calculator'!$C$19:$AC$138,, MATCH(AJ11, 'Debt Snowball Calculator'!$C$12:$AC$12, 0)), ">0"), "") -> 83 | AM11: Debt 5 | AN11: 83
B12: 5 | C12: =SUM('Debt Snowball Calculator'!D23,'Debt Snowball Calculator'!G23,'Debt Snowball Calculator'!J23,'Debt Snowball Calculator'!M23,'Debt Snowball Calculator'!P23,'Debt Snowball Calculator'!S23,'Debt Snowball Calculator'!V23,'Debt Snowball Calculator'!Y23,'Debt Snowball Calculator'!AB23) -> 60297.6274 | D12: 5 | M12: 5 | N12: 60297.6274 | AC12: Debt 7 | AD12: 12068 | AJ12: Debt 6 | AK12: =IF(AJ12<>"", COUNTIF(INDEX('Debt Snowball Calculator'!$C$19:$AC$138,, MATCH(AJ12, 'Debt Snowball Calculator'!$C$12:$AC$12, 0)), ">0"), "") -> 88 | AM12: Debt 6 | AN12: 88
B13: 6 | C13: =SUM('Debt Snowball Calculator'!D24,'Debt Snowball Calculator'!G24,'Debt Snowball Calculator'!J24,'Debt Snowball Calculator'!M24,'Debt Snowball Calculator'!P24,'Debt Snowball Calculator'!S24,'Debt Snowball Calculator'!V24,'Debt Snowball Calculator'!Y24,'Debt Snowball Calculator'!AB24) -> 59852.43999 | D13: 6 | M13: 6 | N13: 59852.43999 | Y13: Data | AC13: Debt 8 | AD13: 13636 | AJ13: Debt 7 | AK13: =IF(AJ13<>"", COUNTIF(INDEX('Debt Snowball Calculator'!$C$19:$AC$138,, MATCH(AJ13, 'Debt Snowball Calculator'!$C$12:$AC$12, 0)), ">0"), "") -> 92 | AM13: Debt 7 | AN13: 92
B14: 7 | C14: =SUM('Debt Snowball Calculator'!D25,'Debt Snowball Calculator'!G25,'Debt Snowball Calculator'!J25,'Debt Snowball Calculator'!M25,'Debt Snowball Calculator'!P25,'Debt Snowball Calculator'!S25,'Debt Snowball Calculator'!V25,'Debt Snowball Calculator'!Y25,'Debt Snowball Calculator'!AB25) -> 59403.64632 | D14: 7 | M14: 7 | N14: 59403.64632 | Y14: =IF(COUNTA(Data!E13:E44)>0, "With these inputs, you could be debt free in " & TEXT(F7/12, "0.0") & " years" & IF(ISNA(VLOOKUP(B7,$C$7:$D$127,2,FALSE)), ", or more", ""), "") -> With these inputs, you could be debt free in 8.1 years | AJ14: Debt 8 | AK14: =IF(AJ14<>"", COUNTIF(INDEX('Debt Snowball Calculator'!$C$19:$AC$138,, MATCH(AJ14, 'Debt Snowball Calculator'!$C$12:$AC$12, 0)), ">0"), "") -> 97 | AM14: Debt 8 | AN14: 97
B15: 8 | C15: =SUM('Debt Snowball Calculator'!D26,'Debt Snowball Calculator'!G26,'Debt Snowball Calculator'!J26,'Debt Snowball Calculator'!M26,'Debt Snowball Calculator'!P26,'Debt Snowball Calculator'!S26,'Debt Snowball Calculator'!V26,'Debt Snowball Calculator'!Y26,'Debt Snowball Calculator'!AB26) -> 58951.21144 | D15: 8 | M15: 8 | N15: 58951.21144 | AK15: =IF(AJ15<>"", COUNTIF(INDEX('Debt Snowball Calculator'!$C$19:$AC$138,, MATCH(AJ15, 'Debt Snowball Calculator'!$C$12:$AC$12, 0)), ">0"), "") -> 
B16: 9 | C16: =SUM('Debt Snowball Calculator'!D27,'Debt Snowball Calculator'!G27,'Debt Snowball Calculator'!J27,'Debt Snowball Calculator'!M27,'Debt Snowball Calculator'!P27,'Debt Snowball Calculator'!S27,'Debt Snowball Calculator'!V27,'Debt Snowball Calculator'!Y27,'Debt Snowball Calculator'!AB27) -> 58495.09999 | D16: 9 | M16: 9 | N16: 58495.09999 | AK16: =IF(AJ16<>"", COUNTIF(INDEX('Debt Snowball Calculator'!$C$19:$AC$138,, MATCH(AJ16, 'Debt Snowball Calculator'!$C$12:$AC$12, 0)), ">0"), "") -> 
B17: 10 | C17: =SUM('Debt Snowball Calculator'!D28,'Debt Snowball Calculator'!G28,'Debt Snowball Calculator'!J28,'Debt Snowball Calculator'!M28,'Debt Snowball Calculator'!P28,'Debt Snowball Calculator'!S28,'Debt Snowball Calculator'!V28,'Debt Snowball Calculator'!Y28,'Debt Snowball Calculator'!AB28) -> 58035.27618 | D17: 10 | M17: 10 | N17: 58035.27618 | AK17: =IF(AJ17<>"", COUNTIF(INDEX('Debt Snowball Calculator'!$C$19:$AC$138,, MATCH(AJ17, 'Debt Snowball Calculator'!$C$12:$AC$12, 0)), ">0"), "") -> 
B18: 11 | C18: =SUM('Debt Snowball Calculator'!D29,'Debt Snowball Calculator'!G29,'Debt Snowball Calculator'!J29,'Debt Snowball Calculator'!M29,'Debt Snowball Calculator'!P29,'Debt Snowball Calculator'!S29,'Debt Snowball Calculator'!V29,'Debt Snowball Calculator'!Y29,'Debt Snowball Calculator'!AB29) -> 57571.70384 | D18: 11 | M18: 11 | N18: 57571.70384 | AK18: =IF(AJ18<>"", COUNTIF(INDEX('Debt Snowball Calculator'!$C$19:$AC$138,, MATCH(AJ18, 'Debt Snowball Calculator'!$C$12:$AC$12, 0)), ">0"), "") -> 
B19: 12 | C19: =SUM('Debt Snowball Calculator'!D30,'Debt Snowball Calculator'!G30,'Debt Snowball Calculator'!J30,'Debt Snowball Calculator'!M30,'Debt Snowball Calculator'!P30,'Debt Snowball Calculator'!S30,'Debt Snowball Calculator'!V30,'Debt Snowball Calculator'!Y30,'Debt Snowball Calculator'!AB30) -> 57104.34636 | D19: 12 | M19: 12 | N19: 57104.34636 | AK19: =IF(AJ19<>"", COUNTIF(INDEX('Debt Snowball Calculator'!$C$19:$AC$138,, MATCH(AJ19, 'Debt Snowball Calculator'!$C$12:$AC$12, 0)), ">0"), "") -> 
B20: 13 | C20: =SUM('Debt Snowball Calculator'!D31,'Debt Snowball Calculator'!G31,'Debt Snowball Calculator'!J31,'Debt Snowball Calculator'!M31,'Debt Snowball Calculator'!P31,'Debt Snowball Calculator'!S31,'Debt Snowball Calculator'!V31,'Debt Snowball Calculator'!Y31,'Debt Snowball Calculator'!AB31) -> 56633.16672 | D20: 13 | M20: 13 | N20: 56633.16672 | AK20: =IF(AJ20<>"", COUNTIF(INDEX('Debt Snowball Calculator'!$C$19:$AC$138,, MATCH(AJ20, 'Debt Snowball Calculator'!$C$12:$AC$12, 0)), ">0"), "") -> 
B21: 14 | C21: =SUM('Debt Snowball Calculator'!D32,'Debt Snowball Calculator'!G32,'Debt Snowball Calculator'!J32,'Debt Snowball Calculator'!M32,'Debt Snowball Calculator'!P32,'Debt Snowball Calculator'!S32,'Debt Snowball Calculator'!V32,'Debt Snowball Calculator'!Y32,'Debt Snowball Calculator'!AB32) -> 56158.12747 | D21: 14 | M21: 14 | N21: 56158.12747 | AK21: =IF(AJ21<>"", COUNTIF(INDEX('Debt Snowball Calculator'!$C$19:$AC$138,, MATCH(AJ21, 'Debt Snowball Calculator'!$C$12:$AC$12, 0)), ">0"), "") -> 
B22: 15 | C22: =SUM('Debt Snowball Calculator'!D33,'Debt Snowball Calculator'!G33,'Debt Snowball Calculator'!J33,'Debt Snowball Calculator'!M33,'Debt Snowball Calculator'!P33,'Debt Snowball Calculator'!S33,'Debt Snowball Calculator'!V33,'Debt Snowball Calculator'!Y33,'Debt Snowball Calculator'!AB33) -> 55679.19071 | D22: 15 | M22: 15 | N22: 55679.19071 | AK22: =IF(AJ22<>"", COUNTIF(INDEX('Debt Snowball Calculator'!$C$19:$AC$138,, MATCH(AJ22, 'Debt Snowball Calculator'!$C$12:$AC$12, 0)), ">0"), "") -> 
B23: 16 | C23: =SUM('Debt Snowball Calculator'!D34,'Debt Snowball Calculator'!G34,'Debt Snowball Calculator'!J34,'Debt Snowball Calculator'!M34,'Debt Snowball Calculator'!P34,'Debt Snowball Calculator'!S34,'Debt Snowball Calculator'!V34,'Debt Snowball Calculator'!Y34,'Debt Snowball Calculator'!AB34) -> 55196.31811 | D23: 16 | M23: 16 | N23: 55196.31811 | AK23: =IF(AJ23<>"", COUNTIF(INDEX('Debt Snowball Calculator'!$C$19:$AC$138,, MATCH(AJ23, 'Debt Snowball Calculator'!$C$12:$AC$12, 0)), ">0"), "") -> 
B24: 17 | C24: =SUM('Debt Snowball Calculator'!D35,'Debt Snowball Calculator'!G35,'Debt Snowball Calculator'!J35,'Debt Snowball Calculator'!M35,'Debt Snowball Calculator'!P35,'Debt Snowball Calculator'!S35,'Debt Snowball Calculator'!V35,'Debt Snowball Calculator'!Y35,'Debt Snowball Calculator'!AB35) -> 54709.4709 | D24: 17 | M24: 17 | N24: 54709.4709 | AK24: =IF(AJ24<>"", COUNTIF(INDEX('Debt Snowball Calculator'!$C$19:$AC$138,, MATCH(AJ24, 'Debt Snowball Calculator'!$C$12:$AC$12, 0)), ">0"), "") -> 
B25: 18 | C25: =SUM('Debt Snowball Calculator'!D36,'Debt Snowball Calculator'!G36,'Debt Snowball Calculator'!J36,'Debt Snowball Calculator'!M36,'Debt Snowball Calculator'!P36,'Debt Snowball Calculator'!S36,'Debt Snowball Calculator'!V36,'Debt Snowball Calculator'!Y36,'Debt Snowball Calculator'!AB36) -> 54218.60986 | D25: 18 | M25: 18 | N25: 54218.60986 | AK25: =IF(AJ25<>"", COUNTIF(INDEX('Debt Snowball Calculator'!$C$19:$AC$138,, MATCH(AJ25, 'Debt Snowball Calculator'!$C$12:$AC$12, 0)), ">0"), "") -> 
B26: 19 | C26: =SUM('Debt Snowball Calculator'!D37,'Debt Snowball Calculator'!G37,'Debt Snowball Calculator'!J37,'Debt Snowball Calculator'!M37,'Debt Snowball Calculator'!P37,'Debt Snowball Calculator'!S37,'Debt Snowball Calculator'!V37,'Debt Snowball Calculator'!Y37,'Debt Snowball Calculator'!AB37) -> 53723.69529 | D26: 19 | M26: 19 | N26: 53723.69529 | AK26: =IF(AJ26<>"", COUNTIF(INDEX('Debt Snowball Calculator'!$C$19:$AC$138,, MATCH(AJ26, 'Debt Snowball Calculator'!$C$12:$AC$12, 0)), ">0"), "") -> 
B27: 20 | C27: =SUM('Debt Snowball Calculator'!D38,'Debt Snowball Calculator'!G38,'Debt Snowball Calculator'!J38,'Debt Snowball Calculator'!M38,'Debt Snowball Calculator'!P38,'Debt Snowball Calculator'!S38,'Debt Snowball Calculator'!V38,'Debt Snowball Calculator'!Y38,'Debt Snowball Calculator'!AB38) -> 53224.68704 | D27: 20 | M27: 20 | N27: 53224.68704 | AK27: =IF(AJ27<>"", COUNTIF(INDEX('Debt Snowball Calculator'!$C$19:$AC$138,, MATCH(AJ27, 'Debt Snowball Calculator'!$C$12:$AC$12, 0)), ">0"), "") -> 
B28: 21 | C28: =SUM('Debt Snowball Calculator'!D39,'Debt Snowball Calculator'!G39,'Debt Snowball Calculator'!J39,'Debt Snowball Calculator'!M39,'Debt Snowball Calculator'!P39,'Debt Snowball Calculator'!S39,'Debt Snowball Calculator'!V39,'Debt Snowball Calculator'!Y39,'Debt Snowball Calculator'!AB39) -> 52721.54449 | D28: 21 | M28: 21 | N28: 52721.54449 | AK28: =IF(AJ28<>"", COUNTIF(INDEX('Debt Snowball Calculator'!$C$19:$AC$138,, MATCH(AJ28, 'Debt Snowball Calculator'!$C$12:$AC$12, 0)), ">0"), "") -> 
B29: 22 | C29: =SUM('Debt Snowball Calculator'!D40,'Debt Snowball Calculator'!G40,'Debt Snowball Calculator'!J40,'Debt Snowball Calculator'!M40,'Debt Snowball Calculator'!P40,'Debt Snowball Calculator'!S40,'Debt Snowball Calculator'!V40,'Debt Snowball Calculator'!Y40,'Debt Snowball Calculator'!AB40) -> 52214.22655 | D29: 22 | M29: 22 | N29: 52214.22655 | AK29: =IF(AJ29<>"", COUNTIF(INDEX('Debt Snowball Calculator'!$C$19:$AC$138,, MATCH(AJ29, 'Debt Snowball Calculator'!$C$12:$AC$12, 0)), ">0"), "") -> 
B30: 23 | C30: =SUM('Debt Snowball Calculator'!D41,'Debt Snowball Calculator'!G41,'Debt Snowball Calculator'!J41,'Debt Snowball Calculator'!M41,'Debt Snowball Calculator'!P41,'Debt Snowball Calculator'!S41,'Debt Snowball Calculator'!V41,'Debt Snowball Calculator'!Y41,'Debt Snowball Calculator'!AB41) -> 51702.69164 | D30: 23 | M30: 23 | N30: 51702.69164 | AK30: =IF(AJ30<>"", COUNTIF(INDEX('Debt Snowball Calculator'!$C$19:$AC$138,, MATCH(AJ30, 'Debt Snowball Calculator'!$C$12:$AC$12, 0)), ">0"), "") -> 
B31: 24 | C31: =SUM('Debt Snowball Calculator'!D42,'Debt Snowball Calculator'!G42,'Debt Snowball Calculator'!J42,'Debt Snowball Calculator'!M42,'Debt Snowball Calculator'!P42,'Debt Snowball Calculator'!S42,'Debt Snowball Calculator'!V42,'Debt Snowball Calculator'!Y42,'Debt Snowball Calculator'!AB42) -> 51186.89769 | D31: 24 | M31: 24 | N31: 51186.89769 | AK31: =IF(AJ31<>"", COUNTIF(INDEX('Debt Snowball Calculator'!$C$19:$AC$138,, MATCH(AJ31, 'Debt Snowball Calculator'!$C$12:$AC$12, 0)), ">0"), "") -> 
B32: 25 | C32: =SUM('Debt Snowball Calculator'!D43,'Debt Snowball Calculator'!G43,'Debt Snowball Calculator'!J43,'Debt Snowball Calculator'!M43,'Debt Snowball Calculator'!P43,'Debt Snowball Calculator'!S43,'Debt Snowball Calculator'!V43,'Debt Snowball Calculator'!Y43,'Debt Snowball Calculator'!AB43) -> 50666.80214 | D32: 25 | M32: 25 | N32: 50666.80214 | AK32: =IF(AJ32<>"", COUNTIF(INDEX('Debt Snowball Calculator'!$C$19:$AC$138,, MATCH(AJ32, 'Debt Snowball Calculator'!$C$12:$AC$12, 0)), ">0"), "") -> 
B33: 26 | C33: =SUM('Debt Snowball Calculator'!D44,'Debt Snowball Calculator'!G44,'Debt Snowball Calculator'!J44,'Debt Snowball Calculator'!M44,'Debt Snowball Calculator'!P44,'Debt Snowball Calculator'!S44,'Debt Snowball Calculator'!V44,'Debt Snowball Calculator'!Y44,'Debt Snowball Calculator'!AB44) -> 50142.36191 | D33: 26 | M33: 26 | N33: 50142.36191 | AK33: =IF(AJ33<>"", COUNTIF(INDEX('Debt Snowball Calculator'!$C$19:$AC$138,, MATCH(AJ33, 'Debt Snowball Calculator'!$C$12:$AC$12, 0)), ">0"), "") -> 
B34: 27 | C34: =SUM('Debt Snowball Calculator'!D45,'Debt Snowball Calculator'!G45,'Debt Snowball Calculator'!J45,'Debt Snowball Calculator'!M45,'Debt Snowball Calculator'!P45,'Debt Snowball Calculator'!S45,'Debt Snowball Calculator'!V45,'Debt Snowball Calculator'!Y45,'Debt Snowball Calculator'!AB45) -> 49613.53344 | D34: 27 | M34: 27 | N34: 49613.53344 | AK34: =IF(AJ34<>"", COUNTIF(INDEX('Debt Snowball Calculator'!$C$19:$AC$138,, MATCH(AJ34, 'Debt Snowball Calculator'!$C$12:$AC$12, 0)), ">0"), "") -> 
B35: 28 | C35: =SUM('Debt Snowball Calculator'!D46,'Debt Snowball Calculator'!G46,'Debt Snowball Calculator'!J46,'Debt Snowball Calculator'!M46,'Debt Snowball Calculator'!P46,'Debt Snowball Calculator'!S46,'Debt Snowball Calculator'!V46,'Debt Snowball Calculator'!Y46,'Debt Snowball Calculator'!AB46) -> 49080.27264 | D35: 28 | M35: 28 | N35: 49080.27264 | AK35: =IF(AJ35<>"", COUNTIF(INDEX('Debt Snowball Calculator'!$C$19:$AC$138,, MATCH(AJ35, 'Debt Snowball Calculator'!$C$12:$AC$12, 0)), ">0"), "") -> 
B36: 29 | C36: =SUM('Debt Snowball Calculator'!D47,'Debt Snowball Calculator'!G47,'Debt Snowball Calculator'!J47,'Debt Snowball Calculator'!M47,'Debt Snowball Calculator'!P47,'Debt Snowball Calculator'!S47,'Debt Snowball Calculator'!V47,'Debt Snowball Calculator'!Y47,'Debt Snowball Calculator'!AB47) -> 48542.53488 | D36: 29 | M36: 29 | N36: 48542.53488 | AK36: =IF(AJ36<>"", COUNTIF(INDEX('Debt Snowball Calculator'!$C$19:$AC$138,, MATCH(AJ36, 'Debt Snowball Calculator'!$C$12:$AC$12, 0)), ">0"), "") -> 
B37: 30 | C37: =SUM('Debt Snowball Calculator'!D48,'Debt Snowball Calculator'!G48,'Debt Snowball Calculator'!J48,'Debt Snowball Calculator'!M48,'Debt Snowball Calculator'!P48,'Debt Snowball Calculator'!S48,'Debt Snowball Calculator'!V48,'Debt Snowball Calculator'!Y48,'Debt Snowball Calculator'!AB48) -> 48000.27503 | D37: 30 | M37: 30 | N37: 48000.27503 | AK37: =IF(AJ37<>"", COUNTIF(INDEX('Debt Snowball Calculator'!$C$19:$AC$138,, MATCH(AJ37, 'Debt Snowball Calculator'!$C$12:$AC$12, 0)), ">0"), "") -> 
B38: 31 | C38: =SUM('Debt Snowball Calculator'!D49,'Debt Snowball Calculator'!G49,'Debt Snowball Calculator'!J49,'Debt Snowball Calculator'!M49,'Debt Snowball Calculator'!P49,'Debt Snowball Calculator'!S49,'Debt Snowball Calculator'!V49,'Debt Snowball Calculator'!Y49,'Debt Snowball Calculator'!AB49) -> 47453.44742 | D38: 31 | M38: 31 | N38: 47453.44742 | AK38: =IF(AJ38<>"", COUNTIF(INDEX('Debt Snowball Calculator'!$C$19:$AC$138,, MATCH(AJ38, 'Debt Snowball Calculator'!$C$12:$AC$12, 0)), ">0"), "") -> 
B39: 32 | C39: =SUM('Debt Snowball Calculator'!D50,'Debt Snowball Calculator'!G50,'Debt Snowball Calculator'!J50,'Debt Snowball Calculator'!M50,'Debt Snowball Calculator'!P50,'Debt Snowball Calculator'!S50,'Debt Snowball Calculator'!V50,'Debt Snowball Calculator'!Y50,'Debt Snowball Calculator'!AB50) -> 46902.00581 | D39: 32 | M39: 32 | N39: 46902.00581
B40: 33 | C40: =SUM('Debt Snowball Calculator'!D51,'Debt Snowball Calculator'!G51,'Debt Snowball Calculator'!J51,'Debt Snowball Calculator'!M51,'Debt Snowball Calculator'!P51,'Debt Snowball Calculator'!S51,'Debt Snowball Calculator'!V51,'Debt Snowball Calculator'!Y51,'Debt Snowball Calculator'!AB51) -> 46345.90344 | D40: 33 | M40: 33 | N40: 46345.90344
B41: 34 | C41: =SUM('Debt Snowball Calculator'!D52,'Debt Snowball Calculator'!G52,'Debt Snowball Calculator'!J52,'Debt Snowball Calculator'!M52,'Debt Snowball Calculator'!P52,'Debt Snowball Calculator'!S52,'Debt Snowball Calculator'!V52,'Debt Snowball Calculator'!Y52,'Debt Snowball Calculator'!AB52) -> 45785.09297 | D41: 34 | M41: 34 | N41: 45785.09297
B42: 35 | C42: =SUM('Debt Snowball Calculator'!D53,'Debt Snowball Calculator'!G53,'Debt Snowball Calculator'!J53,'Debt Snowball Calculator'!M53,'Debt Snowball Calculator'!P53,'Debt Snowball Calculator'!S53,'Debt Snowball Calculator'!V53,'Debt Snowball Calculator'!Y53,'Debt Snowball Calculator'!AB53) -> 45219.52651 | D42: 35 | M42: 35 | N42: 45219.52651
B43: 36 | C43: =SUM('Debt Snowball Calculator'!D54,'Debt Snowball Calculator'!G54,'Debt Snowball Calculator'!J54,'Debt Snowball Calculator'!M54,'Debt Snowball Calculator'!P54,'Debt Snowball Calculator'!S54,'Debt Snowball Calculator'!V54,'Debt Snowball Calculator'!Y54,'Debt Snowball Calculator'!AB54) -> 44649.15558 | D43: 36 | M43: 36 | N43: 44649.15558
B44: 37 | C44: =SUM('Debt Snowball Calculator'!D55,'Debt Snowball Calculator'!G55,'Debt Snowball Calculator'!J55,'Debt Snowball Calculator'!M55,'Debt Snowball Calculator'!P55,'Debt Snowball Calculator'!S55,'Debt Snowball Calculator'!V55,'Debt Snowball Calculator'!Y55,'Debt Snowball Calculator'!AB55) -> 44073.93114 | D44: 37 | M44: 37 | N44: 44073.93114
B45: 38 | C45: =SUM('Debt Snowball Calculator'!D56,'Debt Snowball Calculator'!G56,'Debt Snowball Calculator'!J56,'Debt Snowball Calculator'!M56,'Debt Snowball Calculator'!P56,'Debt Snowball Calculator'!S56,'Debt Snowball Calculator'!V56,'Debt Snowball Calculator'!Y56,'Debt Snowball Calculator'!AB56) -> 43493.80355 | D45: 38 | M45: 38 | N45: 43493.80355
B46: 39 | C46: =SUM('Debt Snowball Calculator'!D57,'Debt Snowball Calculator'!G57,'Debt Snowball Calculator'!J57,'Debt Snowball Calculator'!M57,'Debt Snowball Calculator'!P57,'Debt Snowball Calculator'!S57,'Debt Snowball Calculator'!V57,'Debt Snowball Calculator'!Y57,'Debt Snowball Calculator'!AB57) -> 42908.72257 | D46: 39 | M46: 39 | N46: 42908.72257
B47: 40 | C47: =SUM('Debt Snowball Calculator'!D58,'Debt Snowball Calculator'!G58,'Debt Snowball Calculator'!J58,'Debt Snowball Calculator'!M58,'Debt Snowball Calculator'!P58,'Debt Snowball Calculator'!S58,'Debt Snowball Calculator'!V58,'Debt Snowball Calculator'!Y58,'Debt Snowball Calculator'!AB58) -> 42318.63736 | D47: 40 | M47: 40 | N47: 42318.63736
B48: 41 | C48: =SUM('Debt Snowball Calculator'!D59,'Debt Snowball Calculator'!G59,'Debt Snowball Calculator'!J59,'Debt Snowball Calculator'!M59,'Debt Snowball Calculator'!P59,'Debt Snowball Calculator'!S59,'Debt Snowball Calculator'!V59,'Debt Snowball Calculator'!Y59,'Debt Snowball Calculator'!AB59) -> 41723.49647 | D48: 41 | M48: 41 | N48: 41723.49647
B49: 42 | C49: =SUM('Debt Snowball Calculator'!D60,'Debt Snowball Calculator'!G60,'Debt Snowball Calculator'!J60,'Debt Snowball Calculator'!M60,'Debt Snowball Calculator'!P60,'Debt Snowball Calculator'!S60,'Debt Snowball Calculator'!V60,'Debt Snowball Calculator'!Y60,'Debt Snowball Calculator'!AB60) -> 41123.24782 | D49: 42 | M49: 42 | N49: 41123.24782
B50: 43 | C50: =SUM('Debt Snowball Calculator'!D61,'Debt Snowball Calculator'!G61,'Debt Snowball Calculator'!J61,'Debt Snowball Calculator'!M61,'Debt Snowball Calculator'!P61,'Debt Snowball Calculator'!S61,'Debt Snowball Calculator'!V61,'Debt Snowball Calculator'!Y61,'Debt Snowball Calculator'!AB61) -> 40517.8387 | D50: 43 | M50: 43 | N50: 40517.8387
B51: 44 | C51: =SUM('Debt Snowball Calculator'!D62,'Debt Snowball Calculator'!G62,'Debt Snowball Calculator'!J62,'Debt Snowball Calculator'!M62,'Debt Snowball Calculator'!P62,'Debt Snowball Calculator'!S62,'Debt Snowball Calculator'!V62,'Debt Snowball Calculator'!Y62,'Debt Snowball Calculator'!AB62) -> 39907.21579 | D51: 44 | M51: 44 | N51: 39907.21579
B52: 45 | C52: =SUM('Debt Snowball Calculator'!D63,'Debt Snowball Calculator'!G63,'Debt Snowball Calculator'!J63,'Debt Snowball Calculator'!M63,'Debt Snowball Calculator'!P63,'Debt Snowball Calculator'!S63,'Debt Snowball Calculator'!V63,'Debt Snowball Calculator'!Y63,'Debt Snowball Calculator'!AB63) -> 39291.32508 | D52: 45 | M52: 45 | N52: 39291.32508
B53: 46 | C53: =SUM('Debt Snowball Calculator'!D64,'Debt Snowball Calculator'!G64,'Debt Snowball Calculator'!J64,'Debt Snowball Calculator'!M64,'Debt Snowball Calculator'!P64,'Debt Snowball Calculator'!S64,'Debt Snowball Calculator'!V64,'Debt Snowball Calculator'!Y64,'Debt Snowball Calculator'!AB64) -> 38670.11194 | D53: 46 | M53: 46 | N53: 38670.11194
B54: 47 | C54: =SUM('Debt Snowball Calculator'!D65,'Debt Snowball Calculator'!G65,'Debt Snowball Calculator'!J65,'Debt Snowball Calculator'!M65,'Debt Snowball Calculator'!P65,'Debt Snowball Calculator'!S65,'Debt Snowball Calculator'!V65,'Debt Snowball Calculator'!Y65,'Debt Snowball Calculator'!AB65) -> 38043.52105 | D54: 47 | M54: 47 | N54: 38043.52105
B55: 48 | C55: =SUM('Debt Snowball Calculator'!D66,'Debt Snowball Calculator'!G66,'Debt Snowball Calculator'!J66,'Debt Snowball Calculator'!M66,'Debt Snowball Calculator'!P66,'Debt Snowball Calculator'!S66,'Debt Snowball Calculator'!V66,'Debt Snowball Calculator'!Y66,'Debt Snowball Calculator'!AB66) -> 37411.49644 | D55: 48 | M55: 48 | N55: 37411.49644
B56: 49 | C56: =SUM('Debt Snowball Calculator'!D67,'Debt Snowball Calculator'!G67,'Debt Snowball Calculator'!J67,'Debt Snowball Calculator'!M67,'Debt Snowball Calculator'!P67,'Debt Snowball Calculator'!S67,'Debt Snowball Calculator'!V67,'Debt Snowball Calculator'!Y67,'Debt Snowball Calculator'!AB67) -> 36773.98145 | D56: 49 | M56: 49 | N56: 36773.98145
B57: 50 | C57: =SUM('Debt Snowball Calculator'!D68,'Debt Snowball Calculator'!G68,'Debt Snowball Calculator'!J68,'Debt Snowball Calculator'!M68,'Debt Snowball Calculator'!P68,'Debt Snowball Calculator'!S68,'Debt Snowball Calculator'!V68,'Debt Snowball Calculator'!Y68,'Debt Snowball Calculator'!AB68) -> 36130.91872 | D57: 50 | M57: 50 | N57: 36130.91872
B58: 51 | C58: =SUM('Debt Snowball Calculator'!D69,'Debt Snowball Calculator'!G69,'Debt Snowball Calculator'!J69,'Debt Snowball Calculator'!M69,'Debt Snowball Calculator'!P69,'Debt Snowball Calculator'!S69,'Debt Snowball Calculator'!V69,'Debt Snowball Calculator'!Y69,'Debt Snowball Calculator'!AB69) -> 35482.2502 | D58: 51 | M58: 51 | N58: 35482.2502
B59: 52 | C59: =SUM('Debt Snowball Calculator'!D70,'Debt Snowball Calculator'!G70,'Debt Snowball Calculator'!J70,'Debt Snowball Calculator'!M70,'Debt Snowball Calculator'!P70,'Debt Snowball Calculator'!S70,'Debt Snowball Calculator'!V70,'Debt Snowball Calculator'!Y70,'Debt Snowball Calculator'!AB70) -> 34827.91712 | D59: 52 | M59: 52 | N59: 34827.91712
B60: 53 | C60: =SUM('Debt Snowball Calculator'!D71,'Debt Snowball Calculator'!G71,'Debt Snowball Calculator'!J71,'Debt Snowball Calculator'!M71,'Debt Snowball Calculator'!P71,'Debt Snowball Calculator'!S71,'Debt Snowball Calculator'!V71,'Debt Snowball Calculator'!Y71,'Debt Snowball Calculator'!AB71) -> 34167.85999 | D60: 53 | M60: 53 | N60: 34167.85999
B61: 54 | C61: =SUM('Debt Snowball Calculator'!D72,'Debt Snowball Calculator'!G72,'Debt Snowball Calculator'!J72,'Debt Snowball Calculator'!M72,'Debt Snowball Calculator'!P72,'Debt Snowball Calculator'!S72,'Debt Snowball Calculator'!V72,'Debt Snowball Calculator'!Y72,'Debt Snowball Calculator'!AB72) -> 33502.01861 | D61: 54 | M61: 54 | N61: 33502.01861
B62: 55 | C62: =SUM('Debt Snowball Calculator'!D73,'Debt Snowball Calculator'!G73,'Debt Snowball Calculator'!J73,'Debt Snowball Calculator'!M73,'Debt Snowball Calculator'!P73,'Debt Snowball Calculator'!S73,'Debt Snowball Calculator'!V73,'Debt Snowball Calculator'!Y73,'Debt Snowball Calculator'!AB73) -> 32830.33202 | D62: 55 | M62: 55 | N62: 32830.33202
B63: 56 | C63: =SUM('Debt Snowball Calculator'!D74,'Debt Snowball Calculator'!G74,'Debt Snowball Calculator'!J74,'Debt Snowball Calculator'!M74,'Debt Snowball Calculator'!P74,'Debt Snowball Calculator'!S74,'Debt Snowball Calculator'!V74,'Debt Snowball Calculator'!Y74,'Debt Snowball Calculator'!AB74) -> 32190.23623 | D63: 56 | M63: 56 | N63: 32190.23623
B64: 57 | C64: =SUM('Debt Snowball Calculator'!D75,'Debt Snowball Calculator'!G75,'Debt Snowball Calculator'!J75,'Debt Snowball Calculator'!M75,'Debt Snowball Calculator'!P75,'Debt Snowball Calculator'!S75,'Debt Snowball Calculator'!V75,'Debt Snowball Calculator'!Y75,'Debt Snowball Calculator'!AB75) -> 31507.39206 | D64: 57 | M64: 57 | N64: 31507.39206
B65: 58 | C65: =SUM('Debt Snowball Calculator'!D76,'Debt Snowball Calculator'!G76,'Debt Snowball Calculator'!J76,'Debt Snowball Calculator'!M76,'Debt Snowball Calculator'!P76,'Debt Snowball Calculator'!S76,'Debt Snowball Calculator'!V76,'Debt Snowball Calculator'!Y76,'Debt Snowball Calculator'!AB76) -> 30818.65344 | D65: 58 | M65: 58 | N65: 30818.65344
B66: 59 | C66: =SUM('Debt Snowball Calculator'!D77,'Debt Snowball Calculator'!G77,'Debt Snowball Calculator'!J77,'Debt Snowball Calculator'!M77,'Debt Snowball Calculator'!P77,'Debt Snowball Calculator'!S77,'Debt Snowball Calculator'!V77,'Debt Snowball Calculator'!Y77,'Debt Snowball Calculator'!AB77) -> 30123.96032 | D66: 59 | M66: 59 | N66: 30123.96032
B67: 60 | C67: =SUM('Debt Snowball Calculator'!D78,'Debt Snowball Calculator'!G78,'Debt Snowball Calculator'!J78,'Debt Snowball Calculator'!M78,'Debt Snowball Calculator'!P78,'Debt Snowball Calculator'!S78,'Debt Snowball Calculator'!V78,'Debt Snowball Calculator'!Y78,'Debt Snowball Calculator'!AB78) -> 29423.25197 | D67: 60 | M67: 60 | N67: 29423.25197
B68: 61 | C68: =SUM('Debt Snowball Calculator'!D79,'Debt Snowball Calculator'!G79,'Debt Snowball Calculator'!J79,'Debt Snowball Calculator'!M79,'Debt Snowball Calculator'!P79,'Debt Snowball Calculator'!S79,'Debt Snowball Calculator'!V79,'Debt Snowball Calculator'!Y79,'Debt Snowball Calculator'!AB79) -> 28716.46695 | D68: 61 | M68: 61 | N68: 28716.46695
B69: 62 | C69: =SUM('Debt Snowball Calculator'!D80,'Debt Snowball Calculator'!G80,'Debt Snowball Calculator'!J80,'Debt Snowball Calculator'!M80,'Debt Snowball Calculator'!P80,'Debt Snowball Calculator'!S80,'Debt Snowball Calculator'!V80,'Debt Snowball Calculator'!Y80,'Debt Snowball Calculator'!AB80) -> 28003.5431 | D69: 62 | M69: 62 | N69: 28003.5431
B70: 63 | C70: =SUM('Debt Snowball Calculator'!D81,'Debt Snowball Calculator'!G81,'Debt Snowball Calculator'!J81,'Debt Snowball Calculator'!M81,'Debt Snowball Calculator'!P81,'Debt Snowball Calculator'!S81,'Debt Snowball Calculator'!V81,'Debt Snowball Calculator'!Y81,'Debt Snowball Calculator'!AB81) -> 27284.39371 | D70: 63 | M70: 63 | N70: 27284.39371
B71: 64 | C71: =SUM('Debt Snowball Calculator'!D82,'Debt Snowball Calculator'!G82,'Debt Snowball Calculator'!J82,'Debt Snowball Calculator'!M82,'Debt Snowball Calculator'!P82,'Debt Snowball Calculator'!S82,'Debt Snowball Calculator'!V82,'Debt Snowball Calculator'!Y82,'Debt Snowball Calculator'!AB82) -> 26558.89075 | D71: 64 | M71: 64 | N71: 26558.89075
B72: 65 | C72: =SUM('Debt Snowball Calculator'!D83,'Debt Snowball Calculator'!G83,'Debt Snowball Calculator'!J83,'Debt Snowball Calculator'!M83,'Debt Snowball Calculator'!P83,'Debt Snowball Calculator'!S83,'Debt Snowball Calculator'!V83,'Debt Snowball Calculator'!Y83,'Debt Snowball Calculator'!AB83) -> 25826.96727 | D72: 65 | M72: 65 | N72: 25826.96727
B73: 66 | C73: =SUM('Debt Snowball Calculator'!D84,'Debt Snowball Calculator'!G84,'Debt Snowball Calculator'!J84,'Debt Snowball Calculator'!M84,'Debt Snowball Calculator'!P84,'Debt Snowball Calculator'!S84,'Debt Snowball Calculator'!V84,'Debt Snowball Calculator'!Y84,'Debt Snowball Calculator'!AB84) -> 25088.55549 | D73: 66 | M73: 66 | N73: 25088.55549
B74: 67 | C74: =SUM('Debt Snowball Calculator'!D85,'Debt Snowball Calculator'!G85,'Debt Snowball Calculator'!J85,'Debt Snowball Calculator'!M85,'Debt Snowball Calculator'!P85,'Debt Snowball Calculator'!S85,'Debt Snowball Calculator'!V85,'Debt Snowball Calculator'!Y85,'Debt Snowball Calculator'!AB85) -> 24343.58683 | D74: 67 | M74: 67 | N74: 24343.58683
B75: 68 | C75: =SUM('Debt Snowball Calculator'!D86,'Debt Snowball Calculator'!G86,'Debt Snowball Calculator'!J86,'Debt Snowball Calculator'!M86,'Debt Snowball Calculator'!P86,'Debt Snowball Calculator'!S86,'Debt Snowball Calculator'!V86,'Debt Snowball Calculator'!Y86,'Debt Snowball Calculator'!AB86) -> 23591.99184 | D75: 68 | M75: 68 | N75: 23591.99184
B76: 69 | C76: =SUM('Debt Snowball Calculator'!D87,'Debt Snowball Calculator'!G87,'Debt Snowball Calculator'!J87,'Debt Snowball Calculator'!M87,'Debt Snowball Calculator'!P87,'Debt Snowball Calculator'!S87,'Debt Snowball Calculator'!V87,'Debt Snowball Calculator'!Y87,'Debt Snowball Calculator'!AB87) -> 22833.70025 | D76: 69 | M76: 69 | N76: 22833.70025
B77: 70 | C77: =SUM('Debt Snowball Calculator'!D88,'Debt Snowball Calculator'!G88,'Debt Snowball Calculator'!J88,'Debt Snowball Calculator'!M88,'Debt Snowball Calculator'!P88,'Debt Snowball Calculator'!S88,'Debt Snowball Calculator'!V88,'Debt Snowball Calculator'!Y88,'Debt Snowball Calculator'!AB88) -> 22068.64091 | D77: 70 | M77: 70 | N77: 22068.64091
B78: 71 | C78: =SUM('Debt Snowball Calculator'!D89,'Debt Snowball Calculator'!G89,'Debt Snowball Calculator'!J89,'Debt Snowball Calculator'!M89,'Debt Snowball Calculator'!P89,'Debt Snowball Calculator'!S89,'Debt Snowball Calculator'!V89,'Debt Snowball Calculator'!Y89,'Debt Snowball Calculator'!AB89) -> 21296.7418 | D78: 71 | M78: 71 | N78: 21296.7418
B79: 72 | C79: =SUM('Debt Snowball Calculator'!D90,'Debt Snowball Calculator'!G90,'Debt Snowball Calculator'!J90,'Debt Snowball Calculator'!M90,'Debt Snowball Calculator'!P90,'Debt Snowball Calculator'!S90,'Debt Snowball Calculator'!V90,'Debt Snowball Calculator'!Y90,'Debt Snowball Calculator'!AB90) -> 20517.93005 | D79: 72 | M79: 72 | N79: 20517.93005
B80: 73 | C80: =SUM('Debt Snowball Calculator'!D91,'Debt Snowball Calculator'!G91,'Debt Snowball Calculator'!J91,'Debt Snowball Calculator'!M91,'Debt Snowball Calculator'!P91,'Debt Snowball Calculator'!S91,'Debt Snowball Calculator'!V91,'Debt Snowball Calculator'!Y91,'Debt Snowball Calculator'!AB91) -> 19732.13184 | D80: 73 | M80: 73 | N80: 19732.13184
B81: 74 | C81: =SUM('Debt Snowball Calculator'!D92,'Debt Snowball Calculator'!G92,'Debt Snowball Calculator'!J92,'Debt Snowball Calculator'!M92,'Debt Snowball Calculator'!P92,'Debt Snowball Calculator'!S92,'Debt Snowball Calculator'!V92,'Debt Snowball Calculator'!Y92,'Debt Snowball Calculator'!AB92) -> 18939.27248 | D81: 74 | M81: 74 | N81: 18939.27248
B82: 75 | C82: =SUM('Debt Snowball Calculator'!D93,'Debt Snowball Calculator'!G93,'Debt Snowball Calculator'!J93,'Debt Snowball Calculator'!M93,'Debt Snowball Calculator'!P93,'Debt Snowball Calculator'!S93,'Debt Snowball Calculator'!V93,'Debt Snowball Calculator'!Y93,'Debt Snowball Calculator'!AB93) -> 18139.27636 | D82: 75 | M82: 75 | N82: 18139.27636
B83: 76 | C83: =SUM('Debt Snowball Calculator'!D94,'Debt Snowball Calculator'!G94,'Debt Snowball Calculator'!J94,'Debt Snowball Calculator'!M94,'Debt Snowball Calculator'!P94,'Debt Snowball Calculator'!S94,'Debt Snowball Calculator'!V94,'Debt Snowball Calculator'!Y94,'Debt Snowball Calculator'!AB94) -> 17333.34643 | D83: 76 | M83: 76 | N83: 17333.34643
B84: 77 | C84: =SUM('Debt Snowball Calculator'!D95,'Debt Snowball Calculator'!G95,'Debt Snowball Calculator'!J95,'Debt Snowball Calculator'!M95,'Debt Snowball Calculator'!P95,'Debt Snowball Calculator'!S95,'Debt Snowball Calculator'!V95,'Debt Snowball Calculator'!Y95,'Debt Snowball Calculator'!AB95) -> 16522.45127 | D84: 77 | M84: 77 | N84: 16522.45127
B85: 78 | C85: =SUM('Debt Snowball Calculator'!D96,'Debt Snowball Calculator'!G96,'Debt Snowball Calculator'!J96,'Debt Snowball Calculator'!M96,'Debt Snowball Calculator'!P96,'Debt Snowball Calculator'!S96,'Debt Snowball Calculator'!V96,'Debt Snowball Calculator'!Y96,'Debt Snowball Calculator'!AB96) -> 15706.55887 | D85: 78 | M85: 78 | N85: 15706.55887
B86: 79 | C86: =SUM('Debt Snowball Calculator'!D97,'Debt Snowball Calculator'!G97,'Debt Snowball Calculator'!J97,'Debt Snowball Calculator'!M97,'Debt Snowball Calculator'!P97,'Debt Snowball Calculator'!S97,'Debt Snowball Calculator'!V97,'Debt Snowball Calculator'!Y97,'Debt Snowball Calculator'!AB97) -> 14885.63695 | D86: 79 | M86: 79 | N86: 14885.63695
B87: 80 | C87: =SUM('Debt Snowball Calculator'!D98,'Debt Snowball Calculator'!G98,'Debt Snowball Calculator'!J98,'Debt Snowball Calculator'!M98,'Debt Snowball Calculator'!P98,'Debt Snowball Calculator'!S98,'Debt Snowball Calculator'!V98,'Debt Snowball Calculator'!Y98,'Debt Snowball Calculator'!AB98) -> 14059.65305 | D87: 80 | M87: 80 | N87: 14059.65305
B88: 81 | C88: =SUM('Debt Snowball Calculator'!D99,'Debt Snowball Calculator'!G99,'Debt Snowball Calculator'!J99,'Debt Snowball Calculator'!M99,'Debt Snowball Calculator'!P99,'Debt Snowball Calculator'!S99,'Debt Snowball Calculator'!V99,'Debt Snowball Calculator'!Y99,'Debt Snowball Calculator'!AB99) -> 13228.57449 | D88: 81 | M88: 81 | N88: 13228.57449
B89: 82 | C89: =SUM('Debt Snowball Calculator'!D100,'Debt Snowball Calculator'!G100,'Debt Snowball Calculator'!J100,'Debt Snowball Calculator'!M100,'Debt Snowball Calculator'!P100,'Debt Snowball Calculator'!S100,'Debt Snowball Calculator'!V100,'Debt Snowball Calculator'!Y100,'Debt Snowball Calculator'!AB100) -> 12392.36835 | D89: 82 | M89: 82 | N89: 12392.36835
B90: 83 | C90: =SUM('Debt Snowball Calculator'!D101,'Debt Snowball Calculator'!G101,'Debt Snowball Calculator'!J101,'Debt Snowball Calculator'!M101,'Debt Snowball Calculator'!P101,'Debt Snowball Calculator'!S101,'Debt Snowball Calculator'!V101,'Debt Snowball Calculator'!Y101,'Debt Snowball Calculator'!AB101) -> 11550.75929 | D90: 83 | M90: 83 | N90: 11550.75929
B91: 84 | C91: =SUM('Debt Snowball Calculator'!D102,'Debt Snowball Calculator'!G102,'Debt Snowball Calculator'!J102,'Debt Snowball Calculator'!M102,'Debt Snowball Calculator'!P102,'Debt Snowball Calculator'!S102,'Debt Snowball Calculator'!V102,'Debt Snowball Calculator'!Y102,'Debt Snowball Calculator'!AB102) -> 10703.20334 | D91: 84 | M91: 84 | N91: 10703.20334
B92: 85 | C92: =SUM('Debt Snowball Calculator'!D103,'Debt Snowball Calculator'!G103,'Debt Snowball Calculator'!J103,'Debt Snowball Calculator'!M103,'Debt Snowball Calculator'!P103,'Debt Snowball Calculator'!S103,'Debt Snowball Calculator'!V103,'Debt Snowball Calculator'!Y103,'Debt Snowball Calculator'!AB103) -> 9849.658142 | D92: 85 | M92: 85 | N92: 9849.658142
B93: 86 | C93: =SUM('Debt Snowball Calculator'!D104,'Debt Snowball Calculator'!G104,'Debt Snowball Calculator'!J104,'Debt Snowball Calculator'!M104,'Debt Snowball Calculator'!P104,'Debt Snowball Calculator'!S104,'Debt Snowball Calculator'!V104,'Debt Snowball Calculator'!Y104,'Debt Snowball Calculator'!AB104) -> 8990.081041 | D93: 86 | M93: 86 | N93: 8990.081041
B94: 87 | C94: =SUM('Debt Snowball Calculator'!D105,'Debt Snowball Calculator'!G105,'Debt Snowball Calculator'!J105,'Debt Snowball Calculator'!M105,'Debt Snowball Calculator'!P105,'Debt Snowball Calculator'!S105,'Debt Snowball Calculator'!V105,'Debt Snowball Calculator'!Y105,'Debt Snowball Calculator'!AB105) -> 8124.429068 | D94: 87 | M94: 87 | N94: 8124.429068
B95: 88 | C95: =SUM('Debt Snowball Calculator'!D106,'Debt Snowball Calculator'!G106,'Debt Snowball Calculator'!J106,'Debt Snowball Calculator'!M106,'Debt Snowball Calculator'!P106,'Debt Snowball Calculator'!S106,'Debt Snowball Calculator'!V106,'Debt Snowball Calculator'!Y106,'Debt Snowball Calculator'!AB106) -> 7252.225908 | D95: 88 | M95: 88 | N95: 7252.225908
B96: 89 | C96: =SUM('Debt Snowball Calculator'!D107,'Debt Snowball Calculator'!G107,'Debt Snowball Calculator'!J107,'Debt Snowball Calculator'!M107,'Debt Snowball Calculator'!P107,'Debt Snowball Calculator'!S107,'Debt Snowball Calculator'!V107,'Debt Snowball Calculator'!Y107,'Debt Snowball Calculator'!AB107) -> 6373.363213 | D96: 89 | M96: 89 | N96: 6373.363213
B97: 90 | C97: =SUM('Debt Snowball Calculator'!D108,'Debt Snowball Calculator'!G108,'Debt Snowball Calculator'!J108,'Debt Snowball Calculator'!M108,'Debt Snowball Calculator'!P108,'Debt Snowball Calculator'!S108,'Debt Snowball Calculator'!V108,'Debt Snowball Calculator'!Y108,'Debt Snowball Calculator'!AB108) -> 5487.790052 | D97: 90 | M97: 90 | N97: 5487.790052
B98: 91 | C98: =SUM('Debt Snowball Calculator'!D109,'Debt Snowball Calculator'!G109,'Debt Snowball Calculator'!J109,'Debt Snowball Calculator'!M109,'Debt Snowball Calculator'!P109,'Debt Snowball Calculator'!S109,'Debt Snowball Calculator'!V109,'Debt Snowball Calculator'!Y109,'Debt Snowball Calculator'!AB109) -> 4595.455107 | D98: 91 | M98: 91 | N98: 4595.455107
B99: 92 | C99: =SUM('Debt Snowball Calculator'!D110,'Debt Snowball Calculator'!G110,'Debt Snowball Calculator'!J110,'Debt Snowball Calculator'!M110,'Debt Snowball Calculator'!P110,'Debt Snowball Calculator'!S110,'Debt Snowball Calculator'!V110,'Debt Snowball Calculator'!Y110,'Debt Snowball Calculator'!AB110) -> 3696.000566 | D99: 92 | M99: 92 | N99: 3696.000566
B100: 93 | C100: =SUM('Debt Snowball Calculator'!D111,'Debt Snowball Calculator'!G111,'Debt Snowball Calculator'!J111,'Debt Snowball Calculator'!M111,'Debt Snowball Calculator'!P111,'Debt Snowball Calculator'!S111,'Debt Snowball Calculator'!V111,'Debt Snowball Calculator'!Y111,'Debt Snowball Calculator'!AB111) -> 2789.050571 | D100: 93 | M100: 93 | N100: 2789.050571
B101: 94 | C101: =SUM('Debt Snowball Calculator'!D112,'Debt Snowball Calculator'!G112,'Debt Snowball Calculator'!J112,'Debt Snowball Calculator'!M112,'Debt Snowball Calculator'!P112,'Debt Snowball Calculator'!S112,'Debt Snowball Calculator'!V112,'Debt Snowball Calculator'!Y112,'Debt Snowball Calculator'!AB112) -> 1874.542659 | D101: 94 | M101: 94 | N101: 1874.542659
B102: 95 | C102: =SUM('Debt Snowball Calculator'!D113,'Debt Snowball Calculator'!G113,'Debt Snowball Calculator'!J113,'Debt Snowball Calculator'!M113,'Debt Snowball Calculator'!P113,'Debt Snowball Calculator'!S113,'Debt Snowball Calculator'!V113,'Debt Snowball Calculator'!Y113,'Debt Snowball Calculator'!AB113) -> 952.4138477 | D102: 95 | M102: 95 | N102: 952.4138477
B103: 96 | C103: =SUM('Debt Snowball Calculator'!D114,'Debt Snowball Calculator'!G114,'Debt Snowball Calculator'!J114,'Debt Snowball Calculator'!M114,'Debt Snowball Calculator'!P114,'Debt Snowball Calculator'!S114,'Debt Snowball Calculator'!V114,'Debt Snowball Calculator'!Y114,'Debt Snowball Calculator'!AB114) -> 22.60062977 | D103: 96 | M103: 96 | N103: 22.60062977
B104: 97 | C104: =SUM('Debt Snowball Calculator'!D115,'Debt Snowball Calculator'!G115,'Debt Snowball Calculator'!J115,'Debt Snowball Calculator'!M115,'Debt Snowball Calculator'!P115,'Debt Snowball Calculator'!S115,'Debt Snowball Calculator'!V115,'Debt Snowball Calculator'!Y115,'Debt Snowball Calculator'!AB115) -> 0 | D104: 97
B105: 98 | C105: =SUM('Debt Snowball Calculator'!D116,'Debt Snowball Calculator'!G116,'Debt Snowball Calculator'!J116,'Debt Snowball Calculator'!M116,'Debt Snowball Calculator'!P116,'Debt Snowball Calculator'!S116,'Debt Snowball Calculator'!V116,'Debt Snowball Calculator'!Y116,'Debt Snowball Calculator'!AB116) -> 0 | D105: 98
B106: 99 | C106: =SUM('Debt Snowball Calculator'!D117,'Debt Snowball Calculator'!G117,'Debt Snowball Calculator'!J117,'Debt Snowball Calculator'!M117,'Debt Snowball Calculator'!P117,'Debt Snowball Calculator'!S117,'Debt Snowball Calculator'!V117,'Debt Snowball Calculator'!Y117,'Debt Snowball Calculator'!AB117) -> 0 | D106: 99
B107: 100 | C107: =SUM('Debt Snowball Calculator'!D118,'Debt Snowball Calculator'!G118,'Debt Snowball Calculator'!J118,'Debt Snowball Calculator'!M118,'Debt Snowball Calculator'!P118,'Debt Snowball Calculator'!S118,'Debt Snowball Calculator'!V118,'Debt Snowball Calculator'!Y118,'Debt Snowball Calculator'!AB118) -> 0 | D107: 100
B108: 101 | C108: =SUM('Debt Snowball Calculator'!D119,'Debt Snowball Calculator'!G119,'Debt Snowball Calculator'!J119,'Debt Snowball Calculator'!M119,'Debt Snowball Calculator'!P119,'Debt Snowball Calculator'!S119,'Debt Snowball Calculator'!V119,'Debt Snowball Calculator'!Y119,'Debt Snowball Calculator'!AB119) -> 0 | D108: 101
B109: 102 | C109: =SUM('Debt Snowball Calculator'!D120,'Debt Snowball Calculator'!G120,'Debt Snowball Calculator'!J120,'Debt Snowball Calculator'!M120,'Debt Snowball Calculator'!P120,'Debt Snowball Calculator'!S120,'Debt Snowball Calculator'!V120,'Debt Snowball Calculator'!Y120,'Debt Snowball Calculator'!AB120) -> 0 | D109: 102
B110: 103 | C110: =SUM('Debt Snowball Calculator'!D121,'Debt Snowball Calculator'!G121,'Debt Snowball Calculator'!J121,'Debt Snowball Calculator'!M121,'Debt Snowball Calculator'!P121,'Debt Snowball Calculator'!S121,'Debt Snowball Calculator'!V121,'Debt Snowball Calculator'!Y121,'Debt Snowball Calculator'!AB121) -> 0 | D110: 103
B111: 104 | C111: =SUM('Debt Snowball Calculator'!D122,'Debt Snowball Calculator'!G122,'Debt Snowball Calculator'!J122,'Debt Snowball Calculator'!M122,'Debt Snowball Calculator'!P122,'Debt Snowball Calculator'!S122,'Debt Snowball Calculator'!V122,'Debt Snowball Calculator'!Y122,'Debt Snowball Calculator'!AB122) -> 0 | D111: 104
B112: 105 | C112: =SUM('Debt Snowball Calculator'!D123,'Debt Snowball Calculator'!G123,'Debt Snowball Calculator'!J123,'Debt Snowball Calculator'!M123,'Debt Snowball Calculator'!P123,'Debt Snowball Calculator'!S123,'Debt Snowball Calculator'!V123,'Debt Snowball Calculator'!Y123,'Debt Snowball Calculator'!AB123) -> 0 | D112: 105
B113: 106 | C113: =SUM('Debt Snowball Calculator'!D124,'Debt Snowball Calculator'!G124,'Debt Snowball Calculator'!J124,'Debt Snowball Calculator'!M124,'Debt Snowball Calculator'!P124,'Debt Snowball Calculator'!S124,'Debt Snowball Calculator'!V124,'Debt Snowball Calculator'!Y124,'Debt Snowball Calculator'!AB124) -> 0 | D113: 106
B114: 107 | C114: =SUM('Debt Snowball Calculator'!D125,'Debt Snowball Calculator'!G125,'Debt Snowball Calculator'!J125,'Debt Snowball Calculator'!M125,'Debt Snowball Calculator'!P125,'Debt Snowball Calculator'!S125,'Debt Snowball Calculator'!V125,'Debt Snowball Calculator'!Y125,'Debt Snowball Calculator'!AB125) -> 0 | D114: 107
B115: 108 | C115: =SUM('Debt Snowball Calculator'!D126,'Debt Snowball Calculator'!G126,'Debt Snowball Calculator'!J126,'Debt Snowball Calculator'!M126,'Debt Snowball Calculator'!P126,'Debt Snowball Calculator'!S126,'Debt Snowball Calculator'!V126,'Debt Snowball Calculator'!Y126,'Debt Snowball Calculator'!AB126) -> 0 | D115: 108
B116: 109 | C116: =SUM('Debt Snowball Calculator'!D127,'Debt Snowball Calculator'!G127,'Debt Snowball Calculator'!J127,'Debt Snowball Calculator'!M127,'Debt Snowball Calculator'!P127,'Debt Snowball Calculator'!S127,'Debt Snowball Calculator'!V127,'Debt Snowball Calculator'!Y127,'Debt Snowball Calculator'!AB127) -> 0 | D116: 109
B117: 110 | C117: =SUM('Debt Snowball Calculator'!D128,'Debt Snowball Calculator'!G128,'Debt Snowball Calculator'!J128,'Debt Snowball Calculator'!M128,'Debt Snowball Calculator'!P128,'Debt Snowball Calculator'!S128,'Debt Snowball Calculator'!V128,'Debt Snowball Calculator'!Y128,'Debt Snowball Calculator'!AB128) -> 0 | D117: 110
B118: 111 | C118: =SUM('Debt Snowball Calculator'!D129,'Debt Snowball Calculator'!G129,'Debt Snowball Calculator'!J129,'Debt Snowball Calculator'!M129,'Debt Snowball Calculator'!P129,'Debt Snowball Calculator'!S129,'Debt Snowball Calculator'!V129,'Debt Snowball Calculator'!Y129,'Debt Snowball Calculator'!AB129) -> 0 | D118: 111
B119: 112 | C119: =SUM('Debt Snowball Calculator'!D130,'Debt Snowball Calculator'!G130,'Debt Snowball Calculator'!J130,'Debt Snowball Calculator'!M130,'Debt Snowball Calculator'!P130,'Debt Snowball Calculator'!S130,'Debt Snowball Calculator'!V130,'Debt Snowball Calculator'!Y130,'Debt Snowball Calculator'!AB130) -> 0 | D119: 112
B120: 113 | C120: =SUM('Debt Snowball Calculator'!D131,'Debt Snowball Calculator'!G131,'Debt Snowball Calculator'!J131,'Debt Snowball Calculator'!M131,'Debt Snowball Calculator'!P131,'Debt Snowball Calculator'!S131,'Debt Snowball Calculator'!V131,'Debt Snowball Calculator'!Y131,'Debt Snowball Calculator'!AB131) -> 0 | D120: 113
B121: 114 | C121: =SUM('Debt Snowball Calculator'!D132,'Debt Snowball Calculator'!G132,'Debt Snowball Calculator'!J132,'Debt Snowball Calculator'!M132,'Debt Snowball Calculator'!P132,'Debt Snowball Calculator'!S132,'Debt Snowball Calculator'!V132,'Debt Snowball Calculator'!Y132,'Debt Snowball Calculator'!AB132) -> 0 | D121: 114
B122: 115 | C122: =SUM('Debt Snowball Calculator'!D133,'Debt Snowball Calculator'!G133,'Debt Snowball Calculator'!J133,'Debt Snowball Calculator'!M133,'Debt Snowball Calculator'!P133,'Debt Snowball Calculator'!S133,'Debt Snowball Calculator'!V133,'Debt Snowball Calculator'!Y133,'Debt Snowball Calculator'!AB133) -> 0 | D122: 115
B123: 116 | C123: =SUM('Debt Snowball Calculator'!D134,'Debt Snowball Calculator'!G134,'Debt Snowball Calculator'!J134,'Debt Snowball Calculator'!M134,'Debt Snowball Calculator'!P134,'Debt Snowball Calculator'!S134,'Debt Snowball Calculator'!V134,'Debt Snowball Calculator'!Y134,'Debt Snowball Calculator'!AB134) -> 0 | D123: 116
B124: 117 | C124: =SUM('Debt Snowball Calculator'!D135,'Debt Snowball Calculator'!G135,'Debt Snowball Calculator'!J135,'Debt Snowball Calculator'!M135,'Debt Snowball Calculator'!P135,'Debt Snowball Calculator'!S135,'Debt Snowball Calculator'!V135,'Debt Snowball Calculator'!Y135,'Debt Snowball Calculator'!AB135) -> 0 | D124: 117
B125: 118 | C125: =SUM('Debt Snowball Calculator'!D136,'Debt Snowball Calculator'!G136,'Debt Snowball Calculator'!J136,'Debt Snowball Calculator'!M136,'Debt Snowball Calculator'!P136,'Debt Snowball Calculator'!S136,'Debt Snowball Calculator'!V136,'Debt Snowball Calculator'!Y136,'Debt Snowball Calculator'!AB136) -> 0 | D125: 118
B126: 119 | C126: =SUM('Debt Snowball Calculator'!D137,'Debt Snowball Calculator'!G137,'Debt Snowball Calculator'!J137,'Debt Snowball Calculator'!M137,'Debt Snowball Calculator'!P137,'Debt Snowball Calculator'!S137,'Debt Snowball Calculator'!V137,'Debt Snowball Calculator'!Y137,'Debt Snowball Calculator'!AB137) -> 0 | D126: 119
B127: 120 | C127: =SUM('Debt Snowball Calculator'!D138,'Debt Snowball Calculator'!G138,'Debt Snowball Calculator'!J138,'Debt Snowball Calculator'!M138,'Debt Snowball Calculator'!P138,'Debt Snowball Calculator'!S138,'Debt Snowball Calculator'!V138,'Debt Snowball Calculator'!Y138,'Debt Snowball Calculator'!AB138) -> 0 | D127: 120
